Workbook

Sheet Disclaimer
C2: CHAMAMENTO PÚBLICO – PMI Nº 01/2022 - ROLÂNDIA
C4: Disclaimer
C5: Note:
C6: O respecitivo modelo financeiro serve para suporte à apresentação do fluxo de caixa do projeto pelos licitantes. Adicionalmente, as premissas atreladas a crescimento de demanda, metragem, contraprestação transitória, contraprestação máxima para desconto e imposto de renda operacional estão fixadas no modelo.
C10: x | D10: Inputs fixos no modelo
C11: x | D11: Inputs flexíveis para preenchimento do licitante

Sheet Fluxo de caixa do projeto
A1: Fluxo de Caixa para o Projeto
C3: Ano de Concessão | G3: =Ops!G3 -> 1 | H3: =Ops!H3 -> 2 | I3: =Ops!I3 -> 3 | J3: =Ops!J3 -> 4 | K3: =Ops!K3 -> 5 | L3: =Ops!L3 -> 6 | M3: =Ops!M3 -> 7 | N3: =Ops!N3 -> 8 | O3: =Ops!O3 -> 9 | P3: =Ops!P3 -> 10 | Q3: =Ops!Q3 -> 11 | R3: =Ops!R3 -> 12 | S3: =Ops!S3 -> 13 | T3: =Ops!T3 -> 14 | U3: =Ops!U3 -> 15 | V3: =Ops!V3 -> 16 | W3: =Ops!W3 -> 17 | X3: =Ops!X3 -> 18 | Y3: =Ops!Y3 -> 19 | Z3: =Ops!Z3 -> 20 | AA3: =Ops!AA3 -> 21 | AB3: =Ops!AB3 -> 22 | AC3: =Ops!AC3 -> 23 | AD3: =Ops!AD3 -> 24 | AE3: =Ops!AE3 -> 25 | AF3: =Ops!AF3 -> 26 | AG3: =Ops!AG3 -> 27 | AH3: =Ops!AH3 -> 28 | AI3: =Ops!AI3 -> 29 | AJ3: =Ops!AJ3 -> 30
C5: Fluxo de Caixa do Projeto
C7: Receita Líquida
C8: Contraprestação Pública Anual | E8: $ 000s | F8: =SUM(G8:AJ8) -> 525461.6429 | G8: =Ops!G72 -> 18964 | H8: =Ops!H72 -> 14750.81152 | I8: =Ops!I72 -> 14969.2876 | J8: =Ops!J72 -> 15184.52708 | K8: =Ops!K72 -> 15396.62445 | L8: =Ops!L72 -> 15605.67012 | M8: =Ops!M72 -> 15811.75068 | N8: =Ops!N72 -> 16014.94905 | O8: =Ops!O72 -> 16215.34474 | P8: =Ops!P72 -> 16413.01402 | Q8: =Ops!Q72 -> 16608.03008 | R8: =Ops!R72 -> 16800.4632 | S8: =Ops!S72 -> 16990.3809 | T8: =Ops!T72 -> 17177.8481 | U8: =Ops!U72 -> 17362.92723 | V8: =Ops!V72 -> 17545.67836 | W8: =Ops!W72 -> 17726.15934 | X8: =Ops!X72 -> 17904.42587 | Y8: =Ops!Y72 -> 18080.53164 | Z8: =Ops!Z72 -> 18254.52839 | AA8: =Ops!AA72 -> 18426.46605 | AB8: =Ops!AB72 -> 18596.39278 | AC8: =Ops!AC72 -> 18764.35508 | AD8: =Ops!AD72 -> 18930.39783 | AE8: =Ops!AE72 -> 19094.56444 | AF8: =Ops!AF72 -> 19256.89681 | AG8: =Ops!AG72 -> 19417.43548 | AH8: =Ops!AH72 -> 19576.21966 | AI8: =Ops!AI72 -> 19733.28729 | AJ8: =Ops!AJ72 -> 19888.67507
C9: Receitas Tarifárias | E9: $ 000s | F9: =SUM(G9:AJ9) -> 391942.089 | G9: =SUM(Ops!G103:G103) -> 0 | H9: =SUM(Ops!H103:H103) -> 11164.81263 | I9: =SUM(Ops!I103:I103) -> 11332.70062 | J9: =SUM(Ops!J103:J103) -> 11500.58861 | K9: =SUM(Ops!K103:K103) -> 11668.47659 | L9: =SUM(Ops!L103:L103) -> 11836.36458 | M9: =SUM(Ops!M103:M103) -> 12004.25257 | N9: =SUM(Ops!N103:N103) -> 12172.14055 | O9: =SUM(Ops!O103:O103) -> 12340.02854 | P9: =SUM(Ops!P103:P103) -> 12507.91653 | Q9: =SUM(Ops!Q103:Q103) -> 12675.80452 | R9: =SUM(Ops!R103:R103) -> 12843.6925 | S9: =SUM(Ops!S103:S103) -> 13011.58049 | T9: =SUM(Ops!T103:T103) -> 13179.46848 | U9: =SUM(Ops!U103:U103) -> 13347.35646 | V9: =SUM(Ops!V103:V103) -> 13515.24445 | W9: =SUM(Ops!W103:W103) -> 13683.13244 | X9: =SUM(Ops!X103:X103) -> 13851.02042 | Y9: =SUM(Ops!Y103:Y103) -> 14018.90841 | Z9: =SUM(Ops!Z103:Z103) -> 14186.7964 | AA9: =SUM(Ops!AA103:AA103) -> 14354.68438 | AB9: =SUM(Ops!AB103:AB103) -> 14522.57237 | AC9: =SUM(Ops!AC103:AC103) -> 14690.46036 | AD9: =SUM(Ops!AD103:AD103) -> 14858.34834 | AE9: =SUM(Ops!AE103:AE103) -> 15026.23633 | AF9: =SUM(Ops!AF103:AF103) -> 15194.12432 | AG9: =SUM(Ops!AG103:AG103) -> 15362.01231 | AH9: =SUM(Ops!AH103:AH103) -> 15529.90029 | AI9: =SUM(Ops!AI103:AI103) -> 15697.78828 | AJ9: =SUM(Ops!AJ103:AJ103) -> 15865.67627
C10: Deduções da Receita | E10: $ 000s | F10: =SUM(G10:AJ10) -> -130730.0318 | G10: =Ops!G120 -> -2702.37 | H10: =Ops!H120 -> -3692.976442 | I10: =Ops!I120 -> -3748.033322 | J10: =Ops!J120 -> -3802.628986 | K10: =Ops!K120 -> -3856.776899 | L10: =Ops!L120 -> -3910.489945 | M10: =Ops!M120 -> -3963.780462 | N10: =Ops!N120 -> -4016.660268 | O10: =Ops!O120 -> -4069.140693 | P10: =Ops!P120 -> -4121.232604 | Q10: =Ops!Q120 -> -4172.94643 | R10: =Ops!R120 -> -4224.292187 | S10: =Ops!S120 -> -4275.279498 | T10: =Ops!T120 -> -4325.917612 | U10: =Ops!U120 -> -4376.215426 | V10: =Ops!V120 -> -4426.181501 | W10: =Ops!W120 -> -4475.824079 | X10: =Ops!X120 -> -4525.151097 | Y10: =Ops!Y120 -> -4574.170207 | Z10: =Ops!Z120 -> -4622.888783 | AA10: =Ops!AA120 -> -4671.313937 | AB10: =Ops!AB120 -> -4719.452534 | AC10: =Ops!AC120 -> -4767.311199 | AD10: =Ops!AD120 -> -4814.896331 | AE10: =Ops!AE120 -> -4862.214109 | AF10: =Ops!AF120 -> -4909.27051 | AG10: =Ops!AG120 -> -4956.071309 | AH10: =Ops!AH120 -> -5002.622094 | AI10: =Ops!AI120 -> -5048.928268 | AJ10: =Ops!AJ120 -> -5094.995066
C11: Total | E11: $ 000s | F11: =SUM(G11:AJ11) -> 786673.7001 | G11: =SUM(G8:G10) -> 16261.63 | H11: 22222.64771 | I11: 22553.9549 | J11: 22882.4867 | K11: 23208.32414 | L11: 23531.54476 | M11: 23852.22278 | N11: 24170.42933 | O11: 24486.23259 | P11: 24799.69795 | Q11: 25110.88816 | R11: 25419.86351 | S11: 25726.68189 | T11: 26031.39896 | U11: 26334.06826 | V11: 26634.74131 | W11: 26933.4677 | X11: 27230.2952 | Y11: 27525.26984 | Z11: 27818.43601 | AA11: 28109.8365 | AB11: 28399.51262 | AC11: 28687.50423 | AD11: 28973.84985 | AE11: 29258.58666 | AF11: 29541.75062 | AG11: 29823.37648 | AH11: 30103.49786 | AI11: 30382.1473 | AJ11: 30659.35627
C13: OPEX e Capital de Giro
C14: =Ops!C198 -> Custo e despesa 1 | E14: $ 000s | F14: =SUM(G14:AJ14) -> 0 | G14: =-Ops!G198 -> 0 | H14: =-Ops!H198 -> 0 | I14: =-Ops!I198 -> 0 | J14: =-Ops!J198 -> 0 | K14: =-Ops!K198 -> 0 | L14: =-Ops!L198 -> 0 | M14: =-Ops!M198 -> 0 | N14: =-Ops!N198 -> 0 | O14: =-Ops!O198 -> 0 | P14: =-Ops!P198 -> 0 | Q14: =-Ops!Q198 -> 0 | R14: =-Ops!R198 -> 0 | S14: =-Ops!S198 -> 0 | T14: =-Ops!T198 -> 0 | U14: =-Ops!U198 -> 0 | V14: =-Ops!V198 -> 0 | W14: =-Ops!W198 -> 0 | X14: =-Ops!X198 -> 0 | Y14: =-Ops!Y198 -> 0 | Z14: =-Ops!Z198 -> 0 | AA14: =-Ops!AA198 -> 0 | AB14: =-Ops!AB198 -> 0 | AC14: =-Ops!AC198 -> 0 | AD14: =-Ops!AD198 -> 0 | AE14: =-Ops!AE198 -> 0 | AF14: =-Ops!AF198 -> 0 | AG14: =-Ops!AG198 -> 0 | AH14: =-Ops!AH198 -> 0 | AI14: =-Ops!AI198 -> 0 | AJ14: =-Ops!AJ198 -> 0
C15: =Ops!C199 -> Custo e despesa 2 | E15: $ 000s | F15: 0 | G15: =-Ops!G199 -> 0 | H15: =-Ops!H199 -> 0 | I15: =-Ops!I199 -> 0 | J15: =-Ops!J199 -> 0 | K15: =-Ops!K199 -> 0 | L15: =-Ops!L199 -> 0 | M15: =-Ops!M199 -> 0 | N15: =-Ops!N199 -> 0 | O15: =-Ops!O199 -> 0 | P15: =-Ops!P199 -> 0 | Q15: =-Ops!Q199 -> 0 | R15: =-Ops!R199 -> 0 | S15: =-Ops!S199 -> 0 | T15: =-Ops!T199 -> 0 | U15: =-Ops!U199 -> 0 | V15: =-Ops!V199 -> 0 | W15: =-Ops!W199 -> 0 | X15: =-Ops!X199 -> 0 | Y15: =-Ops!Y199 -> 0 | Z15: =-Ops!Z199 -> 0 | AA15: =-Ops!AA199 -> 0 | AB15: =-Ops!AB199 -> 0 | AC15: =-Ops!AC199 -> 0 | AD15: =-Ops!AD199 -> 0 | AE15: =-Ops!AE199 -> 0 | AF15: =-Ops!AF199 -> 0 | AG15: =-Ops!AG199 -> 0 | AH15: =-Ops!AH199 -> 0 | AI15: =-Ops!AI199 -> 0 | AJ15: =-Ops!AJ199 -> 0
C16: =Ops!C200 -> Custo e despesa 3 | E16: $ 000s | F16: 0 | G16: =-Ops!G200 -> 0 | H16: =-Ops!H200 -> 0 | I16: =-Ops!I200 -> 0 | J16: =-Ops!J200 -> 0 | K16: =-Ops!K200 -> 0 | L16: =-Ops!L200 -> 0 | M16: =-Ops!M200 -> 0 | N16: =-Ops!N200 -> 0 | O16: =-Ops!O200 -> 0 | P16: =-Ops!P200 -> 0 | Q16: =-Ops!Q200 -> 0 | R16: =-Ops!R200 -> 0 | S16: =-Ops!S200 -> 0 | T16: =-Ops!T200 -> 0 | U16: =-Ops!U200 -> 0 | V16: =-Ops!V200 -> 0 | W16: =-Ops!W200 -> 0 | X16: =-Ops!X200 -> 0 | Y16: =-Ops!Y200 -> 0 | Z16: =-Ops!Z200 -> 0 | AA16: =-Ops!AA200 -> 0 | AB16: =-Ops!AB200 -> 0 | AC16: =-Ops!AC200 -> 0 | AD16: =-Ops!AD200 -> 0 | AE16: =-Ops!AE200 -> 0 | AF16: =-Ops!AF200 -> 0 | AG16: =-Ops!AG200 -> 0 | AH16: =-Ops!AH200 -> 0 | AI16: =-Ops!AI200 -> 0 | AJ16: =-Ops!AJ200 -> 0
C17: =Ops!C201 -> Custo e despesa 4 | E17: $ 000s | F17: 0 | G17: =-Ops!G201 -> 0 | H17: =-Ops!H201 -> 0 | I17: =-Ops!I201 -> 0 | J17: =-Ops!J201 -> 0 | K17: =-Ops!K201 -> 0 | L17: =-Ops!L201 -> 0 | M17: =-Ops!M201 -> 0 | N17: =-Ops!N201 -> 0 | O17: =-Ops!O201 -> 0 | P17: =-Ops!P201 -> 0 | Q17: =-Ops!Q201 -> 0 | R17: =-Ops!R201 -> 0 | S17: =-Ops!S201 -> 0 | T17: =-Ops!T201 -> 0 | U17: =-Ops!U201 -> 0 | V17: =-Ops!V201 -> 0 | W17: =-Ops!W201 -> 0 | X17: =-Ops!X201 -> 0 | Y17: =-Ops!Y201 -> 0 | Z17: =-Ops!Z201 -> 0 | AA17: =-Ops!AA201 -> 0 | AB17: =-Ops!AB201 -> 0 | AC17: =-Ops!AC201 -> 0 | AD17: =-Ops!AD201 -> 0 | AE17: =-Ops!AE201 -> 0 | AF17: =-Ops!AF201 -> 0 | AG17: =-Ops!AG201 -> 0 | AH17: =-Ops!AH201 -> 0 | AI17: =-Ops!AI201 -> 0 | AJ17: =-Ops!AJ201 -> 0
C18: =Ops!C202 -> Custo e despesa 5 | E18: $ 000s | F18: 0 | G18: =-Ops!G202 -> 0 | H18: =-Ops!H202 -> 0 | I18: =-Ops!I202 -> 0 | J18: =-Ops!J202 -> 0 | K18: =-Ops!K202 -> 0 | L18: =-Ops!L202 -> 0 | M18: =-Ops!M202 -> 0 | N18: =-Ops!N202 -> 0 | O18: =-Ops!O202 -> 0 | P18: =-Ops!P202 -> 0 | Q18: =-Ops!Q202 -> 0 | R18: =-Ops!R202 -> 0 | S18: =-Ops!S202 -> 0 | T18: =-Ops!T202 -> 0 | U18: =-Ops!U202 -> 0 | V18: =-Ops!V202 -> 0 | W18: =-Ops!W202 -> 0 | X18: =-Ops!X202 -> 0 | Y18: =-Ops!Y202 -> 0 | Z18: =-Ops!Z202 -> 0 | AA18: =-Ops!AA202 -> 0 | AB18: =-Ops!AB202 -> 0 | AC18: =-Ops!AC202 -> 0 | AD18: =-Ops!AD202 -> 0 | AE18: =-Ops!AE202 -> 0 | AF18: =-Ops!AF202 -> 0 | AG18: =-Ops!AG202 -> 0 | AH18: =-Ops!AH202 -> 0 | AI18: =-Ops!AI202 -> 0 | AJ18: =-Ops!AJ202 -> 0
C19: =Ops!C203 -> Custo e despesa 6 | E19: $ 000s | F19: 0 | G19: =-Ops!G203 -> 0 | H19: =-Ops!H203 -> 0 | I19: =-Ops!I203 -> 0 | J19: =-Ops!J203 -> 0 | K19: =-Ops!K203 -> 0 | L19: =-Ops!L203 -> 0 | M19: =-Ops!M203 -> 0 | N19: =-Ops!N203 -> 0 | O19: =-Ops!O203 -> 0 | P19: =-Ops!P203 -> 0 | Q19: =-Ops!Q203 -> 0 | R19: =-Ops!R203 -> 0 | S19: =-Ops!S203 -> 0 | T19: =-Ops!T203 -> 0 | U19: =-Ops!U203 -> 0 | V19: =-Ops!V203 -> 0 | W19: =-Ops!W203 -> 0 | X19: =-Ops!X203 -> 0 | Y19: =-Ops!Y203 -> 0 | Z19: =-Ops!Z203 -> 0 | AA19: =-Ops!AA203 -> 0 | AB19: =-Ops!AB203 -> 0 | AC19: =-Ops!AC203 -> 0 | AD19: =-Ops!AD203 -> 0 | AE19: =-Ops!AE203 -> 0 | AF19: =-Ops!AF203 -> 0 | AG19: =-Ops!AG203 -> 0 | AH19: =-Ops!AH203 -> 0 | AI19: =-Ops!AI203 -> 0 | AJ19: =-Ops!AJ203 -> 0
C20: =Ops!C204 -> Custo e despesa 7 | E20: $ 000s | F20: 0 | G20: =-Ops!G204 -> 0 | H20: =-Ops!H204 -> 0 | I20: =-Ops!I204 -> 0 | J20: =-Ops!J204 -> 0 | K20: =-Ops!K204 -> 0 | L20: =-Ops!L204 -> 0 | M20: =-Ops!M204 -> 0 | N20: =-Ops!N204 -> 0 | O20: =-Ops!O204 -> 0 | P20: =-Ops!P204 -> 0 | Q20: =-Ops!Q204 -> 0 | R20: =-Ops!R204 -> 0 | S20: =-Ops!S204 -> 0 | T20: =-Ops!T204 -> 0 | U20: =-Ops!U204 -> 0 | V20: =-Ops!V204 -> 0 | W20: =-Ops!W204 -> 0 | X20: =-Ops!X204 -> 0 | Y20: =-Ops!Y204 -> 0 | Z20: =-Ops!Z204 -> 0 | AA20: =-Ops!AA204 -> 0 | AB20: =-Ops!AB204 -> 0 | AC20: =-Ops!AC204 -> 0 | AD20: =-Ops!AD204 -> 0 | AE20: =-Ops!AE204 -> 0 | AF20: =-Ops!AF204 -> 0 | AG20: =-Ops!AG204 -> 0 | AH20: =-Ops!AH204 -> 0 | AI20: =-Ops!AI204 -> 0 | AJ20: =-Ops!AJ204 -> 0
C21: =Ops!C205 -> Custo e despesa 8 | E21: $ 000s | F21: 0 | G21: =-Ops!G205 -> 0 | H21: =-Ops!H205 -> 0 | I21: =-Ops!I205 -> 0 | J21: =-Ops!J205 -> 0 | K21: =-Ops!K205 -> 0 | L21: =-Ops!L205 -> 0 | M21: =-Ops!M205 -> 0 | N21: =-Ops!N205 -> 0 | O21: =-Ops!O205 -> 0 | P21: =-Ops!P205 -> 0 | Q21: =-Ops!Q205 -> 0 | R21: =-Ops!R205 -> 0 | S21: =-Ops!S205 -> 0 | T21: =-Ops!T205 -> 0 | U21: =-Ops!U205 -> 0 | V21: =-Ops!V205 -> 0 | W21: =-Ops!W205 -> 0 | X21: =-Ops!X205 -> 0 | Y21: =-Ops!Y205 -> 0 | Z21: =-Ops!Z205 -> 0 | AA21: =-Ops!AA205 -> 0 | AB21: =-Ops!AB205 -> 0 | AC21: =-Ops!AC205 -> 0 | AD21: =-Ops!AD205 -> 0 | AE21: =-Ops!AE205 -> 0 | AF21: =-Ops!AF205 -> 0 | AG21: =-Ops!AG205 -> 0 | AH21: =-Ops!AH205 -> 0 | AI21: =-Ops!AI205 -> 0 | AJ21: =-Ops!AJ205 -> 0
C22: =Ops!C206 -> Custo e despesa 9 | E22: $ 000s | F22: 0 | G22: =-Ops!G206 -> 0 | H22: =-Ops!H206 -> 0 | I22: =-Ops!I206 -> 0 | J22: =-Ops!J206 -> 0 | K22: =-Ops!K206 -> 0 | L22: =-Ops!L206 -> 0 | M22: =-Ops!M206 -> 0 | N22: =-Ops!N206 -> 0 | O22: =-Ops!O206 -> 0 | P22: =-Ops!P206 -> 0 | Q22: =-Ops!Q206 -> 0 | R22: =-Ops!R206 -> 0 | S22: =-Ops!S206 -> 0 | T22: =-Ops!T206 -> 0 | U22: =-Ops!U206 -> 0 | V22: =-Ops!V206 -> 0 | W22: =-Ops!W206 -> 0 | X22: =-Ops!X206 -> 0 | Y22: =-Ops!Y206 -> 0 | Z22: =-Ops!Z206 -> 0 | AA22: =-Ops!AA206 -> 0 | AB22: =-Ops!AB206 -> 0 | AC22: =-Ops!AC206 -> 0 | AD22: =-Ops!AD206 -> 0 | AE22: =-Ops!AE206 -> 0 | AF22: =-Ops!AF206 -> 0 | AG22: =-Ops!AG206 -> 0 | AH22: =-Ops!AH206 -> 0 | AI22: =-Ops!AI206 -> 0 | AJ22: =-Ops!AJ206 -> 0
C23: =Ops!C207 -> Custo e despesa 10 | E23: $ 000s | F23: 0 | G23: =-Ops!G207 -> 0 | H23: =-Ops!H207 -> 0 | I23: =-Ops!I207 -> 0 | J23: =-Ops!J207 -> 0 | K23: =-Ops!K207 -> 0 | L23: =-Ops!L207 -> 0 | M23: =-Ops!M207 -> 0 | N23: =-Ops!N207 -> 0 | O23: =-Ops!O207 -> 0 | P23: =-Ops!P207 -> 0 | Q23: =-Ops!Q207 -> 0 | R23: =-Ops!R207 -> 0 | S23: =-Ops!S207 -> 0 | T23: =-Ops!T207 -> 0 | U23: =-Ops!U207 -> 0 | V23: =-Ops!V207 -> 0 | W23: =-Ops!W207 -> 0 | X23: =-Ops!X207 -> 0 | Y23: =-Ops!Y207 -> 0 | Z23: =-Ops!Z207 -> 0 | AA23: =-Ops!AA207 -> 0 | AB23: =-Ops!AB207 -> 0 | AC23: =-Ops!AC207 -> 0 | AD23: =-Ops!AD207 -> 0 | AE23: =-Ops!AE207 -> 0 | AF23: =-Ops!AF207 -> 0 | AG23: =-Ops!AG207 -> 0 | AH23: =-Ops!AH207 -> 0 | AI23: =-Ops!AI207 -> 0 | AJ23: =-Ops!AJ207 -> 0
C24: =Ops!C208 -> Custo e despesa 11 | E24: $ 000s | F24: 0 | G24: =-Ops!G208 -> 0 | H24: =-Ops!H208 -> 0 | I24: =-Ops!I208 -> 0 | J24: =-Ops!J208 -> 0 | K24: =-Ops!K208 -> 0 | L24: =-Ops!L208 -> 0 | M24: =-Ops!M208 -> 0 | N24: =-Ops!N208 -> 0 | O24: =-Ops!O208 -> 0 | P24: =-Ops!P208 -> 0 | Q24: =-Ops!Q208 -> 0 | R24: =-Ops!R208 -> 0 | S24: =-Ops!S208 -> 0 | T24: =-Ops!T208 -> 0 | U24: =-Ops!U208 -> 0 | V24: =-Ops!V208 -> 0 | W24: =-Ops!W208 -> 0 | X24: =-Ops!X208 -> 0 | Y24: =-Ops!Y208 -> 0 | Z24: =-Ops!Z208 -> 0 | AA24: =-Ops!AA208 -> 0 | AB24: =-Ops!AB208 -> 0 | AC24: =-Ops!AC208 -> 0 | AD24: =-Ops!AD208 -> 0 | AE24: =-Ops!AE208 -> 0 | AF24: =-Ops!AF208 -> 0 | AG24: =-Ops!AG208 -> 0 | AH24: =-Ops!AH208 -> 0 | AI24: =-Ops!AI208 -> 0 | AJ24: =-Ops!AJ208 -> 0
C25: =Ops!C209 -> Custo e despesa 12 | E25: $ 000s | F25: 0 | G25: =-Ops!G209 -> 0 | H25: =-Ops!H209 -> 0 | I25: =-Ops!I209 -> 0 | J25: =-Ops!J209 -> 0 | K25: =-Ops!K209 -> 0 | L25: =-Ops!L209 -> 0 | M25: =-Ops!M209 -> 0 | N25: =-Ops!N209 -> 0 | O25: =-Ops!O209 -> 0 | P25: =-Ops!P209 -> 0 | Q25: =-Ops!Q209 -> 0 | R25: =-Ops!R209 -> 0 | S25: =-Ops!S209 -> 0 | T25: =-Ops!T209 -> 0 | U25: =-Ops!U209 -> 0 | V25: =-Ops!V209 -> 0 | W25: =-Ops!W209 -> 0 | X25: =-Ops!X209 -> 0 | Y25: =-Ops!Y209 -> 0 | Z25: =-Ops!Z209 -> 0 | AA25: =-Ops!AA209 -> 0 | AB25: =-Ops!AB209 -> 0 | AC25: =-Ops!AC209 -> 0 | AD25: =-Ops!AD209 -> 0 | AE25: =-Ops!AE209 -> 0 | AF25: =-Ops!AF209 -> 0 | AG25: =-Ops!AG209 -> 0 | AH25: =-Ops!AH209 -> 0 | AI25: =-Ops!AI209 -> 0 | AJ25: =-Ops!AJ209 -> 0
C26: =Ops!C210 -> Custo e despesa 13 | E26: $ 000s | F26: 0 | G26: =-Ops!G210 -> 0 | H26: =-Ops!H210 -> 0 | I26: =-Ops!I210 -> 0 | J26: =-Ops!J210 -> 0 | K26: =-Ops!K210 -> 0 | L26: =-Ops!L210 -> 0 | M26: =-Ops!M210 -> 0 | N26: =-Ops!N210 -> 0 | O26: =-Ops!O210 -> 0 | P26: =-Ops!P210 -> 0 | Q26: =-Ops!Q210 -> 0 | R26: =-Ops!R210 -> 0 | S26: =-Ops!S210 -> 0 | T26: =-Ops!T210 -> 0 | U26: =-Ops!U210 -> 0 | V26: =-Ops!V210 -> 0 | W26: =-Ops!W210 -> 0 | X26: =-Ops!X210 -> 0 | Y26: =-Ops!Y210 -> 0 | Z26: =-Ops!Z210 -> 0 | AA26: =-Ops!AA210 -> 0 | AB26: =-Ops!AB210 -> 0 | AC26: =-Ops!AC210 -> 0 | AD26: =-Ops!AD210 -> 0 | AE26: =-Ops!AE210 -> 0 | AF26: =-Ops!AF210 -> 0 | AG26: =-Ops!AG210 -> 0 | AH26: =-Ops!AH210 -> 0 | AI26: =-Ops!AI210 -> 0 | AJ26: =-Ops!AJ210 -> 0
C27: =Ops!C211 -> Custo e despesa 14 | E27: $ 000s | F27: 0 | G27: =-Ops!G211 -> 0 | H27: =-Ops!H211 -> 0 | I27: =-Ops!I211 -> 0 | J27: =-Ops!J211 -> 0 | K27: =-Ops!K211 -> 0 | L27: =-Ops!L211 -> 0 | M27: =-Ops!M211 -> 0 | N27: =-Ops!N211 -> 0 | O27: =-Ops!O211 -> 0 | P27: =-Ops!P211 -> 0 | Q27: =-Ops!Q211 -> 0 | R27: =-Ops!R211 -> 0 | S27: =-Ops!S211 -> 0 | T27: =-Ops!T211 -> 0 | U27: =-Ops!U211 -> 0 | V27: =-Ops!V211 -> 0 | W27: =-Ops!W211 -> 0 | X27: =-Ops!X211 -> 0 | Y27: =-Ops!Y211 -> 0 | Z27: =-Ops!Z211 -> 0 | AA27: =-Ops!AA211 -> 0 | AB27: =-Ops!AB211 -> 0 | AC27: =-Ops!AC211 -> 0 | AD27: =-Ops!AD211 -> 0 | AE27: =-Ops!AE211 -> 0 | AF27: =-Ops!AF211 -> 0 | AG27: =-Ops!AG211 -> 0 | AH27: =-Ops!AH211 -> 0 | AI27: =-Ops!AI211 -> 0 | AJ27: =-Ops!AJ211 -> 0
C28: Total Opex | E28: $ 000s | F28: 0 | G28: =SUM(G14:G27) -> 0 | H28: 0 | I28: 0 | J28: 0 | K28: 0 | L28: 0 | M28: 0 | N28: 0 | O28: 0 | P28: 0 | Q28: 0 | R28: 0 | S28: 0 | T28: 0 | U28: 0 | V28: 0 | W28: 0 | X28: 0 | Y28: 0 | Z28: 0 | AA28: 0 | AB28: 0 | AC28: 0 | AD28: 0 | AE28: 0 | AF28: 0 | AG28: 0 | AH28: 0 | AI28: 0 | AJ28: 0
C30: Ajustes de Capital de Giro | E30: $ 000s | F30: =SUM(G30:AK30) -> 0 | G30: =Ops!G239 -> 0 | H30: =Ops!H239 -> 0 | I30: =Ops!I239 -> 0 | J30: =Ops!J239 -> 0 | K30: =Ops!K239 -> 0 | L30: =Ops!L239 -> 0 | M30: =Ops!M239 -> 0 | N30: =Ops!N239 -> 0 | O30: =Ops!O239 -> 0 | P30: =Ops!P239 -> 0 | Q30: =Ops!Q239 -> 0 | R30: =Ops!R239 -> 0 | S30: =Ops!S239 -> 0 | T30: =Ops!T239 -> 0 | U30: =Ops!U239 -> 0 | V30: =Ops!V239 -> 0 | W30: =Ops!W239 -> 0 | X30: =Ops!X239 -> 0 | Y30: =Ops!Y239 -> 0 | Z30: =Ops!Z239 -> 0 | AA30: =Ops!AA239 -> 0 | AB30: =Ops!AB239 -> 0 | AC30: =Ops!AC239 -> 0 | AD30: =Ops!AD239 -> 0 | AE30: =Ops!AE239 -> 0 | AF30: =Ops!AF239 -> 0 | AG30: =Ops!AG239 -> 0 | AH30: =Ops!AH239 -> 0 | AI30: =Ops!AI239 -> 0 | AJ30: =Ops!AJ239 -> 0
C32: Fluxo de Caixa antes dos investimentos | E32: $ 000s | F32: =SUM(G32:AJ32) -> 786673.7001 | G32: =G11+G28+G30 -> 16261.63 | H32: 22222.64771 | I32: 22553.9549 | J32: 22882.4867 | K32: 23208.32414 | L32: 23531.54476 | M32: 23852.22278 | N32: 24170.42933 | O32: 24486.23259 | P32: 24799.69795 | Q32: 25110.88816 | R32: 25419.86351 | S32: 25726.68189 | T32: 26031.39896 | U32: 26334.06826 | V32: 26634.74131 | W32: 26933.4677 | X32: 27230.2952 | Y32: 27525.26984 | Z32: 27818.43601 | AA32: 28109.8365 | AB32: 28399.51262 | AC32: 28687.50423 | AD32: 28973.84985 | AE32: 29258.58666 | AF32: 29541.75062 | AG32: 29823.37648 | AH32: 30103.49786 | AI32: 30382.1473 | AJ32: 30659.35627
C34: CAPEX
C35: =Ops!C263 -> CAPEX - Divisíveis | E35: $ 000s | F35: =SUM(G35:AJ35) -> 0 | G35: =-Ops!G263 -> 0 | H35: =-Ops!H263 -> 0 | I35: =-Ops!I263 -> 0 | J35: =-Ops!J263 -> 0 | K35: =-Ops!K263 -> 0 | L35: =-Ops!L263 -> 0 | M35: =-Ops!M263 -> 0 | N35: =-Ops!N263 -> 0 | O35: =-Ops!O263 -> 0 | P35: =-Ops!P263 -> 0 | Q35: =-Ops!Q263 -> 0 | R35: =-Ops!R263 -> 0 | S35: =-Ops!S263 -> 0 | T35: =-Ops!T263 -> 0 | U35: =-Ops!U263 -> 0 | V35: =-Ops!V263 -> 0 | W35: =-Ops!W263 -> 0 | X35: =-Ops!X263 -> 0 | Y35: =-Ops!Y263 -> 0 | Z35: =-Ops!Z263 -> 0 | AA35: =-Ops!AA263 -> 0 | AB35: =-Ops!AB263 -> 0 | AC35: =-Ops!AC263 -> 0 | AD35: =-Ops!AD263 -> 0 | AE35: =-Ops!AE263 -> 0 | AF35: =-Ops!AF263 -> 0 | AG35: =-Ops!AG263 -> 0 | AH35: =-Ops!AH263 -> 0 | AI35: =-Ops!AI263 -> 0 | AJ35: =-Ops!AJ263 -> 0
C36: =Ops!C264 -> CAPEX - Indivisíveis | E36: =Ops!E264 -> $ 000s | F36: =SUM(G36:AJ36) -> 0 | G36: =-Ops!G264 -> 0 | H36: =-Ops!H264 -> 0 | I36: =-Ops!I264 -> 0 | J36: =-Ops!J264 -> 0 | K36: =-Ops!K264 -> 0 | L36: =-Ops!L264 -> 0 | M36: =-Ops!M264 -> 0 | N36: =-Ops!N264 -> 0 | O36: =-Ops!O264 -> 0 | P36: =-Ops!P264 -> 0 | Q36: =-Ops!Q264 -> 0 | R36: =-Ops!R264 -> 0 | S36: =-Ops!S264 -> 0 | T36: =-Ops!T264 -> 0 | U36: =-Ops!U264 -> 0 | V36: =-Ops!V264 -> 0 | W36: =-Ops!W264 -> 0 | X36: =-Ops!X264 -> 0 | Y36: =-Ops!Y264 -> 0 | Z36: =-Ops!Z264 -> 0 | AA36: =-Ops!AA264 -> 0 | AB36: =-Ops!AB264 -> 0 | AC36: =-Ops!AC264 -> 0 | AD36: =-Ops!AD264 -> 0 | AE36: =-Ops!AE264 -> 0 | AF36: =-Ops!AF264 -> 0 | AG36: =-Ops!AG264 -> 0 | AH36: =-Ops!AH264 -> 0 | AI36: =-Ops!AI264 -> 0 | AJ36: =-Ops!AJ264 -> 0
C37: CAPEX total | E37: $ 000s | F37: =SUM(G37:AJ37) -> 0 | G37: =SUM(G35:G36) -> 0 | H37: 0 | I37: 0 | J37: 0 | K37: 0 | L37: 0 | M37: 0 | N37: 0 | O37: 0 | P37: 0 | Q37: 0 | R37: 0 | S37: 0 | T37: 0 | U37: 0 | V37: 0 | W37: 0 | X37: 0 | Y37: 0 | Z37: 0 | AA37: 0 | AB37: 0 | AC37: 0 | AD37: 0 | AE37: 0 | AF37: 0 | AG37: 0 | AH37: 0 | AI37: 0 | AJ37: 0
C40: Fluxo de Caixa após investimentos | E40: $ 000s | F40: =SUM(G40:AJ40) -> 786673.7001 | G40: =G32+G37 -> 16261.63 | H40: =H32+H37 -> 22222.64771 | I40: 22553.9549 | J40: 22882.4867 | K40: 23208.32414 | L40: 23531.54476 | M40: 23852.22278 | N40: 24170.42933 | O40: 24486.23259 | P40: 24799.69795 | Q40: 25110.88816 | R40: 25419.86351 | S40: 25726.68189 | T40: 26031.39896 | U40: 26334.06826 | V40: 26634.74131 | W40: 26933.4677 | X40: 27230.2952 | Y40: 27525.26984 | Z40: 27818.43601 | AA40: 28109.8365 | AB40: 28399.51262 | AC40: 28687.50423 | AD40: 28973.84985 | AE40: 29258.58666 | AF40: 29541.75062 | AG40: 29823.37648 | AH40: 30103.49786 | AI40: 30382.1473 | AJ40: 30659.35627
C43: IR / CSLL Operacional
C44: IR / CSLL pagos | E44: $ 000s | F44: =SUM(G44:AJ44) -> -266749.058 | G44: =Ops!G748 -> -5504.9542 | H44: =Ops!H748 -> -7531.700222 | I44: =Ops!I748 -> -7644.344667 | J44: =Ops!J748 -> -7756.045479 | K44: =Ops!K748 -> -7866.830209 | L44: =Ops!L748 -> -7976.725218 | M44: =Ops!M748 -> -8085.755746 | N44: =Ops!N748 -> -8193.945974 | O44: =Ops!O748 -> -8301.319081 | P44: =Ops!P748 -> -8407.897302 | Q44: =Ops!Q748 -> -8513.701976 | R44: =Ops!R748 -> -8618.753594 | S44: =Ops!S748 -> -8723.071842 | T44: =Ops!T748 -> -8826.675647 | U44: =Ops!U748 -> -8929.58321 | V44: =Ops!V748 -> -9031.812046 | W44: =Ops!W748 -> -9133.379018 | X44: =Ops!X748 -> -9234.300368 | Y44: =Ops!Y748 -> -9334.591747 | Z44: =Ops!Z748 -> -9434.268243 | AA44: =Ops!AA748 -> -9533.34441 | AB44: =Ops!AB748 -> -9631.834291 | AC44: =Ops!AC748 -> -9729.75144 | AD44: =Ops!AD748 -> -9827.108949 | AE44: =Ops!AE748 -> -9923.919464 | AF44: =Ops!AF748 -> -10020.19521 | AG44: =Ops!AG748 -> -10115.948 | AH44: =Ops!AH748 -> -10211.18927 | AI44: =Ops!AI748 -> -10305.93008 | AJ44: =Ops!AJ748 -> -10400.18113
C47: Fluxo de caixa para o projeto
E48: $ 000s | F48: =SUM(G48:AJ48) -> 519924.6421 | G48: =G40+G44 -> 10756.6758 | H48: 14690.94749 | I48: 14909.61024 | J48: 15126.44122 | K48: 15341.49394 | L48: 15554.81954 | M48: 15766.46704 | N48: 15976.48336 | O48: 16184.91351 | P48: 16391.80065 | Q48: 16597.18619 | R48: 16801.10992 | S48: 17003.61005 | T48: 17204.72331 | U48: 17404.48505 | V48: 17602.92927 | W48: 17800.08868 | X48: 17995.99483 | Y48: 18190.6781 | Z48: 18384.16777 | AA48: 18576.49209 | AB48: 18767.67833 | AC48: 18957.75279 | AD48: 19146.7409 | AE48: 19334.66719 | AF48: 19521.55541 | AG48: 19707.42847 | AH48: 19892.30859 | AI48: 20076.21722 | AJ48: 20259.17514

Sheet Inputs
A1: INPUTS
C4: Premissas temporais
C6: Início da Operação | D6: Ano | E6: 1
C7: Inicio Investimentos | D7: Ano | E7: 1
C8: Concessão | D8: Anos | E8: 30
C10: Investimentos (CAPEX)
C12: CAPEX segregado por Serviço
C13: CAPEX de Investimento | D13: 1 | E13: =D13+1 -> 2 | F13: =E13+1 -> 3 | G13: 4 | H13: 5 | I13: 6 | J13: 7 | K13: 8 | L13: 9 | M13: 10 | N13: 11 | O13: 12 | P13: 13 | Q13: 14 | R13: 15 | S13: 16 | T13: 17 | U13: 18 | V13: 19 | W13: 20 | X13: 21 | Y13: 22 | Z13: 23 | AA13: 24 | AB13: 25 | AC13: 26 | AD13: 27 | AE13: 28 | AF13: 29 | AG13: 30
C14: Coleta Manual E Conteinerizada Resíduos Comuns
C15: Coleta De Materiais Recicláveis
C16: Transporte E Destinação Final - Resíduos Pevs
C17: Coleta Programada De Volumosos
C18: Varrição Manual
C19: Serviços Gerais
C20: Destinação Final
C21: Investimentos Destinação Final
C22: Educação Ambiental
C23: Relação Com O Usuário
C24: Administração Local
C25: Reembolso Do PMI
C28: Investimentos divisíveis e indivisíveis
C29: CAPEX de Investimento | D29: #
C30: Coleta Manual E Conteinerizada Rsc | D30: Divisivel
C31: Coleta De Materiais Recicláveis | D31: Divisivel
C32: Transporte E Destinação Final - Resíduos Pevs | D32: Divisivel
C33: Coleta Programada De Volumosos | D33: Divisivel
C34: Varrição Manual | D34: Indivisível
C35: Serviços Gerais | D35: Indivisível
C36: Destinação Final | D36: Divisivel
C37: Investimentos Destinação Final | D37: Divisivel
C38: Educação Ambiental | D38: Indivisível
C39: Relação Com O Usuário | D39: Indivisível
C40: Administração Local | D40: Indivisível
C41: Reembolso Do PMI | D41: Indivisível
C44: CAPEX segregado por tipo e característica de Investimento (fins fiscais)
C45: CAPEX de Investimento | D45: Característica | E45: 1 | F45: =E45+1 -> 2 | G45: =F45+1 -> 3 | H45: 4 | I45: 5 | J45: 6 | K45: 7 | L45: 8 | M45: 9 | N45: 10 | O45: 11 | P45: 12 | Q45: 13 | R45: 14 | S45: 15 | T45: 16 | U45: 17 | V45: 18 | W45: 19 | X45: 20 | Y45: 21 | Z45: 22 | AA45: 23 | AB45: 24 | AC45: 25 | AD45: 26 | AE45: 27 | AF45: 28 | AG45: 29 | AH45: 30
C46: Estudos | D46: Divisivel
C47: Veículos | D47: Divisivel
C48: Equipamentos | D48: Divisivel
C49: Adicionais | D49: Divisivel
C50: Estudos | D50: Indivisível
C51: Veículos | D51: Indivisível
C52: Equipamentos | D52: Indivisível
C53: Adicionais | D53: Indivisível
C54: Check | D54: =SUM(E46:AH53)-SUM(Inputs!D14:AG25) -> 0
C58: Contraprestação Pública Mensal
C60: Contraprestação ano 01 | D60: 14529 | E60: $ 000s
C61: Contraprestação transitória | D61: 4435 | E61: $ 000s
C63: Desconto contraprestação | D63: 0 | E63: %
C65: Início da cobrança | D65: 1 | E65: Ano
C67: Parcela A - Remuneração Investimentos | D67: 0.5 | E67: %
C68: Parcela B - Remuneração Serviços | D68: 0.5 | E68: %
C70: Fator de Desempenho | D70: 1 | E70: Fator
D72: 1 | E72: =D72+1 -> 2 | F72: =E72+1 -> 3 | G72: 4 | H72: =G72+1 -> 5
C73: % de recebimento contraprestação - faseado | D73: =(CP+D61)/CP -> 1.305251566 | E73: 1 | F73: 1 | G73: 1 | H73: 1
C78: Receitas tarifárias
C80: Estrutura tarifária
C82: Início da cobrança | D82: 2 | E82: ano
C84: Aumento Real | D84: 1 | E84: %
C86: Desconto Aumento Real | D86: =D63 -> 0 | E86: %
C88: Até 70m² | D88: 150.37 | E88: Tarifa Referência | F88: DECRETO Nº 459/22
C89: De 71m² a 100m² | D89: 200.36 | E89: Tarifa Referência | F89: DECRETO Nº 459/22
C90: De 101m² a 150m² | D90: 250.62 | E90: Tarifa Referência | F90: DECRETO Nº 459/22
C91: De 151m² a 300m² | D91: 300.76 | E91: Tarifa Referência | F91: DECRETO Nº 459/22
C92: De 301m² a 500m² | D92: 401.02 | E92: Tarifa Referência | F92: DECRETO Nº 459/22
C93: Acima de 501m² | D93: 501.27 | E93: Tarifa Referência | F93: DECRETO Nº 459/22
C96: Deduções da Receita
C98: Imposto s/ serviço - (ISS) | D98: 0.05 | E98: %
C99: Programa Integração Social - (PIS) | D99: 0.0165 | E99: %
C100: Contribuição para Financiamento de Seguridade Social - (COFINS) | D100: 0.076 | E100: %
C102: Crédito de PIS / Cofins a ser utilizado sobre CAPEX e OPEX | D102: 1 | E102: %
C104: Ano | D104: 2 | E104: =D104+1 -> 3 | F104: 4 | G104: 5 | H104: 6 | I104: 7 | J104: 8
C105: Inadimplência das Receitas Tarifárias
C109: Custos e Despesas Operacionais (OPEX)
C111: Custos e Despesas
C115: Custos e Despesas | D115: 1 | E115: =D115+1 -> 2 | F115: =E115+1 -> 3 | G115: 4 | H115: 5 | I115: 6 | J115: 7 | K115: 8 | L115: 9 | M115: 10 | N115: 11 | O115: 12 | P115: 13 | Q115: 14 | R115: 15 | S115: 16 | T115: 17 | U115: 18 | V115: 19 | W115: 20 | X115: 21 | Y115: 22 | Z115: 23 | AA115: 24 | AB115: 25 | AC115: 26 | AD115: 27 | AE115: 28 | AF115: 29 | AG115: 30
C116: Custo e despesa 1
C117: Custo e despesa 2
C118: Custo e despesa 3
C119: Custo e despesa 4
C120: Custo e despesa 5
C121: Custo e despesa 6
C122: Custo e despesa 7
C123: Custo e despesa 8
C124: Custo e despesa 9
C125: Custo e despesa 10
C126: Custo e despesa 11
C127: Custo e despesa 12
C128: Custo e despesa 13
C129: Custo e despesa 14
C133: Imobilizado (fins fiscais)
C135: Classe de imobilizado
C136: Estudos
C137: Veículos
C138: Equipamentos
C139: Adicionais
C141: Grupo macro
C142: Divisivel
C143: Indivisível
C145: Taxa de depreciação | D145: Taxa de depreciação | E145: Valor residual
C146: Estudos
C147: Veículos
C148: Equipamentos
C149: Adicionais
C152: Capital de Giro
C154: Dias | E154: Dias
C155: Contas a receber | D155: Dias
C156: Estoques | D156: Dias
C157: Contas a pagar | D157: Dias
C158: Obrigações sociais e trabalhistas | D158: Dias
C160: Imposto
C161: IR e CSLL
C162: Aliquota IRPJ | D162: % | E162: 0.15
C163: Adicional IR | D163: % | E163: 0.1
C164: Base IR | D164: $ R$ | E164: 240000
C165: Alíquota CSLL | D165: % | E165: 0.09
C166: Uso benefício fiscal | D166: % | E166: 0.3
C168: Premissas macroeconomicas
C169: Escalation
E170: Base index | G170: 1 | H170: =G170+1 -> 2 | I170: =H170+1 -> 3 | J170: 4 | K170: =J170+1 -> 5
C171: None | D171: % p.a. | E171: 1 | G171: 0 | H171: 0 | I171: 0 | J171: 0 | K171: 0
C172: IGP-M | D172: % p.a. | E172: 1 | G172: -0.0008 | H172: 0.041 | I172: 0.04 | J172: 0.04 | K172: 0.04
C173: PIB | D173: % p.a. | E173: 1 | G173: 0.0168 | H173: 0.0128 | I173: 0.017 | J173: 0.019 | K173: 0.019
C174: PIB Serviços | D174: % p.a. | E174: 1 | G174: 0.0177 | H174: 0.0169 | I174: 0.0169 | J174: 0.0169 | K174: 0.0169
C175: CPI US | D175: % p.a. | E175: 1 | G175: 0.004 | H175: 0.004 | I175: 0.004 | J175: 0.004 | K175: 0.004
C176: SELIC | D176: % p.a. | E176: 1 | G176: 0.125 | H176: 0.1 | I176: 0.09 | J176: 0.09 | K176: 0.09
C177: CDI | D177: % p.a. | E177: 1 | G177: 0.1237 | H177: 0.099 | I177: 0.094 | J177: 0.094 | K177: 0.094
C178: TLP | D178: % p.a. | E178: 1 | G178: 0.1138 | H178: 0.0981 | I178: 0.0969 | J178: 0.0969 | K178: 0.0969
C179: IPCA | D179: % p.a. | E179: 1 | G179: 0.0569 | H179: 0.0412 | I179: 0.04 | J179: 0.04 | K179: 0.04
C182: Demanda
C184: Base atual de usuários
C185: Até 70m² | D185: 13554.94074 | E185: Usuários
C186: De 71m² a 100m² | D186: 4581.951799 | E186: Usuários
C187: De 101m² a 150m² | D187: 2775.37107 | E187: Usuários
C188: De 151m² a 300m² | D188: 2568.208355 | E188: Usuários
C189: De 301m² a 500m² | D189: 2233.0922 | E189: Usuários
C190: Acima de 501m² | D190: 356.4417291 | E190: Usuários
C192: Crescimento usuários
C193: Ano | D193: Un. | E193: 1 | F193: =E193+1 -> 2 | G193: =F193+1 -> 3 | H193: 4 | I193: 5 | J193: 6 | K193: 7 | L193: 8 | M193: 9 | N193: 10 | O193: 11 | P193: 12 | Q193: 13 | R193: 14 | S193: 15 | T193: 16 | U193: 17 | V193: 18 | W193: 19 | X193: 20 | Y193: 21 | Z193: 22 | AA193: 23 | AB193: 24 | AC193: 25 | AD193: 26 | AE193: 27 | AF193: 28 | AG193: =AF193+1 -> 29 | AH193: 30
C194: Crescimento usuários | D194: %/ano | E194: 0.01550350157 | F194: 0.01526681252 | G194: 0.01503724177 | H194: 0.01481447296 | I194: 0.0145982082 | J194: 0.01438816674 | K194: 0.01418408378 | L194: 0.01398570931 | M194: 0.01379280712 | N194: 0.01360515385 | O194: 0.01342253816 | P194: 0.01324475986 | Q194: 0.01307162927 | R194: 0.01290296648 | S194: 0.01273860074 | T194: 0.01257836991 | U194: 0.01242211989 | V194: 0.01226970415 | W194: 0.01212098327 | X194: 0.0119758245 | Y194: 0.01183410138 | Z194: 0.01169569336 | AA194: 0.01156048547 | AB194: 0.01142836799 | AC194: 0.01129923616 | AD194: 0.01117298991 | AE194: 0.01104953358 | AF194: 0.0109287757 | AG194: 0.01081062877 | AH194: 0.010695009

Sheet Ops
A1: OPERAÇÕES
C3: Ano de Concessão | G3: 1 | H3: =G3+1 -> 2 | I3: =H3+1 -> 3 | J3: =I3+1 -> 4 | K3: =J3+1 -> 5 | L3: =K3+1 -> 6 | M3: =L3+1 -> 7 | N3: =M3+1 -> 8 | O3: =N3+1 -> 9 | P3: =O3+1 -> 10 | Q3: =P3+1 -> 11 | R3: =Q3+1 -> 12 | S3: =R3+1 -> 13 | T3: =S3+1 -> 14 | U3: =T3+1 -> 15 | V3: =U3+1 -> 16 | W3: =V3+1 -> 17 | X3: =W3+1 -> 18 | Y3: =X3+1 -> 19 | Z3: =Y3+1 -> 20 | AA3: =Z3+1 -> 21 | AB3: =AA3+1 -> 22 | AC3: =AB3+1 -> 23 | AD3: =AC3+1 -> 24 | AE3: =AD3+1 -> 25 | AF3: =AE3+1 -> 26 | AG3: =AF3+1 -> 27 | AH3: =AG3+1 -> 28 | AI3: =AH3+1 -> 29 | AJ3: =AI3+1 -> 30
D6: Inputs | E6: Units | F6: Total
C8: Correção Monetária
C10: Ano de Operação | E10: Ano | G10: 1 | H10: =G10+1 -> 2 | I10: =H10+1 -> 3 | J10: 4 | K10: 5 | L10: 6 | M10: 7 | N10: 8 | O10: 9 | P10: 10 | Q10: 11 | R10: 12 | S10: 13 | T10: 14 | U10: 15 | V10: 16 | W10: 17 | X10: 18 | Y10: 19 | Z10: 20 | AA10: 21 | AB10: 22 | AC10: 23 | AD10: 24 | AE10: 25 | AF10: 26 | AG10: 27 | AH10: 28 | AI10: 29 | AJ10: 30
C11: Dias no período | E11: Dias | G11: 365 | H11: 365 | I11: 365 | J11: 365 | K11: 366 | L11: 365 | M11: 365 | N11: 365 | O11: 366 | P11: 365 | Q11: 365 | R11: 365 | S11: 366 | T11: 365 | U11: 365 | V11: 365 | W11: 366 | X11: 365 | Y11: 365 | Z11: 365 | AA11: 366 | AB11: 365 | AC11: 365 | AD11: 365 | AE11: 366 | AF11: 365 | AG11: 365 | AH11: 365 | AI11: 366 | AJ11: 365
C12: Dias no ano | E12: Dias | G12: 366 | H12: 365 | I12: 365 | J12: 365 | K12: 366 | L12: 365 | M12: 365 | N12: 365 | O12: 366 | P12: 365 | Q12: 365 | R12: 365 | S12: 366 | T12: 365 | U12: 365 | V12: 365 | W12: 366 | X12: 365 | Y12: 365 | Z12: 365 | AA12: 366 | AB12: 365 | AC12: 365 | AD12: 365 | AE12: 366 | AF12: 365 | AG12: 365 | AH12: 365 | AI12: 366 | AJ12: 365
C14: Correção
C15: % p.a
C16: =Inputs!C171 -> None | E16: % p.a | G16: =LOOKUP(G$10,Inputs!$G$170:$K$170,Inputs!$G171:$K171) -> 0 | H16: =LOOKUP(H$10,Inputs!$G$170:$K$170,Inputs!$G171:$K171) -> 0 | I16: =LOOKUP(I$10,Inputs!$G$170:$K$170,Inputs!$G171:$K171) -> 0 | J16: =LOOKUP(J$10,Inputs!$G$170:$K$170,Inputs!$G171:$K171) -> 0 | K16: =LOOKUP(K$10,Inputs!$G$170:$K$170,Inputs!$G171:$K171) -> 0 | L16: =LOOKUP(L$10,Inputs!$G$170:$K$170,Inputs!$G171:$K171) -> 0 | M16: =LOOKUP(M$10,Inputs!$G$170:$K$170,Inputs!$G171:$K171) -> 0 | N16: =LOOKUP(N$10,Inputs!$G$170:$K$170,Inputs!$G171:$K171) -> 0 | O16: =LOOKUP(O$10,Inputs!$G$170:$K$170,Inputs!$G171:$K171) -> 0 | P16: =LOOKUP(P$10,Inputs!$G$170:$K$170,Inputs!$G171:$K171) -> 0 | Q16: =LOOKUP(Q$10,Inputs!$G$170:$K$170,Inputs!$G171:$K171) -> 0 | R16: =LOOKUP(R$10,Inputs!$G$170:$K$170,Inputs!$G171:$K171) -> 0 | S16: =LOOKUP(S$10,Inputs!$G$170:$K$170,Inputs!$G171:$K171) -> 0 | T16: =LOOKUP(T$10,Inputs!$G$170:$K$170,Inputs!$G171:$K171) -> 0 | U16: =LOOKUP(U$10,Inputs!$G$170:$K$170,Inputs!$G171:$K171) -> 0 | V16: =LOOKUP(V$10,Inputs!$G$170:$K$170,Inputs!$G171:$K171) -> 0 | W16: =LOOKUP(W$10,Inputs!$G$170:$K$170,Inputs!$G171:$K171) -> 0 | X16: =LOOKUP(X$10,Inputs!$G$170:$K$170,Inputs!$G171:$K171) -> 0 | Y16: =LOOKUP(Y$10,Inputs!$G$170:$K$170,Inputs!$G171:$K171) -> 0 | Z16: =LOOKUP(Z$10,Inputs!$G$170:$K$170,Inputs!$G171:$K171) -> 0 | AA16: =LOOKUP(AA$10,Inputs!$G$170:$K$170,Inputs!$G171:$K171) -> 0 | AB16: =LOOKUP(AB$10,Inputs!$G$170:$K$170,Inputs!$G171:$K171) -> 0 | AC16: =LOOKUP(AC$10,Inputs!$G$170:$K$170,Inputs!$G171:$K171) -> 0 | AD16: =LOOKUP(AD$10,Inputs!$G$170:$K$170,Inputs!$G171:$K171) -> 0 | AE16: =LOOKUP(AE$10,Inputs!$G$170:$K$170,Inputs!$G171:$K171) -> 0 | AF16: =LOOKUP(AF$10,Inputs!$G$170:$K$170,Inputs!$G171:$K171) -> 0 | AG16: =LOOKUP(AG$10,Inputs!$G$170:$K$170,Inputs!$G171:$K171) -> 0 | AH16: =LOOKUP(AH$10,Inputs!$G$170:$K$170,Inputs!$G171:$K171) -> 0 | AI16: =LOOKUP(AI$10,Inputs!$G$170:$K$170,Inputs!$G171:$K171) -> 0 | AJ16: =LOOKUP(AJ$10,Inputs!$G$170:$K$170,Inputs!$G171:$K171) -> 0
C17: =Inputs!C172 -> IGP-M | E17: % p.a | G17: =LOOKUP(G$10,Inputs!$G$170:$K$170,Inputs!$G172:$K172) -> -0.0008 | H17: =LOOKUP(H$10,Inputs!$G$170:$K$170,Inputs!$G172:$K172) -> 0.041 | I17: =LOOKUP(I$10,Inputs!$G$170:$K$170,Inputs!$G172:$K172) -> 0.04 | J17: =LOOKUP(J$10,Inputs!$G$170:$K$170,Inputs!$G172:$K172) -> 0.04 | K17: =LOOKUP(K$10,Inputs!$G$170:$K$170,Inputs!$G172:$K172) -> 0.04 | L17: =LOOKUP(L$10,Inputs!$G$170:$K$170,Inputs!$G172:$K172) -> 0.04 | M17: =LOOKUP(M$10,Inputs!$G$170:$K$170,Inputs!$G172:$K172) -> 0.04 | N17: =LOOKUP(N$10,Inputs!$G$170:$K$170,Inputs!$G172:$K172) -> 0.04 | O17: =LOOKUP(O$10,Inputs!$G$170:$K$170,Inputs!$G172:$K172) -> 0.04 | P17: =LOOKUP(P$10,Inputs!$G$170:$K$170,Inputs!$G172:$K172) -> 0.04 | Q17: =LOOKUP(Q$10,Inputs!$G$170:$K$170,Inputs!$G172:$K172) -> 0.04 | R17: =LOOKUP(R$10,Inputs!$G$170:$K$170,Inputs!$G172:$K172) -> 0.04 | S17: =LOOKUP(S$10,Inputs!$G$170:$K$170,Inputs!$G172:$K172) -> 0.04 | T17: =LOOKUP(T$10,Inputs!$G$170:$K$170,Inputs!$G172:$K172) -> 0.04 | U17: =LOOKUP(U$10,Inputs!$G$170:$K$170,Inputs!$G172:$K172) -> 0.04 | V17: =LOOKUP(V$10,Inputs!$G$170:$K$170,Inputs!$G172:$K172) -> 0.04 | W17: =LOOKUP(W$10,Inputs!$G$170:$K$170,Inputs!$G172:$K172) -> 0.04 | X17: =LOOKUP(X$10,Inputs!$G$170:$K$170,Inputs!$G172:$K172) -> 0.04 | Y17: =LOOKUP(Y$10,Inputs!$G$170:$K$170,Inputs!$G172:$K172) -> 0.04 | Z17: =LOOKUP(Z$10,Inputs!$G$170:$K$170,Inputs!$G172:$K172) -> 0.04 | AA17: =LOOKUP(AA$10,Inputs!$G$170:$K$170,Inputs!$G172:$K172) -> 0.04 | AB17: =LOOKUP(AB$10,Inputs!$G$170:$K$170,Inputs!$G172:$K172) -> 0.04 | AC17: =LOOKUP(AC$10,Inputs!$G$170:$K$170,Inputs!$G172:$K172) -> 0.04 | AD17: =LOOKUP(AD$10,Inputs!$G$170:$K$170,Inputs!$G172:$K172) -> 0.04 | AE17: =LOOKUP(AE$10,Inputs!$G$170:$K$170,Inputs!$G172:$K172) -> 0.04 | AF17: =LOOKUP(AF$10,Inputs!$G$170:$K$170,Inputs!$G172:$K172) -> 0.04 | AG17: =LOOKUP(AG$10,Inputs!$G$170:$K$170,Inputs!$G172:$K172) -> 0.04 | AH17: =LOOKUP(AH$10,Inputs!$G$170:$K$170,Inputs!$G172:$K172) -> 0.04 | AI17: =LOOKUP(AI$10,Inputs!$G$170:$K$170,Inputs!$G172:$K172) -> 0.04 | AJ17: =LOOKUP(AJ$10,Inputs!$G$170:$K$170,Inputs!$G172:$K172) -> 0.04
C18: =Inputs!C173 -> PIB | E18: % p.a | G18: =LOOKUP(G$10,Inputs!$G$170:$K$170,Inputs!$G173:$K173) -> 0.0168 | H18: =LOOKUP(H$10,Inputs!$G$170:$K$170,Inputs!$G173:$K173) -> 0.0128 | I18: =LOOKUP(I$10,Inputs!$G$170:$K$170,Inputs!$G173:$K173) -> 0.017 | J18: =LOOKUP(J$10,Inputs!$G$170:$K$170,Inputs!$G173:$K173) -> 0.019 | K18: =LOOKUP(K$10,Inputs!$G$170:$K$170,Inputs!$G173:$K173) -> 0.019 | L18: =LOOKUP(L$10,Inputs!$G$170:$K$170,Inputs!$G173:$K173) -> 0.019 | M18: =LOOKUP(M$10,Inputs!$G$170:$K$170,Inputs!$G173:$K173) -> 0.019 | N18: =LOOKUP(N$10,Inputs!$G$170:$K$170,Inputs!$G173:$K173) -> 0.019 | O18: =LOOKUP(O$10,Inputs!$G$170:$K$170,Inputs!$G173:$K173) -> 0.019 | P18: =LOOKUP(P$10,Inputs!$G$170:$K$170,Inputs!$G173:$K173) -> 0.019 | Q18: =LOOKUP(Q$10,Inputs!$G$170:$K$170,Inputs!$G173:$K173) -> 0.019 | R18: =LOOKUP(R$10,Inputs!$G$170:$K$170,Inputs!$G173:$K173) -> 0.019 | S18: =LOOKUP(S$10,Inputs!$G$170:$K$170,Inputs!$G173:$K173) -> 0.019 | T18: =LOOKUP(T$10,Inputs!$G$170:$K$170,Inputs!$G173:$K173) -> 0.019 | U18: =LOOKUP(U$10,Inputs!$G$170:$K$170,Inputs!$G173:$K173) -> 0.019 | V18: =LOOKUP(V$10,Inputs!$G$170:$K$170,Inputs!$G173:$K173) -> 0.019 | W18: =LOOKUP(W$10,Inputs!$G$170:$K$170,Inputs!$G173:$K173) -> 0.019 | X18: =LOOKUP(X$10,Inputs!$G$170:$K$170,Inputs!$G173:$K173) -> 0.019 | Y18: =LOOKUP(Y$10,Inputs!$G$170:$K$170,Inputs!$G173:$K173) -> 0.019 | Z18: =LOOKUP(Z$10,Inputs!$G$170:$K$170,Inputs!$G173:$K173) -> 0.019 | AA18: =LOOKUP(AA$10,Inputs!$G$170:$K$170,Inputs!$G173:$K173) -> 0.019 | AB18: =LOOKUP(AB$10,Inputs!$G$170:$K$170,Inputs!$G173:$K173) -> 0.019 | AC18: =LOOKUP(AC$10,Inputs!$G$170:$K$170,Inputs!$G173:$K173) -> 0.019 | AD18: =LOOKUP(AD$10,Inputs!$G$170:$K$170,Inputs!$G173:$K173) -> 0.019 | AE18: =LOOKUP(AE$10,Inputs!$G$170:$K$170,Inputs!$G173:$K173) -> 0.019 | AF18: =LOOKUP(AF$10,Inputs!$G$170:$K$170,Inputs!$G173:$K173) -> 0.019 | AG18: =LOOKUP(AG$10,Inputs!$G$170:$K$170,Inputs!$G173:$K173) -> 0.019 | AH18: =LOOKUP(AH$10,Inputs!$G$170:$K$170,Inputs!$G173:$K173) -> 0.019 | AI18: =LOOKUP(AI$10,Inputs!$G$170:$K$170,Inputs!$G173:$K173) -> 0.019 | AJ18: =LOOKUP(AJ$10,Inputs!$G$170:$K$170,Inputs!$G173:$K173) -> 0.019
C19: =Inputs!C174 -> PIB Serviços | E19: % p.a | G19: =LOOKUP(G$10,Inputs!$G$170:$K$170,Inputs!$G174:$K174) -> 0.0177 | H19: =LOOKUP(H$10,Inputs!$G$170:$K$170,Inputs!$G174:$K174) -> 0.0169 | I19: =LOOKUP(I$10,Inputs!$G$170:$K$170,Inputs!$G174:$K174) -> 0.0169 | J19: =LOOKUP(J$10,Inputs!$G$170:$K$170,Inputs!$G174:$K174) -> 0.0169 | K19: =LOOKUP(K$10,Inputs!$G$170:$K$170,Inputs!$G174:$K174) -> 0.0169 | L19: =LOOKUP(L$10,Inputs!$G$170:$K$170,Inputs!$G174:$K174) -> 0.0169 | M19: =LOOKUP(M$10,Inputs!$G$170:$K$170,Inputs!$G174:$K174) -> 0.0169 | N19: =LOOKUP(N$10,Inputs!$G$170:$K$170,Inputs!$G174:$K174) -> 0.0169 | O19: =LOOKUP(O$10,Inputs!$G$170:$K$170,Inputs!$G174:$K174) -> 0.0169 | P19: =LOOKUP(P$10,Inputs!$G$170:$K$170,Inputs!$G174:$K174) -> 0.0169 | Q19: =LOOKUP(Q$10,Inputs!$G$170:$K$170,Inputs!$G174:$K174) -> 0.0169 | R19: =LOOKUP(R$10,Inputs!$G$170:$K$170,Inputs!$G174:$K174) -> 0.0169 | S19: =LOOKUP(S$10,Inputs!$G$170:$K$170,Inputs!$G174:$K174) -> 0.0169 | T19: =LOOKUP(T$10,Inputs!$G$170:$K$170,Inputs!$G174:$K174) -> 0.0169 | U19: =LOOKUP(U$10,Inputs!$G$170:$K$170,Inputs!$G174:$K174) -> 0.0169 | V19: =LOOKUP(V$10,Inputs!$G$170:$K$170,Inputs!$G174:$K174) -> 0.0169 | W19: =LOOKUP(W$10,Inputs!$G$170:$K$170,Inputs!$G174:$K174) -> 0.0169 | X19: =LOOKUP(X$10,Inputs!$G$170:$K$170,Inputs!$G174:$K174) -> 0.0169 | Y19: =LOOKUP(Y$10,Inputs!$G$170:$K$170,Inputs!$G174:$K174) -> 0.0169 | Z19: =LOOKUP(Z$10,Inputs!$G$170:$K$170,Inputs!$G174:$K174) -> 0.0169 | AA19: =LOOKUP(AA$10,Inputs!$G$170:$K$170,Inputs!$G174:$K174) -> 0.0169 | AB19: =LOOKUP(AB$10,Inputs!$G$170:$K$170,Inputs!$G174:$K174) -> 0.0169 | AC19: =LOOKUP(AC$10,Inputs!$G$170:$K$170,Inputs!$G174:$K174) -> 0.0169 | AD19: =LOOKUP(AD$10,Inputs!$G$170:$K$170,Inputs!$G174:$K174) -> 0.0169 | AE19: =LOOKUP(AE$10,Inputs!$G$170:$K$170,Inputs!$G174:$K174) -> 0.0169 | AF19: =LOOKUP(AF$10,Inputs!$G$170:$K$170,Inputs!$G174:$K174) -> 0.0169 | AG19: =LOOKUP(AG$10,Inputs!$G$170:$K$170,Inputs!$G174:$K174) -> 0.0169 | AH19: =LOOKUP(AH$10,Inputs!$G$170:$K$170,Inputs!$G174:$K174) -> 0.0169 | AI19: =LOOKUP(AI$10,Inputs!$G$170:$K$170,Inputs!$G174:$K174) -> 0.0169 | AJ19: =LOOKUP(AJ$10,Inputs!$G$170:$K$170,Inputs!$G174:$K174) -> 0.0169
C20: =Inputs!C175 -> CPI US | E20: % p.a | G20: =LOOKUP(G$10,Inputs!$G$170:$K$170,Inputs!$G175:$K175) -> 0.004 | H20: =LOOKUP(H$10,Inputs!$G$170:$K$170,Inputs!$G175:$K175) -> 0.004 | I20: =LOOKUP(I$10,Inputs!$G$170:$K$170,Inputs!$G175:$K175) -> 0.004 | J20: =LOOKUP(J$10,Inputs!$G$170:$K$170,Inputs!$G175:$K175) -> 0.004 | K20: =LOOKUP(K$10,Inputs!$G$170:$K$170,Inputs!$G175:$K175) -> 0.004 | L20: =LOOKUP(L$10,Inputs!$G$170:$K$170,Inputs!$G175:$K175) -> 0.004 | M20: =LOOKUP(M$10,Inputs!$G$170:$K$170,Inputs!$G175:$K175) -> 0.004 | N20: =LOOKUP(N$10,Inputs!$G$170:$K$170,Inputs!$G175:$K175) -> 0.004 | O20: =LOOKUP(O$10,Inputs!$G$170:$K$170,Inputs!$G175:$K175) -> 0.004 | P20: =LOOKUP(P$10,Inputs!$G$170:$K$170,Inputs!$G175:$K175) -> 0.004 | Q20: =LOOKUP(Q$10,Inputs!$G$170:$K$170,Inputs!$G175:$K175) -> 0.004 | R20: =LOOKUP(R$10,Inputs!$G$170:$K$170,Inputs!$G175:$K175) -> 0.004 | S20: =LOOKUP(S$10,Inputs!$G$170:$K$170,Inputs!$G175:$K175) -> 0.004 | T20: =LOOKUP(T$10,Inputs!$G$170:$K$170,Inputs!$G175:$K175) -> 0.004 | U20: =LOOKUP(U$10,Inputs!$G$170:$K$170,Inputs!$G175:$K175) -> 0.004 | V20: =LOOKUP(V$10,Inputs!$G$170:$K$170,Inputs!$G175:$K175) -> 0.004 | W20: =LOOKUP(W$10,Inputs!$G$170:$K$170,Inputs!$G175:$K175) -> 0.004 | X20: =LOOKUP(X$10,Inputs!$G$170:$K$170,Inputs!$G175:$K175) -> 0.004 | Y20: =LOOKUP(Y$10,Inputs!$G$170:$K$170,Inputs!$G175:$K175) -> 0.004 | Z20: =LOOKUP(Z$10,Inputs!$G$170:$K$170,Inputs!$G175:$K175) -> 0.004 | AA20: =LOOKUP(AA$10,Inputs!$G$170:$K$170,Inputs!$G175:$K175) -> 0.004 | AB20: =LOOKUP(AB$10,Inputs!$G$170:$K$170,Inputs!$G175:$K175) -> 0.004 | AC20: =LOOKUP(AC$10,Inputs!$G$170:$K$170,Inputs!$G175:$K175) -> 0.004 | AD20: =LOOKUP(AD$10,Inputs!$G$170:$K$170,Inputs!$G175:$K175) -> 0.004 | AE20: =LOOKUP(AE$10,Inputs!$G$170:$K$170,Inputs!$G175:$K175) -> 0.004 | AF20: =LOOKUP(AF$10,Inputs!$G$170:$K$170,Inputs!$G175:$K175) -> 0.004 | AG20: =LOOKUP(AG$10,Inputs!$G$170:$K$170,Inputs!$G175:$K175) -> 0.004 | AH20: =LOOKUP(AH$10,Inputs!$G$170:$K$170,Inputs!$G175:$K175) -> 0.004 | AI20: =LOOKUP(AI$10,Inputs!$G$170:$K$170,Inputs!$G175:$K175) -> 0.004 | AJ20: =LOOKUP(AJ$10,Inputs!$G$170:$K$170,Inputs!$G175:$K175) -> 0.004
C21: =Inputs!C176 -> SELIC | E21: % p.a | G21: =LOOKUP(G$10,Inputs!$G$170:$K$170,Inputs!$G176:$K176) -> 0.125 | H21: =LOOKUP(H$10,Inputs!$G$170:$K$170,Inputs!$G176:$K176) -> 0.1 | I21: =LOOKUP(I$10,Inputs!$G$170:$K$170,Inputs!$G176:$K176) -> 0.09 | J21: =LOOKUP(J$10,Inputs!$G$170:$K$170,Inputs!$G176:$K176) -> 0.09 | K21: =LOOKUP(K$10,Inputs!$G$170:$K$170,Inputs!$G176:$K176) -> 0.09 | L21: =LOOKUP(L$10,Inputs!$G$170:$K$170,Inputs!$G176:$K176) -> 0.09 | M21: =LOOKUP(M$10,Inputs!$G$170:$K$170,Inputs!$G176:$K176) -> 0.09 | N21: =LOOKUP(N$10,Inputs!$G$170:$K$170,Inputs!$G176:$K176) -> 0.09 | O21: =LOOKUP(O$10,Inputs!$G$170:$K$170,Inputs!$G176:$K176) -> 0.09 | P21: =LOOKUP(P$10,Inputs!$G$170:$K$170,Inputs!$G176:$K176) -> 0.09 | Q21: =LOOKUP(Q$10,Inputs!$G$170:$K$170,Inputs!$G176:$K176) -> 0.09 | R21: =LOOKUP(R$10,Inputs!$G$170:$K$170,Inputs!$G176:$K176) -> 0.09 | S21: =LOOKUP(S$10,Inputs!$G$170:$K$170,Inputs!$G176:$K176) -> 0.09 | T21: =LOOKUP(T$10,Inputs!$G$170:$K$170,Inputs!$G176:$K176) -> 0.09 | U21: =LOOKUP(U$10,Inputs!$G$170:$K$170,Inputs!$G176:$K176) -> 0.09 | V21: =LOOKUP(V$10,Inputs!$G$170:$K$170,Inputs!$G176:$K176) -> 0.09 | W21: =LOOKUP(W$10,Inputs!$G$170:$K$170,Inputs!$G176:$K176) -> 0.09 | X21: =LOOKUP(X$10,Inputs!$G$170:$K$170,Inputs!$G176:$K176) -> 0.09 | Y21: =LOOKUP(Y$10,Inputs!$G$170:$K$170,Inputs!$G176:$K176) -> 0.09 | Z21: =LOOKUP(Z$10,Inputs!$G$170:$K$170,Inputs!$G176:$K176) -> 0.09 | AA21: =LOOKUP(AA$10,Inputs!$G$170:$K$170,Inputs!$G176:$K176) -> 0.09 | AB21: =LOOKUP(AB$10,Inputs!$G$170:$K$170,Inputs!$G176:$K176) -> 0.09 | AC21: =LOOKUP(AC$10,Inputs!$G$170:$K$170,Inputs!$G176:$K176) -> 0.09 | AD21: =LOOKUP(AD$10,Inputs!$G$170:$K$170,Inputs!$G176:$K176) -> 0.09 | AE21: =LOOKUP(AE$10,Inputs!$G$170:$K$170,Inputs!$G176:$K176) -> 0.09 | AF21: =LOOKUP(AF$10,Inputs!$G$170:$K$170,Inputs!$G176:$K176) -> 0.09 | AG21: =LOOKUP(AG$10,Inputs!$G$170:$K$170,Inputs!$G176:$K176) -> 0.09 | AH21: =LOOKUP(AH$10,Inputs!$G$170:$K$170,Inputs!$G176:$K176) -> 0.09 | AI21: =LOOKUP(AI$10,Inputs!$G$170:$K$170,Inputs!$G176:$K176) -> 0.09 | AJ21: =LOOKUP(AJ$10,Inputs!$G$170:$K$170,Inputs!$G176:$K176) -> 0.09
C22: =Inputs!C177 -> CDI | E22: % p.a | G22: =LOOKUP(G$10,Inputs!$G$170:$K$170,Inputs!$G177:$K177) -> 0.1237 | H22: =LOOKUP(H$10,Inputs!$G$170:$K$170,Inputs!$G177:$K177) -> 0.099 | I22: =LOOKUP(I$10,Inputs!$G$170:$K$170,Inputs!$G177:$K177) -> 0.094 | J22: =LOOKUP(J$10,Inputs!$G$170:$K$170,Inputs!$G177:$K177) -> 0.094 | K22: =LOOKUP(K$10,Inputs!$G$170:$K$170,Inputs!$G177:$K177) -> 0.094 | L22: =LOOKUP(L$10,Inputs!$G$170:$K$170,Inputs!$G177:$K177) -> 0.094 | M22: =LOOKUP(M$10,Inputs!$G$170:$K$170,Inputs!$G177:$K177) -> 0.094 | N22: =LOOKUP(N$10,Inputs!$G$170:$K$170,Inputs!$G177:$K177) -> 0.094 | O22: =LOOKUP(O$10,Inputs!$G$170:$K$170,Inputs!$G177:$K177) -> 0.094 | P22: =LOOKUP(P$10,Inputs!$G$170:$K$170,Inputs!$G177:$K177) -> 0.094 | Q22: =LOOKUP(Q$10,Inputs!$G$170:$K$170,Inputs!$G177:$K177) -> 0.094 | R22: =LOOKUP(R$10,Inputs!$G$170:$K$170,Inputs!$G177:$K177) -> 0.094 | S22: =LOOKUP(S$10,Inputs!$G$170:$K$170,Inputs!$G177:$K177) -> 0.094 | T22: =LOOKUP(T$10,Inputs!$G$170:$K$170,Inputs!$G177:$K177) -> 0.094 | U22: =LOOKUP(U$10,Inputs!$G$170:$K$170,Inputs!$G177:$K177) -> 0.094 | V22: =LOOKUP(V$10,Inputs!$G$170:$K$170,Inputs!$G177:$K177) -> 0.094 | W22: =LOOKUP(W$10,Inputs!$G$170:$K$170,Inputs!$G177:$K177) -> 0.094 | X22: =LOOKUP(X$10,Inputs!$G$170:$K$170,Inputs!$G177:$K177) -> 0.094 | Y22: =LOOKUP(Y$10,Inputs!$G$170:$K$170,Inputs!$G177:$K177) -> 0.094 | Z22: =LOOKUP(Z$10,Inputs!$G$170:$K$170,Inputs!$G177:$K177) -> 0.094 | AA22: =LOOKUP(AA$10,Inputs!$G$170:$K$170,Inputs!$G177:$K177) -> 0.094 | AB22: =LOOKUP(AB$10,Inputs!$G$170:$K$170,Inputs!$G177:$K177) -> 0.094 | AC22: =LOOKUP(AC$10,Inputs!$G$170:$K$170,Inputs!$G177:$K177) -> 0.094 | AD22: =LOOKUP(AD$10,Inputs!$G$170:$K$170,Inputs!$G177:$K177) -> 0.094 | AE22: =LOOKUP(AE$10,Inputs!$G$170:$K$170,Inputs!$G177:$K177) -> 0.094 | AF22: =LOOKUP(AF$10,Inputs!$G$170:$K$170,Inputs!$G177:$K177) -> 0.094 | AG22: =LOOKUP(AG$10,Inputs!$G$170:$K$170,Inputs!$G177:$K177) -> 0.094 | AH22: =LOOKUP(AH$10,Inputs!$G$170:$K$170,Inputs!$G177:$K177) -> 0.094 | AI22: =LOOKUP(AI$10,Inputs!$G$170:$K$170,Inputs!$G177:$K177) -> 0.094 | AJ22: =LOOKUP(AJ$10,Inputs!$G$170:$K$170,Inputs!$G177:$K177) -> 0.094
C23: =Inputs!C178 -> TLP | E23: % p.a | G23: =LOOKUP(G$10,Inputs!$G$170:$K$170,Inputs!$G178:$K178) -> 0.1138 | H23: =LOOKUP(H$10,Inputs!$G$170:$K$170,Inputs!$G178:$K178) -> 0.0981 | I23: =LOOKUP(I$10,Inputs!$G$170:$K$170,Inputs!$G178:$K178) -> 0.0969 | J23: =LOOKUP(J$10,Inputs!$G$170:$K$170,Inputs!$G178:$K178) -> 0.0969 | K23: =LOOKUP(K$10,Inputs!$G$170:$K$170,Inputs!$G178:$K178) -> 0.0969 | L23: =LOOKUP(L$10,Inputs!$G$170:$K$170,Inputs!$G178:$K178) -> 0.0969 | M23: =LOOKUP(M$10,Inputs!$G$170:$K$170,Inputs!$G178:$K178) -> 0.0969 | N23: =LOOKUP(N$10,Inputs!$G$170:$K$170,Inputs!$G178:$K178) -> 0.0969 | O23: =LOOKUP(O$10,Inputs!$G$170:$K$170,Inputs!$G178:$K178) -> 0.0969 | P23: =LOOKUP(P$10,Inputs!$G$170:$K$170,Inputs!$G178:$K178) -> 0.0969 | Q23: =LOOKUP(Q$10,Inputs!$G$170:$K$170,Inputs!$G178:$K178) -> 0.0969 | R23: =LOOKUP(R$10,Inputs!$G$170:$K$170,Inputs!$G178:$K178) -> 0.0969 | S23: =LOOKUP(S$10,Inputs!$G$170:$K$170,Inputs!$G178:$K178) -> 0.0969 | T23: =LOOKUP(T$10,Inputs!$G$170:$K$170,Inputs!$G178:$K178) -> 0.0969 | U23: =LOOKUP(U$10,Inputs!$G$170:$K$170,Inputs!$G178:$K178) -> 0.0969 | V23: =LOOKUP(V$10,Inputs!$G$170:$K$170,Inputs!$G178:$K178) -> 0.0969 | W23: =LOOKUP(W$10,Inputs!$G$170:$K$170,Inputs!$G178:$K178) -> 0.0969 | X23: =LOOKUP(X$10,Inputs!$G$170:$K$170,Inputs!$G178:$K178) -> 0.0969 | Y23: =LOOKUP(Y$10,Inputs!$G$170:$K$170,Inputs!$G178:$K178) -> 0.0969 | Z23: =LOOKUP(Z$10,Inputs!$G$170:$K$170,Inputs!$G178:$K178) -> 0.0969 | AA23: =LOOKUP(AA$10,Inputs!$G$170:$K$170,Inputs!$G178:$K178) -> 0.0969 | AB23: =LOOKUP(AB$10,Inputs!$G$170:$K$170,Inputs!$G178:$K178) -> 0.0969 | AC23: =LOOKUP(AC$10,Inputs!$G$170:$K$170,Inputs!$G178:$K178) -> 0.0969 | AD23: =LOOKUP(AD$10,Inputs!$G$170:$K$170,Inputs!$G178:$K178) -> 0.0969 | AE23: =LOOKUP(AE$10,Inputs!$G$170:$K$170,Inputs!$G178:$K178) -> 0.0969 | AF23: =LOOKUP(AF$10,Inputs!$G$170:$K$170,Inputs!$G178:$K178) -> 0.0969 | AG23: =LOOKUP(AG$10,Inputs!$G$170:$K$170,Inputs!$G178:$K178) -> 0.0969 | AH23: =LOOKUP(AH$10,Inputs!$G$170:$K$170,Inputs!$G178:$K178) -> 0.0969 | AI23: =LOOKUP(AI$10,Inputs!$G$170:$K$170,Inputs!$G178:$K178) -> 0.0969 | AJ23: =LOOKUP(AJ$10,Inputs!$G$170:$K$170,Inputs!$G178:$K178) -> 0.0969
C24: =Inputs!C179 -> IPCA | E24: % p.a | G24: =LOOKUP(G$10,Inputs!$G$170:$K$170,Inputs!$G179:$K179) -> 0.0569 | H24: =LOOKUP(H$10,Inputs!$G$170:$K$170,Inputs!$G179:$K179) -> 0.0412 | I24: =LOOKUP(I$10,Inputs!$G$170:$K$170,Inputs!$G179:$K179) -> 0.04 | J24: =LOOKUP(J$10,Inputs!$G$170:$K$170,Inputs!$G179:$K179) -> 0.04 | K24: =LOOKUP(K$10,Inputs!$G$170:$K$170,Inputs!$G179:$K179) -> 0.04 | L24: =LOOKUP(L$10,Inputs!$G$170:$K$170,Inputs!$G179:$K179) -> 0.04 | M24: =LOOKUP(M$10,Inputs!$G$170:$K$170,Inputs!$G179:$K179) -> 0.04 | N24: =LOOKUP(N$10,Inputs!$G$170:$K$170,Inputs!$G179:$K179) -> 0.04 | O24: =LOOKUP(O$10,Inputs!$G$170:$K$170,Inputs!$G179:$K179) -> 0.04 | P24: =LOOKUP(P$10,Inputs!$G$170:$K$170,Inputs!$G179:$K179) -> 0.04 | Q24: =LOOKUP(Q$10,Inputs!$G$170:$K$170,Inputs!$G179:$K179) -> 0.04 | R24: =LOOKUP(R$10,Inputs!$G$170:$K$170,Inputs!$G179:$K179) -> 0.04 | S24: =LOOKUP(S$10,Inputs!$G$170:$K$170,Inputs!$G179:$K179) -> 0.04 | T24: =LOOKUP(T$10,Inputs!$G$170:$K$170,Inputs!$G179:$K179) -> 0.04 | U24: =LOOKUP(U$10,Inputs!$G$170:$K$170,Inputs!$G179:$K179) -> 0.04 | V24: =LOOKUP(V$10,Inputs!$G$170:$K$170,Inputs!$G179:$K179) -> 0.04 | W24: =LOOKUP(W$10,Inputs!$G$170:$K$170,Inputs!$G179:$K179) -> 0.04 | X24: =LOOKUP(X$10,Inputs!$G$170:$K$170,Inputs!$G179:$K179) -> 0.04 | Y24: =LOOKUP(Y$10,Inputs!$G$170:$K$170,Inputs!$G179:$K179) -> 0.04 | Z24: =LOOKUP(Z$10,Inputs!$G$170:$K$170,Inputs!$G179:$K179) -> 0.04 | AA24: =LOOKUP(AA$10,Inputs!$G$170:$K$170,Inputs!$G179:$K179) -> 0.04 | AB24: =LOOKUP(AB$10,Inputs!$G$170:$K$170,Inputs!$G179:$K179) -> 0.04 | AC24: =LOOKUP(AC$10,Inputs!$G$170:$K$170,Inputs!$G179:$K179) -> 0.04 | AD24: =LOOKUP(AD$10,Inputs!$G$170:$K$170,Inputs!$G179:$K179) -> 0.04 | AE24: =LOOKUP(AE$10,Inputs!$G$170:$K$170,Inputs!$G179:$K179) -> 0.04 | AF24: =LOOKUP(AF$10,Inputs!$G$170:$K$170,Inputs!$G179:$K179) -> 0.04 | AG24: =LOOKUP(AG$10,Inputs!$G$170:$K$170,Inputs!$G179:$K179) -> 0.04 | AH24: =LOOKUP(AH$10,Inputs!$G$170:$K$170,Inputs!$G179:$K179) -> 0.04 | AI24: =LOOKUP(AI$10,Inputs!$G$170:$K$170,Inputs!$G179:$K179) -> 0.04 | AJ24: =LOOKUP(AJ$10,Inputs!$G$170:$K$170,Inputs!$G179:$K179) -> 0.04
C26: Index
C27: =C16 -> None | F27: =Inputs!E171 -> 1 | G27: =IFERROR(F27*(1+G16)^(G$11/G$12),1) -> 1 | H27: =IFERROR(G27*(1+H16)^(H$11/H$12),1) -> 1 | I27: 1 | J27: 1 | K27: 1 | L27: 1 | M27: 1 | N27: 1 | O27: 1 | P27: 1 | Q27: 1 | R27: 1 | S27: 1 | T27: 1 | U27: 1 | V27: 1 | W27: 1 | X27: 1 | Y27: 1 | Z27: 1 | AA27: 1 | AB27: 1 | AC27: 1 | AD27: 1 | AE27: 1 | AF27: 1 | AG27: 1 | AH27: 1 | AI27: 1 | AJ27: 1
C28: IGP-M | F28: =Inputs!E172 -> 1 | G28: =IFERROR(F28*(1+G17)^(G$11/G$12),1) -> 0.9992021849 | H28: 1.040169475 | I28: 1.081776253 | J28: 1.125047304 | K28: 1.170049196 | L28: 1.216851164 | M28: 1.26552521 | N28: 1.316146219 | O28: 1.368792067 | P28: 1.42354375 | Q28: 1.4804855 | R28: 1.53970492 | S28: 1.601293117 | T28: 1.665344841 | U28: 1.731958635 | V28: 1.801236981 | W28: 1.87328646 | X28: 1.948217918 | Y28: 2.026146635 | Z28: 2.1071925 | AA28: 2.1914802 | AB28: 2.279139408 | AC28: 2.370304985 | AD28: 2.465117184 | AE28: 2.563721871 | AF28: 2.666270746 | AG28: 2.772921576 | AH28: 2.883838439 | AI28: 2.999191977 | AJ28: 3.119159656
C29: PIB | F29: =Inputs!E173 -> 1 | G29: =IFERROR(F29*(1+G18)^(G$11/G$12),1) -> 1.016753716 | H29: 1.029768164 | I29: 1.047274222 | J29: 1.067172433 | K29: 1.087448709 | L29: 1.108110234 | M29: 1.129164329 | N29: 1.150618451 | O29: 1.172480201 | P29: 1.194757325 | Q29: 1.217457715 | R29: 1.240589411 | S29: 1.26416061 | T29: 1.288179661 | U29: 1.312655075 | V29: 1.337595521 | W29: 1.363009836 | X29: 1.388907023 | Y29: 1.415296257 | Z29: 1.442186886 | AA29: 1.469588436 | AB29: 1.497510617 | AC29: 1.525963318 | AD29: 1.554956621 | AE29: 1.584500797 | AF29: 1.614606312 | AG29: 1.645283832 | AH29: 1.676544225 | AI29: 1.708398565 | AJ29: 1.740858138
C30: PIB Serviços | F30: =Inputs!E174 -> 1 | G30: =IFERROR(F30*(1+G19)^(G$11/G$12),1) -> 1.017651215 | H30: 1.034849521 | I30: 1.052338477 | J30: 1.070122998 | K30: 1.088208076 | L30: 1.106598793 | M30: 1.125300312 | N30: 1.144317888 | O30: 1.16365686 | P30: 1.183322661 | Q30: 1.203320814 | R30: 1.223656936 | S30: 1.244336738 | T30: 1.265366029 | U30: 1.286750715 | V30: 1.308496802 | W30: 1.330610398 | X30: 1.353097713 | Y30: 1.375965065 | Z30: 1.399218874 | AA30: 1.422865673 | AB30: 1.446912103 | AC30: 1.471364918 | AD30: 1.496230985 | AE30: 1.521517289 | AF30: 1.547230931 | AG30: 1.573379133 | AH30: 1.599969241 | AI30: 1.627008721 | AJ30: 1.654505168
C31: CPI US | F31: =Inputs!E175 -> 1 | G31: =IFERROR(F31*(1+G20)^(G$11/G$12),1) -> 1.003989049 | H31: 1.008005005 | I31: 1.012037025 | J31: 1.016085174 | K31: 1.020149514 | L31: 1.024230112 | M31: 1.028327033 | N31: 1.032440341 | O31: 1.036570102 | P31: 1.040716383 | Q31: 1.044879248 | R31: 1.049058765 | S31: 1.053255 | T31: 1.05746802 | U31: 1.061697892 | V31: 1.065944684 | W31: 1.070208463 | X31: 1.074489297 | Y31: 1.078787254 | Z31: 1.083102403 | AA31: 1.087434812 | AB31: 1.091784552 | AC31: 1.09615169 | AD31: 1.100536297 | AE31: 1.104938442 | AF31: 1.109358195 | AG31: 1.113795628 | AH31: 1.118250811 | AI31: 1.122723814 | AJ31: 1.127214709
C32: SELIC | F32: =Inputs!E176 -> 1 | G32: =IFERROR(F32*(1+G21)^(G$11/G$12),1) -> 1.12463802 | H32: 1.237101822 | I32: 1.348440986 | J32: 1.469800675 | K32: 1.602082736 | L32: 1.746270182 | M32: 1.903434498 | N32: 2.074743603 | O32: 2.261470528 | P32: 2.465002875 | Q32: 2.686853134 | R32: 2.928669916 | S32: 3.192250208 | T32: 3.479552727 | U32: 3.792712472 | V32: 4.134056595 | W32: 4.506121688 | X32: 4.91167264 | Y32: 5.353723178 | Z32: 5.835558264 | AA32: 6.360758508 | AB32: 6.933226773 | AC32: 7.557217183 | AD32: 8.23736673 | AE32: 8.978729735 | AF32: 9.786815411 | AG32: 10.6676288 | AH32: 11.62771539 | AI32: 12.67420978 | AJ32: 13.81488866
C33: CDI | F33: =Inputs!E177 -> 1 | G33: =IFERROR(F33*(1+G22)^(G$11/G$12),1) -> 1.123341987 | H33: 1.234552844 | I33: 1.350600811 | J33: 1.477557288 | K33: 1.616447673 | L33: 1.768393754 | M33: 1.934622767 | N33: 2.116477307 | O33: 2.315426174 | P33: 2.533076234 | Q33: 2.7711854 | R33: 3.031676827 | S33: 3.316654449 | T33: 3.628419968 | U33: 3.969491444 | V33: 4.34262364 | W33: 4.750830262 | X33: 5.197408307 | Y33: 5.685964688 | Z33: 6.220445369 | AA33: 6.805167233 | AB33: 7.444852953 | AC33: 8.144669131 | AD33: 8.910268029 | AE33: 9.747833224 | AF33: 10.66412955 | AG33: 11.66655772 | AH33: 12.76321415 | AI33: 13.96295628 | AJ33: 15.27547417
C34: TLP | F34: =Inputs!E178 -> 1 | G34: =IFERROR(F34*(1+G23)^(G$11/G$12),1) -> 1.113472063 | H34: 1.222703672 | I34: 1.341183658 | J34: 1.471144354 | K34: 1.613698242 | L34: 1.770065602 | M34: 1.941584959 | N34: 2.129724541 | O34: 2.33609485 | P34: 2.56246244 | Q34: 2.810765051 | R34: 3.083128184 | S34: 3.381883305 | T34: 3.709587798 | U34: 4.069046855 | V34: 4.463337496 | W34: 4.895834899 | X34: 5.370241301 | Y34: 5.890617683 | Z34: 6.461418536 | AA34: 7.087529992 | AB34: 7.774311649 | AC34: 8.527642447 | AD34: 9.353971 | AE34: 10.26037079 | AF34: 11.25460072 | AG34: 12.34517153 | AH34: 13.54141865 | AI34: 14.85358212 | AJ34: 16.29289423
C35: IPCA | F35: =Inputs!E179 -> 1 | G35: =IFERROR(F35*(1+G24)^(G$11/G$12),1) -> 1.056740206 | H35: 1.100277903 | I35: 1.144289019 | J35: 1.19006058 | K35: 1.237663003 | L35: 1.287169523 | M35: 1.338656304 | N35: 1.392202556 | O35: 1.447890658 | P35: 1.505806284 | Q35: 1.566038536 | R35: 1.628680077 | S35: 1.69382728 | T35: 1.761580372 | U35: 1.832043586 | V35: 1.90532533 | W35: 1.981538343 | X35: 2.060799877 | Y35: 2.143231872 | Z35: 2.228961147 | AA35: 2.318119593 | AB35: 2.410844376 | AC35: 2.507278151 | AD35: 2.607569278 | AE35: 2.711872049 | AF35: 2.820346931 | AG35: 2.933160808 | AH35: 3.05048724 | AI35: 3.17250673 | AJ35: 3.299406999
C38: Receitas e Deduções
C40: Contraprestação Pública Mensal
C42: Contraprestação mensal máxima (CMM)
C44: 𝐶𝑀𝐴 = CONTRAPRESTAÇÃO MENSAL MÁXIMA
C46: =Inputs!C60 -> Contraprestação ano 01 | D46: =Inputs!D60 -> 14529 | E46: R$
C47: =Inputs!C63 -> Desconto contraprestação | D47: =Inputs!D63 -> 0 | E47: %
C48: Indicador | D48: 1 | E48: %
C51: Crescimneto Populacional | G51: =Inputs!E194 -> 0.01550350157 | H51: =Inputs!F194 -> 0.01526681252 | I51: =Inputs!G194 -> 0.01503724177 | J51: =Inputs!H194 -> 0.01481447296 | K51: =Inputs!I194 -> 0.0145982082 | L51: =Inputs!J194 -> 0.01438816674 | M51: =Inputs!K194 -> 0.01418408378 | N51: =Inputs!L194 -> 0.01398570931 | O51: =Inputs!M194 -> 0.01379280712 | P51: =Inputs!N194 -> 0.01360515385 | Q51: =Inputs!O194 -> 0.01342253816 | R51: =Inputs!P194 -> 0.01324475986 | S51: =Inputs!Q194 -> 0.01307162927 | T51: =Inputs!R194 -> 0.01290296648 | U51: =Inputs!S194 -> 0.01273860074 | V51: =Inputs!T194 -> 0.01257836991 | W51: =Inputs!U194 -> 0.01242211989 | X51: =Inputs!V194 -> 0.01226970415 | Y51: =Inputs!W194 -> 0.01212098327 | Z51: =Inputs!X194 -> 0.0119758245 | AA51: =Inputs!Y194 -> 0.01183410138 | AB51: =Inputs!Z194 -> 0.01169569336 | AC51: =Inputs!AA194 -> 0.01156048547 | AD51: =Inputs!AB194 -> 0.01142836799 | AE51: =Inputs!AC194 -> 0.01129923616 | AF51: =Inputs!AD194 -> 0.01117298991 | AG51: =Inputs!AE194 -> 0.01104953358 | AH51: =Inputs!AF194 -> 0.0109287757 | AI51: =Inputs!AG194 -> 0.01081062877 | AJ51: =Inputs!AH194 -> 0.010695009
C53: 𝐶𝑀𝐴1 = CONTRAPRESTAÇÃO MENSAL MÁXIMA
C54: Cons + Ops Flag | E54: Flag | G54: =IF(G55>=Inputs!$D$65,IF(G55<=Inputs!$E$8,1,0),0) -> 1 | H54: =IF(H55>=Inputs!$D$65,IF(H55<=Inputs!$E$8,1,0),0) -> 1 | I54: =IF(I55>=Inputs!$D$65,IF(I55<=Inputs!$E$8,1,0),0) -> 1 | J54: =IF(J55>=Inputs!$D$65,IF(J55<=Inputs!$E$8,1,0),0) -> 1 | K54: =IF(K55>=Inputs!$D$65,IF(K55<=Inputs!$E$8,1,0),0) -> 1 | L54: =IF(L55>=Inputs!$D$65,IF(L55<=Inputs!$E$8,1,0),0) -> 1 | M54: =IF(M55>=Inputs!$D$65,IF(M55<=Inputs!$E$8,1,0),0) -> 1 | N54: =IF(N55>=Inputs!$D$65,IF(N55<=Inputs!$E$8,1,0),0) -> 1 | O54: =IF(O55>=Inputs!$D$65,IF(O55<=Inputs!$E$8,1,0),0) -> 1 | P54: =IF(P55>=Inputs!$D$65,IF(P55<=Inputs!$E$8,1,0),0) -> 1 | Q54: =IF(Q55>=Inputs!$D$65,IF(Q55<=Inputs!$E$8,1,0),0) -> 1 | R54: =IF(R55>=Inputs!$D$65,IF(R55<=Inputs!$E$8,1,0),0) -> 1 | S54: =IF(S55>=Inputs!$D$65,IF(S55<=Inputs!$E$8,1,0),0) -> 1 | T54: =IF(T55>=Inputs!$D$65,IF(T55<=Inputs!$E$8,1,0),0) -> 1 | U54: =IF(U55>=Inputs!$D$65,IF(U55<=Inputs!$E$8,1,0),0) -> 1 | V54: =IF(V55>=Inputs!$D$65,IF(V55<=Inputs!$E$8,1,0),0) -> 1 | W54: =IF(W55>=Inputs!$D$65,IF(W55<=Inputs!$E$8,1,0),0) -> 1 | X54: =IF(X55>=Inputs!$D$65,IF(X55<=Inputs!$E$8,1,0),0) -> 1 | Y54: =IF(Y55>=Inputs!$D$65,IF(Y55<=Inputs!$E$8,1,0),0) -> 1 | Z54: =IF(Z55>=Inputs!$D$65,IF(Z55<=Inputs!$E$8,1,0),0) -> 1 | AA54: =IF(AA55>=Inputs!$D$65,IF(AA55<=Inputs!$E$8,1,0),0) -> 1 | AB54: =IF(AB55>=Inputs!$D$65,IF(AB55<=Inputs!$E$8,1,0),0) -> 1 | AC54: =IF(AC55>=Inputs!$D$65,IF(AC55<=Inputs!$E$8,1,0),0) -> 1 | AD54: =IF(AD55>=Inputs!$D$65,IF(AD55<=Inputs!$E$8,1,0),0) -> 1 | AE54: =IF(AE55>=Inputs!$D$65,IF(AE55<=Inputs!$E$8,1,0),0) -> 1 | AF54: =IF(AF55>=Inputs!$D$65,IF(AF55<=Inputs!$E$8,1,0),0) -> 1 | AG54: =IF(AG55>=Inputs!$D$65,IF(AG55<=Inputs!$E$8,1,0),0) -> 1 | AH54: =IF(AH55>=Inputs!$D$65,IF(AH55<=Inputs!$E$8,1,0),0) -> 1 | AI54: =IF(AI55>=Inputs!$D$65,IF(AI55<=Inputs!$E$8,1,0),0) -> 1 | AJ54: =IF(AJ55>=Inputs!$D$65,IF(AJ55<=Inputs!$E$8,1,0),0) -> 1
C55: Ano de concessão | E55: Ano | G55: =G3 -> 1 | H55: 2 | I55: 3 | J55: 4 | K55: 5 | L55: 6 | M55: 7 | N55: 8 | O55: 9 | P55: 10 | Q55: 11 | R55: 12 | S55: 13 | T55: 14 | U55: 15 | V55: 16 | W55: 17 | X55: 18 | Y55: 19 | Z55: 20 | AA55: 21 | AB55: 22 | AC55: 23 | AD55: 24 | AE55: 25 | AF55: 26 | AG55: 27 | AH55: 28 | AI55: 29 | AJ55: 30
C56: % de recebimento contraprestação | E56: % | G56: =LOOKUP(G55,Inputs!$D$72:$H$72,Inputs!$D$73:$H$73) -> 1.305251566 | H56: =LOOKUP(H55,Inputs!$D$72:$H$72,Inputs!$D$73:$H$73) -> 1 | I56: =LOOKUP(I55,Inputs!$D$72:$H$72,Inputs!$D$73:$H$73) -> 1 | J56: =LOOKUP(J55,Inputs!$D$72:$H$72,Inputs!$D$73:$H$73) -> 1 | K56: =LOOKUP(K55,Inputs!$D$72:$H$72,Inputs!$D$73:$H$73) -> 1 | L56: =LOOKUP(L55,Inputs!$D$72:$H$72,Inputs!$D$73:$H$73) -> 1 | M56: =LOOKUP(M55,Inputs!$D$72:$H$72,Inputs!$D$73:$H$73) -> 1 | N56: =LOOKUP(N55,Inputs!$D$72:$H$72,Inputs!$D$73:$H$73) -> 1 | O56: =LOOKUP(O55,Inputs!$D$72:$H$72,Inputs!$D$73:$H$73) -> 1 | P56: =LOOKUP(P55,Inputs!$D$72:$H$72,Inputs!$D$73:$H$73) -> 1 | Q56: =LOOKUP(Q55,Inputs!$D$72:$H$72,Inputs!$D$73:$H$73) -> 1 | R56: =LOOKUP(R55,Inputs!$D$72:$H$72,Inputs!$D$73:$H$73) -> 1 | S56: =LOOKUP(S55,Inputs!$D$72:$H$72,Inputs!$D$73:$H$73) -> 1 | T56: =LOOKUP(T55,Inputs!$D$72:$H$72,Inputs!$D$73:$H$73) -> 1 | U56: =LOOKUP(U55,Inputs!$D$72:$H$72,Inputs!$D$73:$H$73) -> 1 | V56: =LOOKUP(V55,Inputs!$D$72:$H$72,Inputs!$D$73:$H$73) -> 1 | W56: =LOOKUP(W55,Inputs!$D$72:$H$72,Inputs!$D$73:$H$73) -> 1 | X56: =LOOKUP(X55,Inputs!$D$72:$H$72,Inputs!$D$73:$H$73) -> 1 | Y56: =LOOKUP(Y55,Inputs!$D$72:$H$72,Inputs!$D$73:$H$73) -> 1 | Z56: =LOOKUP(Z55,Inputs!$D$72:$H$72,Inputs!$D$73:$H$73) -> 1 | AA56: =LOOKUP(AA55,Inputs!$D$72:$H$72,Inputs!$D$73:$H$73) -> 1 | AB56: =LOOKUP(AB55,Inputs!$D$72:$H$72,Inputs!$D$73:$H$73) -> 1 | AC56: =LOOKUP(AC55,Inputs!$D$72:$H$72,Inputs!$D$73:$H$73) -> 1 | AD56: =LOOKUP(AD55,Inputs!$D$72:$H$72,Inputs!$D$73:$H$73) -> 1 | AE56: =LOOKUP(AE55,Inputs!$D$72:$H$72,Inputs!$D$73:$H$73) -> 1 | AF56: =LOOKUP(AF55,Inputs!$D$72:$H$72,Inputs!$D$73:$H$73) -> 1 | AG56: =LOOKUP(AG55,Inputs!$D$72:$H$72,Inputs!$D$73:$H$73) -> 1 | AH56: =LOOKUP(AH55,Inputs!$D$72:$H$72,Inputs!$D$73:$H$73) -> 1 | AI56: =LOOKUP(AI55,Inputs!$D$72:$H$72,Inputs!$D$73:$H$73) -> 1 | AJ56: =LOOKUP(AJ55,Inputs!$D$72:$H$72,Inputs!$D$73:$H$73) -> 1
E57: $R$ | F57: =SUM(G57:AJ57) -> 521026.6429 | G57: =((($D$46*(1-$D$47)))*G54)*$D$48 -> 14529 | H57: =(((((G57)))*H54)*H56)+((((($D$46)*$D$48)*H54)*H56)*H51) -> 14750.81152 | I57: =(((((H57)))*I54)*I56)+((((($D$46)*$D$48)*I54)*I56)*I51) -> 14969.2876 | J57: 15184.52708 | K57: 15396.62445 | L57: 15605.67012 | M57: 15811.75068 | N57: 16014.94905 | O57: 16215.34474 | P57: 16413.01402 | Q57: 16608.03008 | R57: 16800.4632 | S57: 16990.3809 | T57: 17177.8481 | U57: 17362.92723 | V57: 17545.67836 | W57: 17726.15934 | X57: 17904.42587 | Y57: 18080.53164 | Z57: 18254.52839 | AA57: 18426.46605 | AB57: 18596.39278 | AC57: 18764.35508 | AD57: 18930.39783 | AE57: 19094.56444 | AF57: 19256.89681 | AG57: 19417.43548 | AH57: 19576.21966 | AI57: 19733.28729 | AJ57: 19888.67507
C61: Contraprestação mensal máxima (CMM) | E61: $R$ | F61: =SUM(G61:AJ61) -> 521026.6429 | G61: =G57 -> 14529 | H61: =H57 -> 14750.81152 | I61: 14969.2876 | J61: 15184.52708 | K61: 15396.62445 | L61: 15605.67012 | M61: 15811.75068 | N61: 16014.94905 | O61: 16215.34474 | P61: 16413.01402 | Q61: 16608.03008 | R61: 16800.4632 | S61: 16990.3809 | T61: 17177.8481 | U61: 17362.92723 | V61: 17545.67836 | W61: 17726.15934 | X61: 17904.42587 | Y61: 18080.53164 | Z61: 18254.52839 | AA61: 18426.46605 | AB61: 18596.39278 | AC61: 18764.35508 | AD61: 18930.39783 | AE61: 19094.56444 | AF61: 19256.89681 | AG61: 19417.43548 | AH61: 19576.21966 | AI61: 19733.28729 | AJ61: 19888.67507
C64: Fator de Desempenho
C65: =Inputs!C70 -> Fator de Desempenho | D65: =Inputs!D70 -> 1 | E65: Fator | G65: =IF(G61<>0,$D$65,0) -> 1 | H65: 1 | I65: 1 | J65: 1 | K65: 1 | L65: 1 | M65: 1 | N65: 1 | O65: 1 | P65: 1 | Q65: 1 | R65: 1 | S65: 1 | T65: 1 | U65: 1 | V65: 1 | W65: 1 | X65: 1 | Y65: 1 | Z65: 1 | AA65: 1 | AB65: 1 | AC65: 1 | AD65: 1 | AE65: 1 | AF65: 1 | AG65: 1 | AH65: 1 | AI65: 1 | AJ65: 1
C67: Contraprestação Transitória
C68: Contraprestação Transitória | D68: =Inputs!D61 -> 4435 | E68: $ 000s | F68: =SUM(G68:AJ68) -> 4435 | G68: =IF(G3=1,$D$68,0) -> 4435 | H68: 0 | I68: 0 | J68: 0 | K68: 0 | L68: 0 | M68: 0 | N68: 0 | O68: 0 | P68: 0 | Q68: 0 | R68: 0 | S68: 0 | T68: 0 | U68: 0 | V68: 0 | W68: 0 | X68: 0 | Y68: 0 | Z68: 0 | AA68: 0 | AB68: 0 | AC68: 0 | AD68: 0 | AE68: 0 | AF68: 0 | AG68: 0 | AH68: 0 | AI68: 0 | AJ68: 0
C71: Contraprestação anual
C72: Contraprestação total projetada | E72: $ 000s | F72: =SUM(G72:AJ72) -> 525461.6429 | G72: =(G61*G65)+G68 -> 18964 | H72: 14750.81152 | I72: 14969.2876 | J72: 15184.52708 | K72: 15396.62445 | L72: 15605.67012 | M72: 15811.75068 | N72: 16014.94905 | O72: 16215.34474 | P72: 16413.01402 | Q72: 16608.03008 | R72: 16800.4632 | S72: 16990.3809 | T72: 17177.8481 | U72: 17362.92723 | V72: 17545.67836 | W72: 17726.15934 | X72: 17904.42587 | Y72: 18080.53164 | Z72: 18254.52839 | AA72: 18426.46605 | AB72: 18596.39278 | AC72: 18764.35508 | AD72: 18930.39783 | AE72: 19094.56444 | AF72: 19256.89681 | AG72: 19417.43548 | AH72: 19576.21966 | AI72: 19733.28729 | AJ72: 19888.67507
C75: Receitas tarifárias
C77: Crescimento estimado usuários | E77: Crescimento unidades | G77: =Inputs!E194 -> 0.01550350157 | H77: =Inputs!F194 -> 0.01526681252 | I77: =Inputs!G194 -> 0.01503724177 | J77: =Inputs!H194 -> 0.01481447296 | K77: =Inputs!I194 -> 0.0145982082 | L77: =Inputs!J194 -> 0.01438816674 | M77: =Inputs!K194 -> 0.01418408378 | N77: =Inputs!L194 -> 0.01398570931 | O77: =Inputs!M194 -> 0.01379280712 | P77: =Inputs!N194 -> 0.01360515385 | Q77: =Inputs!O194 -> 0.01342253816 | R77: =Inputs!P194 -> 0.01324475986 | S77: =Inputs!Q194 -> 0.01307162927 | T77: =Inputs!R194 -> 0.01290296648 | U77: =Inputs!S194 -> 0.01273860074 | V77: =Inputs!T194 -> 0.01257836991 | W77: =Inputs!U194 -> 0.01242211989 | X77: =Inputs!V194 -> 0.01226970415 | Y77: =Inputs!W194 -> 0.01212098327 | Z77: =Inputs!X194 -> 0.0119758245 | AA77: =Inputs!Y194 -> 0.01183410138 | AB77: =Inputs!Z194 -> 0.01169569336 | AC77: =Inputs!AA194 -> 0.01156048547 | AD77: =Inputs!AB194 -> 0.01142836799 | AE77: =Inputs!AC194 -> 0.01129923616 | AF77: =Inputs!AD194 -> 0.01117298991 | AG77: =Inputs!AE194 -> 0.01104953358 | AH77: =Inputs!AF194 -> 0.0109287757 | AI77: =Inputs!AG194 -> 0.01081062877 | AJ77: =Inputs!AH194 -> 0.010695009
C79: Até 70m² | D79: 13554.94074 | E79: #/ano | F79: =SUM(G79:AJ79) -> 483112.5029 | G79: 0 | H79: =$D79*(1+H$77) -> 13761.88148 | I79: =H79*(1+I$77) -> 13968.82222 | J79: =I79*(1+J$77) -> 14175.76296 | K79: 14382.70369 | L79: 14589.64443 | M79: 14796.58517 | N79: 15003.52591 | O79: 15210.46665 | P79: 15417.40739 | Q79: 15624.34813 | R79: 15831.28887 | S79: 16038.22961 | T79: 16245.17035 | U79: 16452.11108 | V79: 16659.05182 | W79: 16865.99256 | X79: 17072.9333 | Y79: 17279.87404 | Z79: 17486.81478 | AA79: 17693.75552 | AB79: 17900.69626 | AC79: 18107.637 | AD79: 18314.57773 | AE79: 18521.51847 | AF79: 18728.45921 | AG79: 18935.39995 | AH79: 19142.34069 | AI79: 19349.28143 | AJ79: 19556.22217
C80: De 71m² a 100m² | D80: 4581.951799 | E80: #/ano | F80: 163305.6348 | G80: 0 | H80: 4651.903598 | I80: =H80*(1+I$77) -> 4721.855397 | J80: 4791.807196 | K80: 4861.758995 | L80: 4931.710794 | M80: 5001.662594 | N80: 5071.614393 | O80: 5141.566192 | P80: 5211.517991 | Q80: 5281.46979 | R80: 5351.421589 | S80: 5421.373388 | T80: 5491.325187 | U80: 5561.276986 | V80: 5631.228785 | W80: 5701.180584 | X80: 5771.132383 | Y80: 5841.084183 | Z80: 5911.035982 | AA80: 5980.987781 | AB80: 6050.93958 | AC80: 6120.891379 | AD80: 6190.843178 | AE80: 6260.794977 | AF80: 6330.746776 | AG80: 6400.698575 | AH80: 6470.650374 | AI80: 6540.602173 | AJ80: 6610.553972
C81: De 101m² a 150m² | D81: 2775.37107 | E81: #/ano | F81: 98917.17638 | G81: 0 | H81: =$D81*(1+H$77) -> 2817.74214 | I81: =H81*(1+I$77) -> 2860.113209 | J81: 2902.484279 | K81: 2944.855349 | L81: 2987.226419 | M81: 3029.597489 | N81: 3071.968558 | O81: 3114.339628 | P81: 3156.710698 | Q81: 3199.081768 | R81: 3241.452837 | S81: 3283.823907 | T81: 3326.194977 | U81: 3368.566047 | V81: 3410.937117 | W81: 3453.308186 | X81: 3495.679256 | Y81: 3538.050326 | Z81: 3580.421396 | AA81: 3622.792466 | AB81: 3665.163535 | AC81: 3707.534605 | AD81: 3749.905675 | AE81: 3792.276745 | AF81: 3834.647815 | AG81: 3877.018884 | AH81: 3919.389954 | AI81: 3961.761024 | AJ81: 4004.132094
C82: De 151m² a 300m² | D82: 2568.208355 | E82: #/ano | F82: 91533.67694 | G82: 0 | H82: 2607.416711 | I82: =H82*(1+I$77) -> 2646.625066 | J82: 2685.833422 | K82: 2725.041777 | L82: 2764.250133 | M82: 2803.458488 | N82: 2842.666844 | O82: 2881.875199 | P82: 2921.083555 | Q82: 2960.29191 | R82: 2999.500266 | S82: 3038.708621 | T82: 3077.916977 | U82: 3117.125332 | V82: 3156.333688 | W82: 3195.542043 | X82: 3234.750398 | Y82: 3273.958754 | Z82: 3313.167109 | AA82: 3352.375465 | AB82: 3391.58382 | AC82: 3430.792176 | AD82: 3470.000531 | AE82: 3509.208887 | AF82: 3548.417242 | AG82: 3587.625598 | AH82: 3626.833953 | AI82: 3666.042309 | AJ82: 3705.250664
C83: De 301m² a 500m² | D83: 2233.0922 | E83: #/ano | F83: 79589.78078 | G83: 0 | H83: 2267.1844 | I83: =H83*(1+I$77) -> 2301.2766 | J83: 2335.3688 | K83: 2369.461 | L83: 2403.5532 | M83: 2437.6454 | N83: 2471.7376 | O83: 2505.8298 | P83: 2539.922 | Q83: 2574.014199 | R83: 2608.106399 | S83: 2642.198599 | T83: 2676.290799 | U83: 2710.382999 | V83: 2744.475199 | W83: 2778.567399 | X83: 2812.659599 | Y83: 2846.751799 | Z83: 2880.843999 | AA83: 2914.936199 | AB83: 2949.028399 | AC83: 2983.120599 | AD83: 3017.212799 | AE83: 3051.304999 | AF83: 3085.397199 | AG83: 3119.489399 | AH83: 3153.581599 | AI83: 3187.673799 | AJ83: 3221.765999
C84: Acima de 501m² | D84: 356.4417291 | E84: #/ano | F84: 12703.96228 | G84: 0 | H84: 361.8834581 | I84: =H84*(1+I$77) -> 367.3251872 | J84: 372.7669162 | K84: 378.2086453 | L84: 383.6503743 | M84: 389.0921034 | N84: 394.5338324 | O84: 399.9755615 | P84: 405.4172905 | Q84: 410.8590196 | R84: 416.3007486 | S84: 421.7424777 | T84: 427.1842067 | U84: 432.6259358 | V84: 438.0676648 | W84: 443.5093939 | X84: 448.9511229 | Y84: 454.392852 | Z84: 459.834581 | AA84: 465.2763101 | AB84: 470.7180391 | AC84: 476.1597682 | AD84: 481.6014972 | AE84: 487.0432263 | AF84: 492.4849553 | AG84: 497.9266844 | AH84: 503.3684134 | AI84: 508.8101425 | AJ84: 514.2518715
C87: Tarifas aplicáveis
C88: Flag de aumento | F88: =SUM(G88:AJ88) -> 1 | G88: 0 | H88: 1 | I88: 0 | J88: 0 | K88: 0 | L88: 0 | M88: 0 | N88: 0 | O88: 0 | P88: 0 | Q88: 0 | R88: 0
C90: Aumento Real | D90: =Inputs!D84 -> 1 | F90: =SUM(G90:AJ90) -> 1 | G90: =IF(G88=1,$D90/$F$88,0) -> 0 | H90: =IF(H88=1,$D90/$F$88,0) -> 1 | I90: 0 | J90: 0 | K90: 0 | L90: 0 | M90: 0 | N90: 0 | O90: 0 | P90: 0 | Q90: =IF(Q88=1,$D90/$F$88,0) -> 0 | R90: 0 | S90: 0 | T90: 0 | U90: 0 | V90: 0 | W90: 0 | X90: 0 | Y90: 0 | Z90: 0 | AA90: 0 | AB90: 0 | AC90: 0 | AD90: 0 | AE90: 0 | AF90: 0 | AG90: 0 | AH90: 0 | AI90: 0 | AJ90: 0
C92: Desconto Aumento Real | D92: =Inputs!D63 -> 0 | F92: =SUM(G92:AJ92) -> 0 | G92: =IF(G88=1,G90*$D$92,0) -> 0 | H92: =IF(H88=1,H90*$D$92,0) -> 0 | I92: 0 | J92: 0 | K92: 0 | L92: 0 | M92: 0 | N92: 0 | O92: 0 | P92: 0 | Q92: 0 | R92: 0 | S92: 0 | T92: 0 | U92: 0 | V92: 0 | W92: 0 | X92: 0 | Y92: 0 | Z92: 0 | AA92: 0 | AB92: 0 | AC92: 0 | AD92: 0 | AE92: 0 | AF92: 0 | AG92: 0 | AH92: 0 | AI92: 0 | AJ92: 0
C94: Até 70m² | D94: =Inputs!D88 -> 150.37 | E94: Tarifa base | G94: =IF(AND(G$88=0,D94),$D94*(1+G$90-G$92),F94*(1+G$90-G$92)) -> 150.37 | H94: =IF(H$88=0,G94,G94*(1+H$90-H$92)) -> 300.74 | I94: =IF(I$88=0,H94,H94*(1+I$90-I$92)) -> 300.74 | J94: 300.74 | K94: 300.74 | L94: 300.74 | M94: 300.74 | N94: 300.74 | O94: 300.74 | P94: 300.74 | Q94: 300.74 | R94: 300.74 | S94: 300.74 | T94: 300.74 | U94: 300.74 | V94: 300.74 | W94: 300.74 | X94: 300.74 | Y94: 300.74 | Z94: 300.74 | AA94: 300.74 | AB94: 300.74 | AC94: 300.74 | AD94: 300.74 | AE94: 300.74 | AF94: 300.74 | AG94: 300.74 | AH94: 300.74 | AI94: 300.74 | AJ94: 300.74
C95: De 71m² a 100m² | D95: =Inputs!D89 -> 200.36 | E95: Tarifa base | G95: =IF(AND(G$88=0,D95),$D95*(1+G$90-G$92),F95*(1+G$90-G$92)) -> 200.36 | H95: =IF(H$88=0,G95,G95*(1+H$90-H$92)) -> 400.72 | I95: =IF(I$88=0,H95,H95*(1+I$90-I$92)) -> 400.72 | J95: 400.72 | K95: 400.72 | L95: 400.72 | M95: 400.72 | N95: 400.72 | O95: 400.72 | P95: 400.72 | Q95: 400.72 | R95: 400.72 | S95: 400.72 | T95: 400.72 | U95: 400.72 | V95: 400.72 | W95: 400.72 | X95: 400.72 | Y95: 400.72 | Z95: 400.72 | AA95: 400.72 | AB95: 400.72 | AC95: 400.72 | AD95: 400.72 | AE95: 400.72 | AF95: 400.72 | AG95: 400.72 | AH95: 400.72 | AI95: 400.72 | AJ95: 400.72
C96: De 101m² a 150m² | D96: =Inputs!D90 -> 250.62 | E96: Tarifa base | G96: 250.62 | H96: =IF(H$88=0,G96,G96*(1+H$90-H$92)) -> 501.24 | I96: =IF(I$88=0,H96,H96*(1+I$90-I$92)) -> 501.24 | J96: 501.24 | K96: 501.24 | L96: 501.24 | M96: 501.24 | N96: 501.24 | O96: 501.24 | P96: 501.24 | Q96: 501.24 | R96: 501.24 | S96: 501.24 | T96: 501.24 | U96: 501.24 | V96: 501.24 | W96: 501.24 | X96: 501.24 | Y96: 501.24 | Z96: 501.24 | AA96: 501.24 | AB96: 501.24 | AC96: 501.24 | AD96: 501.24 | AE96: 501.24 | AF96: 501.24 | AG96: 501.24 | AH96: 501.24 | AI96: 501.24 | AJ96: 501.24
C97: De 151m² a 300m² | D97: =Inputs!D91 -> 300.76 | E97: Tarifa base | G97: 300.76 | H97: 601.52 | I97: =IF(I$88=0,H97,H97*(1+I$90-I$92)) -> 601.52 | J97: 601.52 | K97: 601.52 | L97: 601.52 | M97: 601.52 | N97: 601.52 | O97: 601.52 | P97: 601.52 | Q97: 601.52 | R97: 601.52 | S97: 601.52 | T97: 601.52 | U97: 601.52 | V97: 601.52 | W97: 601.52 | X97: 601.52 | Y97: 601.52 | Z97: 601.52 | AA97: 601.52 | AB97: 601.52 | AC97: 601.52 | AD97: 601.52 | AE97: 601.52 | AF97: 601.52 | AG97: 601.52 | AH97: 601.52 | AI97: 601.52 | AJ97: 601.52
C98: De 301m² a 500m² | D98: =Inputs!D92 -> 401.02 | E98: Tarifa base | G98: 401.02 | H98: 802.04 | I98: =IF(I$88=0,H98,H98*(1+I$90-I$92)) -> 802.04 | J98: 802.04 | K98: 802.04 | L98: 802.04 | M98: 802.04 | N98: 802.04 | O98: 802.04 | P98: 802.04 | Q98: 802.04 | R98: 802.04 | S98: 802.04 | T98: 802.04 | U98: 802.04 | V98: 802.04 | W98: 802.04 | X98: 802.04 | Y98: 802.04 | Z98: 802.04 | AA98: 802.04 | AB98: 802.04 | AC98: 802.04 | AD98: 802.04 | AE98: 802.04 | AF98: 802.04 | AG98: 802.04 | AH98: 802.04 | AI98: 802.04 | AJ98: 802.04
C99: Acima de 501m² | D99: =Inputs!D93 -> 501.27 | E99: Tarifa base | G99: 501.27 | H99: 1002.54 | I99: =IF(I$88=0,H99,H99*(1+I$90-I$92)) -> 1002.54 | J99: 1002.54 | K99: 1002.54 | L99: 1002.54 | M99: 1002.54 | N99: 1002.54 | O99: 1002.54 | P99: 1002.54 | Q99: 1002.54 | R99: 1002.54 | S99: 1002.54 | T99: 1002.54 | U99: 1002.54 | V99: 1002.54 | W99: 1002.54 | X99: 1002.54 | Y99: 1002.54 | Z99: 1002.54 | AA99: 1002.54 | AB99: 1002.54 | AC99: 1002.54 | AD99: 1002.54 | AE99: 1002.54 | AF99: 1002.54 | AG99: 1002.54 | AH99: 1002.54 | AI99: 1002.54 | AJ99: 1002.54
C102: Receitas tarifárias
E103: $ 000s / m² | F103: =SUM(G103:AJ103) -> 391942.089 | G103: 0 | H103: =SUMPRODUCT(H79:H84,H94:H99)/1000 -> 11164.81263 | I103: 11332.70062 | J103: 11500.58861 | K103: 11668.47659 | L103: 11836.36458 | M103: 12004.25257 | N103: 12172.14055 | O103: 12340.02854 | P103: 12507.91653 | Q103: 12675.80452 | R103: 12843.6925 | S103: 13011.58049 | T103: 13179.46848 | U103: 13347.35646 | V103: 13515.24445 | W103: 13683.13244 | X103: 13851.02042 | Y103: 14018.90841 | Z103: 14186.7964 | AA103: 14354.68438 | AB103: 14522.57237 | AC103: 14690.46036 | AD103: 14858.34834 | AE103: 15026.23633 | AF103: 15194.12432 | AG103: 15362.01231 | AH103: 15529.90029 | AI103: 15697.78828 | AJ103: 15865.67627
C107: Deduções da Receita
C108: =C71 -> Contraprestação anual | E108: $ 000s | F108: =SUM(G108:AJ108) -> 525461.6429 | G108: =G72 -> 18964 | H108: 14750.81152 | I108: 14969.2876 | J108: 15184.52708 | K108: 15396.62445 | L108: 15605.67012 | M108: 15811.75068 | N108: 16014.94905 | O108: 16215.34474 | P108: 16413.01402 | Q108: 16608.03008 | R108: 16800.4632 | S108: 16990.3809 | T108: 17177.8481 | U108: 17362.92723 | V108: 17545.67836 | W108: 17726.15934 | X108: 17904.42587 | Y108: 18080.53164 | Z108: 18254.52839 | AA108: 18426.46605 | AB108: 18596.39278 | AC108: 18764.35508 | AD108: 18930.39783 | AE108: 19094.56444 | AF108: 19256.89681 | AG108: 19417.43548 | AH108: 19576.21966 | AI108: 19733.28729 | AJ108: 19888.67507
C109: Receita tarifária | E109: $ 000s | F109: =SUM(G109:AJ109) -> 391942.089 | G109: =SUM(G103:G103) -> 0 | H109: 11164.81263 | I109: 11332.70062 | J109: 11500.58861 | K109: 11668.47659 | L109: 11836.36458 | M109: 12004.25257 | N109: 12172.14055 | O109: 12340.02854 | P109: 12507.91653 | Q109: 12675.80452 | R109: 12843.6925 | S109: 13011.58049 | T109: 13179.46848 | U109: 13347.35646 | V109: 13515.24445 | W109: 13683.13244 | X109: 13851.02042 | Y109: 14018.90841 | Z109: 14186.7964 | AA109: 14354.68438 | AB109: 14522.57237 | AC109: 14690.46036 | AD109: 14858.34834 | AE109: 15026.23633 | AF109: 15194.12432 | AG109: 15362.01231 | AH109: 15529.90029 | AI109: 15697.78828 | AJ109: 15865.67627
C111: Receita total da PPP | E111: $ 000s | F111: =SUM(G111:AJ111) -> 917403.7319 | G111: =SUM(G108:G110) -> 18964 | H111: 25915.62415 | I111: 26301.98823 | J111: 26685.11569 | K111: 27065.10104 | L111: 27442.0347 | M111: 27816.00324 | N111: 28187.0896 | O111: 28555.37328 | P111: 28920.93055 | Q111: 29283.83459 | R111: 29644.1557 | S111: 30001.96139 | T111: 30357.31657 | U111: 30710.28369 | V111: 31060.92281 | W111: 31409.29178 | X111: 31755.4463 | Y111: 32099.44005 | Z111: 32441.32479 | AA111: 32781.15044 | AB111: 33118.96515 | AC111: 33454.81543 | AD111: 33788.74618 | AE111: 34120.80077 | AF111: 34451.02113 | AG111: 34779.44779 | AH111: 35106.11995 | AI111: 35431.07557 | AJ111: 35754.35134
C114: =Inputs!C98 -> Imposto s/ serviço - (ISS) | D114: =Inputs!D98 -> 0.05 | E114: $ 000s | F114: =SUM(G114:AJ114) -> -45870.1866 | G114: =G$111*-$D114 -> -948.2 | H114: -1295.781208 | I114: -1315.099411 | J114: -1334.255784 | K114: -1353.255052 | L114: -1372.101735 | M114: -1390.800162 | N114: -1409.35448 | O114: -1427.768664 | P114: -1446.046528 | Q114: =Q$111*-$D114 -> -1464.19173 | R114: -1482.207785 | S114: -1500.098069 | T114: -1517.865829 | U114: -1535.514184 | V114: -1553.046141 | W114: -1570.464589 | X114: -1587.772315 | Y114: -1604.972003 | Z114: -1622.06624 | AA114: =AA$111*-$D114 -> -1639.057522 | AB114: -1655.948258 | AC114: -1672.740772 | AD114: -1689.437309 | AE114: -1706.040038 | AF114: -1722.551056 | AG114: -1738.972389 | AH114: -1755.305998 | AI114: -1771.553778 | AJ114: -1787.717567
C115: =Inputs!C99 -> Programa Integração Social - (PIS) | D115: =Inputs!D99 -> 0.0165 | E115: $ 000s | F115: =SUM(G115:AJ115) -> -15137.16158 | G115: -312.906 | H115: -427.6077985 | I115: -433.9828057 | J115: -440.3044089 | K115: -446.5741672 | L115: -452.7935726 | M115: -458.9640535 | N115: -465.0869784 | O115: -471.1636592 | P115: -477.1953541 | Q115: -483.1832708 | R115: -489.128569 | S115: -495.0323629 | T115: -500.8957235 | U115: -506.7196809 | V115: -512.5052264 | W115: -518.2533144 | X115: -523.9648639 | Y115: -529.6407608 | Z115: -535.2818591 | AA115: -540.8889822 | AB115: -546.462925 | AC115: -552.0044547 | AD115: -557.514312 | AE115: -562.9932127 | AF115: -568.4418486 | AG115: -573.8608885 | AH115: -579.2509793 | AI115: -584.6127469 | AJ115: -589.9467971
C116: =Inputs!C100 -> Contribuição para Financiamento de Seguridade Social - (COFINS) | D116: =Inputs!D100 -> 0.076 | E116: $ 000s | F116: =SUM(G116:AJ116) -> -69722.68363 | G116: -1441.264 | H116: -1969.587436 | I116: -1998.951105 | J116: -2028.068792 | K116: -2056.947679 | L116: -2085.594638 | M116: -2114.016247 | N116: -2142.21881 | O116: -2170.20837 | P116: -2197.990722 | Q116: -2225.571429 | R116: -2252.955833 | S116: -2280.149065 | T116: -2307.15606 | U116: -2333.98156 | V116: -2360.630134 | W116: -2387.106175 | X116: -2413.413919 | Y116: -2439.557444 | Z116: -2465.540684 | AA116: -2491.367433 | AB116: -2517.041352 | AC116: -2542.565973 | AD116: -2567.94471 | AE116: -2593.180858 | AF116: -2618.277606 | AG116: -2643.238032 | AH116: -2668.065117 | AI116: -2692.761743 | AJ116: -2717.330702
C117: Crédito de PIS / COFIS (não-cumulativo) | E117: $ 000s | F117: =SUM(G117:AJ117) -> 0 | G117: =G157 -> 0 | H117: 0 | I117: =I157 -> 0 | J117: 0 | K117: 0 | L117: 0 | M117: 0 | N117: 0 | O117: 0 | P117: 0 | Q117: 0 | R117: 0 | S117: 0 | T117: 0 | U117: 0 | V117: 0 | W117: 0 | X117: 0 | Y117: 0 | Z117: 0 | AA117: 0 | AB117: 0 | AC117: 0 | AD117: 0 | AE117: 0 | AF117: 0 | AG117: 0 | AH117: 0 | AI117: 0 | AJ117: 0
C118: Inadimplência das Receitas Tarifárias | E118: $ 000s | F118: =SUM(G118:AJ118) -> 0 | G118: =G167 -> 0 | H118: =H167 -> 0 | I118: 0 | J118: 0 | K118: 0 | L118: 0 | M118: 0 | N118: 0 | O118: 0 | P118: 0 | Q118: 0 | R118: 0 | S118: 0 | T118: 0 | U118: 0 | V118: 0 | W118: 0 | X118: 0 | Y118: 0 | Z118: 0 | AA118: 0 | AB118: 0 | AC118: 0 | AD118: 0 | AE118: 0 | AF118: 0 | AG118: 0 | AH118: 0 | AI118: 0 | AJ118: 0
C120: Total de deduções da Receita | E120: $ 000s | F120: =SUM(G120:AJ120) -> -130730.0318 | G120: =SUM(G114:G119) -> -2702.37 | H120: =SUM(H113:H119) -> -3692.976442 | I120: -3748.033322 | J120: -3802.628986 | K120: -3856.776899 | L120: -3910.489945 | M120: -3963.780462 | N120: -4016.660268 | O120: -4069.140693 | P120: -4121.232604 | Q120: -4172.94643 | R120: -4224.292187 | S120: -4275.279498 | T120: -4325.917612 | U120: -4376.215426 | V120: -4426.181501 | W120: -4475.824079 | X120: -4525.151097 | Y120: -4574.170207 | Z120: -4622.888783 | AA120: -4671.313937 | AB120: -4719.452534 | AC120: -4767.311199 | AD120: -4814.896331 | AE120: -4862.214109 | AF120: -4909.27051 | AG120: -4956.071309 | AH120: -5002.622094 | AI120: -5048.928268 | AJ120: -5094.995066
C122: Crédito de PIS / COFIS (não-cumulativo)
C124: CAPEX elegível
C125: =Ops!C265 -> CAPEX Total | D125: =Inputs!D102 -> 1 | F125: =Ops!F265 -> 0 | G125: =Ops!G265 -> 0 | H125: =Ops!H265 -> 0 | I125: =Ops!I265 -> 0 | J125: =Ops!J265 -> 0 | K125: =Ops!K265 -> 0 | L125: =Ops!L265 -> 0 | M125: =Ops!M265 -> 0 | N125: =Ops!N265 -> 0 | O125: =Ops!O265 -> 0 | P125: =Ops!P265 -> 0 | Q125: =Ops!Q265 -> 0 | R125: =Ops!R265 -> 0 | S125: =Ops!S265 -> 0 | T125: =Ops!T265 -> 0 | U125: =Ops!U265 -> 0 | V125: =Ops!V265 -> 0 | W125: =Ops!W265 -> 0 | X125: =Ops!X265 -> 0 | Y125: =Ops!Y265 -> 0 | Z125: =Ops!Z265 -> 0 | AA125: =Ops!AA265 -> 0 | AB125: =Ops!AB265 -> 0 | AC125: =Ops!AC265 -> 0 | AD125: =Ops!AD265 -> 0 | AE125: =Ops!AE265 -> 0 | AF125: =Ops!AF265 -> 0 | AG125: =Ops!AG265 -> 0 | AH125: =Ops!AH265 -> 0 | AI125: =Ops!AI265 -> 0 | AJ125: =Ops!AJ265 -> 0
C127: Aproveitamento fiscal CAPEX | E127: $ 000s | F127: =SUM(G127:AJ127) -> 0 | G127: =SUMPRODUCT(G125:G125,$D$125:$D$125) -> 0 | H127: =SUMPRODUCT(H125:H125,$D$125:$D$125) -> 0 | I127: 0 | J127: 0 | K127: 0 | L127: 0 | M127: 0 | N127: 0 | O127: 0 | P127: 0 | Q127: 0 | R127: 0 | S127: 0 | T127: 0 | U127: 0 | V127: 0 | W127: 0 | X127: 0 | Y127: 0 | Z127: 0 | AA127: 0 | AB127: 0 | AC127: 0 | AD127: 0 | AE127: 0 | AF127: 0 | AG127: 0 | AH127: 0 | AI127: 0 | AJ127: 0
C130: OPEX Elegível
C132: =C178 -> Custo e despesa 1 | D132: =Inputs!$D$102 -> 1 | E132: $ 000s | F132: =SUM(G132:AJ132) -> 0 | G132: =G178 -> 0 | H132: 0 | I132: 0 | J132: 0 | K132: 0 | L132: 0 | M132: 0 | N132: 0 | O132: 0 | P132: 0 | Q132: 0 | R132: 0 | S132: 0 | T132: 0 | U132: 0 | V132: 0 | W132: 0 | X132: 0 | Y132: 0 | Z132: 0 | AA132: 0 | AB132: 0 | AC132: 0 | AD132: 0 | AE132: 0 | AF132: 0 | AG132: 0 | AH132: 0 | AI132: 0 | AJ132: 0
C133: Custo e despesa 2 | D133: =Inputs!$D$102 -> 1 | E133: $ 000s | F133: 0 | G133: =G179 -> 0 | H133: 0 | I133: 0 | J133: 0 | K133: 0 | L133: 0 | M133: 0 | N133: 0 | O133: 0 | P133: 0 | Q133: 0 | R133: 0 | S133: 0 | T133: 0 | U133: 0 | V133: 0 | W133: 0 | X133: 0 | Y133: 0 | Z133: 0 | AA133: 0 | AB133: 0 | AC133: 0 | AD133: 0 | AE133: 0 | AF133: 0 | AG133: 0 | AH133: 0 | AI133: 0 | AJ133: 0
C134: Custo e despesa 3 | D134: =Inputs!$D$102 -> 1 | E134: $ 000s | F134: 0 | G134: =G180 -> 0 | H134: 0 | I134: 0 | J134: 0 | K134: 0 | L134: 0 | M134: 0 | N134: 0 | O134: 0 | P134: 0 | Q134: 0 | R134: 0 | S134: 0 | T134: 0 | U134: 0 | V134: 0 | W134: 0 | X134: 0 | Y134: 0 | Z134: 0 | AA134: 0 | AB134: 0 | AC134: 0 | AD134: 0 | AE134: 0 | AF134: 0 | AG134: 0 | AH134: 0 | AI134: 0 | AJ134: 0
C135: Custo e despesa 4 | D135: =Inputs!$D$102 -> 1 | E135: $ 000s | F135: 0 | G135: =G181 -> 0 | H135: 0 | I135: 0 | J135: 0 | K135: 0 | L135: 0 | M135: 0 | N135: 0 | O135: 0 | P135: 0 | Q135: 0 | R135: 0 | S135: 0 | T135: 0 | U135: 0 | V135: 0 | W135: 0 | X135: 0 | Y135: 0 | Z135: 0 | AA135: 0 | AB135: 0 | AC135: 0 | AD135: 0 | AE135: 0 | AF135: 0 | AG135: 0 | AH135: 0 | AI135: 0 | AJ135: 0
C136: Custo e despesa 5 | D136: =Inputs!$D$102 -> 1 | E136: $ 000s | F136: 0 | G136: =G182 -> 0 | H136: 0 | I136: 0 | J136: 0 | K136: 0 | L136: 0 | M136: 0 | N136: 0 | O136: 0 | P136: 0 | Q136: 0 | R136: 0 | S136: 0 | T136: 0 | U136: 0 | V136: 0 | W136: 0 | X136: 0 | Y136: 0 | Z136: 0 | AA136: 0 | AB136: 0 | AC136: 0 | AD136: 0 | AE136: 0 | AF136: 0 | AG136: 0 | AH136: 0 | AI136: 0 | AJ136: 0
C137: Custo e despesa 6 | D137: =Inputs!$D$102 -> 1 | E137: $ 000s | F137: 0 | G137: =G183 -> 0 | H137: 0 | I137: 0 | J137: 0 | K137: 0 | L137: 0 | M137: 0 | N137: 0 | O137: 0 | P137: 0 | Q137: 0 | R137: 0 | S137: 0 | T137: 0 | U137: 0 | V137: 0 | W137: 0 | X137: 0 | Y137: 0 | Z137: 0 | AA137: 0 | AB137: 0 | AC137: 0 | AD137: 0 | AE137: 0 | AF137: 0 | AG137: 0 | AH137: 0 | AI137: 0 | AJ137: 0
C138: Custo e despesa 7 | D138: =Inputs!$D$102 -> 1 | E138: $ 000s | F138: 0 | G138: =G184 -> 0 | H138: 0 | I138: 0 | J138: 0 | K138: 0 | L138: 0 | M138: 0 | N138: 0 | O138: 0 | P138: 0 | Q138: 0 | R138: 0 | S138: 0 | T138: 0 | U138: 0 | V138: 0 | W138: 0 | X138: 0 | Y138: 0 | Z138: 0 | AA138: 0 | AB138: 0 | AC138: 0 | AD138: 0 | AE138: 0 | AF138: 0 | AG138: 0 | AH138: 0 | AI138: 0 | AJ138: 0
C139: Custo e despesa 8 | D139: =Inputs!$D$102 -> 1 | E139: $ 000s | F139: 0 | G139: =G185 -> 0 | H139: 0 | I139: 0 | J139: 0 | K139: 0 | L139: 0 | M139: 0 | N139: 0 | O139: 0 | P139: 0 | Q139: 0 | R139: 0 | S139: 0 | T139: 0 | U139: 0 | V139: 0 | W139: 0 | X139: 0 | Y139: 0 | Z139: 0 | AA139: 0 | AB139: 0 | AC139: 0 | AD139: 0 | AE139: 0 | AF139: 0 | AG139: 0 | AH139: 0 | AI139: 0 | AJ139: 0
C140: Custo e despesa 9 | D140: =Inputs!$D$102 -> 1 | E140: $ 000s | F140: 0 | G140: =G186 -> 0 | H140: 0 | I140: 0 | J140: 0 | K140: 0 | L140: 0 | M140: 0 | N140: 0 | O140: 0 | P140: 0 | Q140: 0 | R140: 0 | S140: 0 | T140: 0 | U140: 0 | V140: 0 | W140: 0 | X140: 0 | Y140: 0 | Z140: 0 | AA140: 0 | AB140: 0 | AC140: 0 | AD140: 0 | AE140: 0 | AF140: 0 | AG140: 0 | AH140: 0 | AI140: 0 | AJ140: 0
C141: Custo e despesa 10 | D141: =Inputs!$D$102 -> 1 | E141: $ 000s | F141: 0 | G141: =G187 -> 0 | H141: 0 | I141: 0 | J141: 0 | K141: 0 | L141: 0 | M141: 0 | N141: 0 | O141: 0 | P141: 0 | Q141: 0 | R141: 0 | S141: 0 | T141: 0 | U141: 0 | V141: 0 | W141: 0 | X141: 0 | Y141: 0 | Z141: 0 | AA141: 0 | AB141: 0 | AC141: 0 | AD141: 0 | AE141: 0 | AF141: 0 | AG141: 0 | AH141: 0 | AI141: 0 | AJ141: 0
C142: Custo e despesa 11 | D142: =Inputs!$D$102 -> 1 | E142: $ 000s | F142: 0 | G142: =G188 -> 0 | H142: 0 | I142: 0 | J142: 0 | K142: 0 | L142: 0 | M142: 0 | N142: 0 | O142: 0 | P142: 0 | Q142: 0 | R142: 0 | S142: 0 | T142: 0 | U142: 0 | V142: 0 | W142: 0 | X142: 0 | Y142: 0 | Z142: 0 | AA142: 0 | AB142: 0 | AC142: 0 | AD142: 0 | AE142: 0 | AF142: 0 | AG142: 0 | AH142: 0 | AI142: 0 | AJ142: 0
C143: Custo e despesa 12 | D143: =Inputs!$D$102 -> 1 | E143: $ 000s | F143: 0 | G143: =G189 -> 0 | H143: 0 | I143: 0 | J143: 0 | K143: 0 | L143: 0 | M143: 0 | N143: 0 | O143: 0 | P143: 0 | Q143: 0 | R143: 0 | S143: 0 | T143: 0 | U143: 0 | V143: 0 | W143: 0 | X143: 0 | Y143: 0 | Z143: 0 | AA143: 0 | AB143: 0 | AC143: 0 | AD143: 0 | AE143: 0 | AF143: 0 | AG143: 0 | AH143: 0 | AI143: 0 | AJ143: 0
C144: Custo e despesa 13 | D144: =Inputs!$D$102 -> 1 | E144: $ 000s | F144: 0 | G144: =G190 -> 0 | H144: 0 | I144: 0 | J144: 0 | K144: 0 | L144: 0 | M144: 0 | N144: 0 | O144: 0 | P144: 0 | Q144: 0 | R144: 0 | S144: 0 | T144: 0 | U144: 0 | V144: 0 | W144: 0 | X144: 0 | Y144: 0 | Z144: 0 | AA144: 0 | AB144: 0 | AC144: 0 | AD144: 0 | AE144: 0 | AF144: 0 | AG144: 0 | AH144: 0 | AI144: 0 | AJ144: 0
C145: Custo e despesa 14 | D145: =Inputs!$D$102 -> 1 | F145: 0 | G145: =G191 -> 0 | H145: 0 | I145: 0 | J145: 0 | K145: 0 | L145: 0 | M145: 0 | N145: 0 | O145: 0 | P145: 0 | Q145: 0 | R145: 0 | S145: 0 | T145: 0 | U145: 0 | V145: 0 | W145: 0 | X145: 0 | Y145: 0 | Z145: 0 | AA145: 0 | AB145: 0 | AC145: 0 | AD145: 0 | AE145: 0 | AF145: 0 | AG145: 0 | AH145: 0 | AI145: 0 | AJ145: 0
C147: Aproveitamento fiscal OPEX | E147: $ 000s | F147: =SUM(G147:AJ147) -> 0 | G147: =SUMPRODUCT(G132:G145,$D$132:$D$145) -> 0 | H147: 0 | I147: 0 | J147: 0 | K147: 0 | L147: 0 | M147: 0 | N147: 0 | O147: 0 | P147: 0 | Q147: 0 | R147: 0 | S147: 0 | T147: 0 | U147: 0 | V147: 0 | W147: 0 | X147: 0 | Y147: 0 | Z147: 0 | AA147: 0 | AB147: 0 | AC147: 0 | AD147: 0 | AE147: 0 | AF147: 0 | AG147: 0 | AH147: 0 | AI147: 0 | AJ147: 0
C150: Crédito de PIS / COFIS a ser utilizado (não-cumulativo)
C152: Alíquota total | D152: =SUM($D$115:$D$116) -> 0.0925
C154: =C127 -> Aproveitamento fiscal CAPEX | E154: =E147 -> $ 000s | F154: =SUM(G154:AJ154) -> 0 | G154: =G127 -> 0 | H154: 0 | I154: 0 | J154: 0 | K154: 0 | L154: 0 | M154: 0 | N154: 0 | O154: 0 | P154: 0 | Q154: 0 | R154: 0 | S154: 0 | T154: 0 | U154: 0 | V154: 0 | W154: 0 | X154: 0 | Y154: 0 | Z154: 0 | AA154: 0 | AB154: 0 | AC154: 0 | AD154: 0 | AE154: 0 | AF154: 0 | AG154: 0 | AH154: 0 | AI154: 0 | AJ154: 0
C155: =C147 -> Aproveitamento fiscal OPEX | E155: =E147 -> $ 000s | F155: =SUM(G155:AJ155) -> 0 | G155: =G147 -> 0 | H155: 0 | I155: 0 | J155: 0 | K155: 0 | L155: 0 | M155: 0 | N155: 0 | O155: 0 | P155: 0 | Q155: 0 | R155: 0 | S155: 0 | T155: 0 | U155: 0 | V155: 0 | W155: 0 | X155: 0 | Y155: 0 | Z155: 0 | AA155: 0 | AB155: 0 | AC155: 0 | AD155: 0 | AE155: 0 | AF155: 0 | AG155: 0 | AH155: 0 | AI155: 0 | AJ155: 0
C157: Benefício Fiscal a ser utilizado | F157: =F150 -> 0 | G157: =IF(G108=0,0,SUM(G154:G155)*$D$152) -> 0 | H157: 0 | I157: 0 | J157: 0 | K157: 0 | L157: 0 | M157: 0 | N157: 0 | O157: 0 | P157: 0 | Q157: 0 | R157: 0 | S157: 0 | T157: 0 | U157: 0 | V157: 0 | W157: 0 | X157: 0 | Y157: 0 | Z157: 0 | AA157: 0 | AB157: 0 | AC157: 0 | AD157: 0 | AE157: 0 | AF157: 0 | AG157: 0 | AH157: 0 | AI157: 0 | AJ157: 0
C161: Inadimplência das Receitas Tarifárias
C163: Counter Concessão | E163: Ano | G163: =G3 -> 1 | H163: 2 | I163: 3 | J163: 4 | K163: 5 | L163: 6 | M163: 7 | N163: 8 | O163: 9 | P163: 10 | Q163: 11 | R163: 12 | S163: 13 | T163: 14 | U163: 15 | V163: 16 | W163: 17 | X163: 18 | Y163: 19 | Z163: 20 | AA163: 21 | AB163: 22 | AC163: 23 | AD163: 24 | AE163: 25 | AF163: 26 | AG163: 27 | AH163: 28 | AI163: 29 | AJ163: 30
C164: Receitas tarifária | E164: R$ | F164: =SUM(G164:AJ164) -> 391942.089 | G164: =G109 -> 0 | H164: 11164.81263 | I164: 11332.70062 | J164: 11500.58861 | K164: 11668.47659 | L164: 11836.36458 | M164: 12004.25257 | N164: 12172.14055 | O164: 12340.02854 | P164: 12507.91653 | Q164: 12675.80452 | R164: 12843.6925 | S164: 13011.58049 | T164: 13179.46848 | U164: 13347.35646 | V164: 13515.24445 | W164: 13683.13244 | X164: 13851.02042 | Y164: 14018.90841 | Z164: 14186.7964 | AA164: 14354.68438 | AB164: 14522.57237 | AC164: 14690.46036 | AD164: 14858.34834 | AE164: 15026.23633 | AF164: 15194.12432 | AG164: 15362.01231 | AH164: 15529.90029 | AI164: 15697.78828 | AJ164: 15865.67627
C165: Índice de inadimplência | E165: % | F165: =AVERAGE(G165:AJ165) -> 0 | G165: =IFERROR(LOOKUP(G$163,Inputs!$D$104:$J$104,Inputs!$D$105:$J$105),0) -> 0 | H165: =IFERROR(LOOKUP(H$163,Inputs!$D$104:$J$104,Inputs!$D$105:$J$105),0) -> 0 | I165: =IFERROR(LOOKUP(I$163,Inputs!$D$104:$J$104,Inputs!$D$105:$J$105),0) -> 0 | J165: =IFERROR(LOOKUP(J$163,Inputs!$D$104:$J$104,Inputs!$D$105:$J$105),0) -> 0 | K165: =IFERROR(LOOKUP(K$163,Inputs!$D$104:$J$104,Inputs!$D$105:$J$105),0) -> 0 | L165: =IFERROR(LOOKUP(L$163,Inputs!$D$104:$J$104,Inputs!$D$105:$J$105),0) -> 0 | M165: =IFERROR(LOOKUP(M$163,Inputs!$D$104:$J$104,Inputs!$D$105:$J$105),0) -> 0 | N165: =IFERROR(LOOKUP(N$163,Inputs!$D$104:$J$104,Inputs!$D$105:$J$105),0) -> 0 | O165: =IFERROR(LOOKUP(O$163,Inputs!$D$104:$J$104,Inputs!$D$105:$J$105),0) -> 0 | P165: =IFERROR(LOOKUP(P$163,Inputs!$D$104:$J$104,Inputs!$D$105:$J$105),0) -> 0 | Q165: =IFERROR(LOOKUP(Q$163,Inputs!$D$104:$J$104,Inputs!$D$105:$J$105),0) -> 0 | R165: =IFERROR(LOOKUP(R$163,Inputs!$D$104:$J$104,Inputs!$D$105:$J$105),0) -> 0 | S165: =IFERROR(LOOKUP(S$163,Inputs!$D$104:$J$104,Inputs!$D$105:$J$105),0) -> 0 | T165: =IFERROR(LOOKUP(T$163,Inputs!$D$104:$J$104,Inputs!$D$105:$J$105),0) -> 0 | U165: =IFERROR(LOOKUP(U$163,Inputs!$D$104:$J$104,Inputs!$D$105:$J$105),0) -> 0 | V165: =IFERROR(LOOKUP(V$163,Inputs!$D$104:$J$104,Inputs!$D$105:$J$105),0) -> 0 | W165: =IFERROR(LOOKUP(W$163,Inputs!$D$104:$J$104,Inputs!$D$105:$J$105),0) -> 0 | X165: =IFERROR(LOOKUP(X$163,Inputs!$D$104:$J$104,Inputs!$D$105:$J$105),0) -> 0 | Y165: =IFERROR(LOOKUP(Y$163,Inputs!$D$104:$J$104,Inputs!$D$105:$J$105),0) -> 0 | Z165: =IFERROR(LOOKUP(Z$163,Inputs!$D$104:$J$104,Inputs!$D$105:$J$105),0) -> 0 | AA165: =IFERROR(LOOKUP(AA$163,Inputs!$D$104:$J$104,Inputs!$D$105:$J$105),0) -> 0 | AB165: =IFERROR(LOOKUP(AB$163,Inputs!$D$104:$J$104,Inputs!$D$105:$J$105),0) -> 0 | AC165: =IFERROR(LOOKUP(AC$163,Inputs!$D$104:$J$104,Inputs!$D$105:$J$105),0) -> 0 | AD165: =IFERROR(LOOKUP(AD$163,Inputs!$D$104:$J$104,Inputs!$D$105:$J$105),0) -> 0 | AE165: =IFERROR(LOOKUP(AE$163,Inputs!$D$104:$J$104,Inputs!$D$105:$J$105),0) -> 0 | AF165: =IFERROR(LOOKUP(AF$163,Inputs!$D$104:$J$104,Inputs!$D$105:$J$105),0) -> 0 | AG165: =IFERROR(LOOKUP(AG$163,Inputs!$D$104:$J$104,Inputs!$D$105:$J$105),0) -> 0 | AH165: =IFERROR(LOOKUP(AH$163,Inputs!$D$104:$J$104,Inputs!$D$105:$J$105),0) -> 0 | AI165: =IFERROR(LOOKUP(AI$163,Inputs!$D$104:$J$104,Inputs!$D$105:$J$105),0) -> 0 | AJ165: =IFERROR(LOOKUP(AJ$163,Inputs!$D$104:$J$104,Inputs!$D$105:$J$105),0) -> 0
C167: Inadimplência das Receitas Tarifárias | E167: R$ | F167: =SUM(G167:AJ167) -> 0 | G167: =G164*-G165 -> 0 | H167: =H164*-H165 -> 0 | I167: 0 | J167: 0 | K167: 0 | L167: 0 | M167: 0 | N167: 0 | O167: 0 | P167: 0 | Q167: 0 | R167: 0 | S167: 0 | T167: 0 | U167: 0 | V167: 0 | W167: 0 | X167: 0 | Y167: 0 | Z167: 0 | AA167: 0 | AB167: 0 | AC167: 0 | AD167: 0 | AE167: 0 | AF167: 0 | AG167: 0 | AH167: 0 | AI167: 0 | AJ167: 0
C171: Operating Costs (OPEX)
C173: Custos e Despesas (OPEX) PPP
C175: Flag de operação | F175: =SUM(G175:AJ175) -> 30 | G175: =IF(G$3>=Model_Start,IF(G$3<=Inputs!$E$8,1,0),0) -> 1 | H175: =IF(H$3>=Model_Start,IF(H$3<=Inputs!$E$8,1,0),0) -> 1 | I175: =IF(I$3>=Model_Start,IF(I$3<=Inputs!$E$8,1,0),0) -> 1 | J175: =IF(J$3>=Model_Start,IF(J$3<=Inputs!$E$8,1,0),0) -> 1 | K175: =IF(K$3>=Model_Start,IF(K$3<=Inputs!$E$8,1,0),0) -> 1 | L175: =IF(L$3>=Model_Start,IF(L$3<=Inputs!$E$8,1,0),0) -> 1 | M175: =IF(M$3>=Model_Start,IF(M$3<=Inputs!$E$8,1,0),0) -> 1 | N175: =IF(N$3>=Model_Start,IF(N$3<=Inputs!$E$8,1,0),0) -> 1 | O175: =IF(O$3>=Model_Start,IF(O$3<=Inputs!$E$8,1,0),0) -> 1 | P175: =IF(P$3>=Model_Start,IF(P$3<=Inputs!$E$8,1,0),0) -> 1 | Q175: =IF(Q$3>=Model_Start,IF(Q$3<=Inputs!$E$8,1,0),0) -> 1 | R175: =IF(R$3>=Model_Start,IF(R$3<=Inputs!$E$8,1,0),0) -> 1 | S175: =IF(S$3>=Model_Start,IF(S$3<=Inputs!$E$8,1,0),0) -> 1 | T175: =IF(T$3>=Model_Start,IF(T$3<=Inputs!$E$8,1,0),0) -> 1 | U175: =IF(U$3>=Model_Start,IF(U$3<=Inputs!$E$8,1,0),0) -> 1 | V175: =IF(V$3>=Model_Start,IF(V$3<=Inputs!$E$8,1,0),0) -> 1 | W175: =IF(W$3>=Model_Start,IF(W$3<=Inputs!$E$8,1,0),0) -> 1 | X175: =IF(X$3>=Model_Start,IF(X$3<=Inputs!$E$8,1,0),0) -> 1 | Y175: =IF(Y$3>=Model_Start,IF(Y$3<=Inputs!$E$8,1,0),0) -> 1 | Z175: =IF(Z$3>=Model_Start,IF(Z$3<=Inputs!$E$8,1,0),0) -> 1 | AA175: =IF(AA$3>=Model_Start,IF(AA$3<=Inputs!$E$8,1,0),0) -> 1 | AB175: =IF(AB$3>=Model_Start,IF(AB$3<=Inputs!$E$8,1,0),0) -> 1 | AC175: =IF(AC$3>=Model_Start,IF(AC$3<=Inputs!$E$8,1,0),0) -> 1 | AD175: =IF(AD$3>=Model_Start,IF(AD$3<=Inputs!$E$8,1,0),0) -> 1 | AE175: =IF(AE$3>=Model_Start,IF(AE$3<=Inputs!$E$8,1,0),0) -> 1 | AF175: =IF(AF$3>=Model_Start,IF(AF$3<=Inputs!$E$8,1,0),0) -> 1 | AG175: =IF(AG$3>=Model_Start,IF(AG$3<=Inputs!$E$8,1,0),0) -> 1 | AH175: =IF(AH$3>=Model_Start,IF(AH$3<=Inputs!$E$8,1,0),0) -> 1 | AI175: =IF(AI$3>=Model_Start,IF(AI$3<=Inputs!$E$8,1,0),0) -> 1 | AJ175: =IF(AJ$3>=Model_Start,IF(AJ$3<=Inputs!$E$8,1,0),0) -> 1
C178: =Inputs!C116 -> Custo e despesa 1 | E178: $ 000s | F178: =SUM(G178:AJ178) -> 0 | G178: =Inputs!D116*Ops!G$175 -> 0 | H178: =Inputs!E116*Ops!H$175 -> 0 | I178: =Inputs!F116*Ops!I$175 -> 0 | J178: =Inputs!G116*Ops!J$175 -> 0 | K178: =Inputs!H116*Ops!K$175 -> 0 | L178: =Inputs!I116*Ops!L$175 -> 0 | M178: =Inputs!J116*Ops!M$175 -> 0 | N178: =Inputs!K116*Ops!N$175 -> 0 | O178: =Inputs!L116*Ops!O$175 -> 0 | P178: =Inputs!M116*Ops!P$175 -> 0 | Q178: =Inputs!N116*Ops!Q$175 -> 0 | R178: =Inputs!O116*Ops!R$175 -> 0 | S178: =Inputs!P116*Ops!S$175 -> 0 | T178: =Inputs!Q116*Ops!T$175 -> 0 | U178: =Inputs!R116*Ops!U$175 -> 0 | V178: =Inputs!S116*Ops!V$175 -> 0 | W178: =Inputs!T116*Ops!W$175 -> 0 | X178: =Inputs!U116*Ops!X$175 -> 0 | Y178: =Inputs!V116*Ops!Y$175 -> 0 | Z178: =Inputs!W116*Ops!Z$175 -> 0 | AA178: =Inputs!X116*Ops!AA$175 -> 0 | AB178: =Inputs!Y116*Ops!AB$175 -> 0 | AC178: =Inputs!Z116*Ops!AC$175 -> 0 | AD178: =Inputs!AA116*Ops!AD$175 -> 0 | AE178: =Inputs!AB116*Ops!AE$175 -> 0 | AF178: =Inputs!AC116*Ops!AF$175 -> 0 | AG178: =Inputs!AD116*Ops!AG$175 -> 0 | AH178: =Inputs!AE116*Ops!AH$175 -> 0 | AI178: =Inputs!AF116*Ops!AI$175 -> 0 | AJ178: =Inputs!AG116*Ops!AJ$175 -> 0
C179: =Inputs!C117 -> Custo e despesa 2 | E179: $ 000s | F179: 0 | G179: =Inputs!D117*Ops!G$175 -> 0 | H179: =Inputs!E117*Ops!H$175 -> 0 | I179: =Inputs!F117*Ops!I$175 -> 0 | J179: =Inputs!G117*Ops!J$175 -> 0 | K179: =Inputs!H117*Ops!K$175 -> 0 | L179: =Inputs!I117*Ops!L$175 -> 0 | M179: =Inputs!J117*Ops!M$175 -> 0 | N179: =Inputs!K117*Ops!N$175 -> 0 | O179: =Inputs!L117*Ops!O$175 -> 0 | P179: =Inputs!M117*Ops!P$175 -> 0 | Q179: =Inputs!N117*Ops!Q$175 -> 0 | R179: =Inputs!O117*Ops!R$175 -> 0 | S179: =Inputs!P117*Ops!S$175 -> 0 | T179: =Inputs!Q117*Ops!T$175 -> 0 | U179: =Inputs!R117*Ops!U$175 -> 0 | V179: =Inputs!S117*Ops!V$175 -> 0 | W179: =Inputs!T117*Ops!W$175 -> 0 | X179: =Inputs!U117*Ops!X$175 -> 0 | Y179: =Inputs!V117*Ops!Y$175 -> 0 | Z179: =Inputs!W117*Ops!Z$175 -> 0 | AA179: =Inputs!X117*Ops!AA$175 -> 0 | AB179: =Inputs!Y117*Ops!AB$175 -> 0 | AC179: =Inputs!Z117*Ops!AC$175 -> 0 | AD179: =Inputs!AA117*Ops!AD$175 -> 0 | AE179: =Inputs!AB117*Ops!AE$175 -> 0 | AF179: =Inputs!AC117*Ops!AF$175 -> 0 | AG179: =Inputs!AD117*Ops!AG$175 -> 0 | AH179: =Inputs!AE117*Ops!AH$175 -> 0 | AI179: =Inputs!AF117*Ops!AI$175 -> 0 | AJ179: =Inputs!AG117*Ops!AJ$175 -> 0
C180: =Inputs!C118 -> Custo e despesa 3 | E180: $ 000s | F180: 0 | G180: =Inputs!D118*Ops!G$175 -> 0 | H180: =Inputs!E118*Ops!H$175 -> 0 | I180: =Inputs!F118*Ops!I$175 -> 0 | J180: =Inputs!G118*Ops!J$175 -> 0 | K180: =Inputs!H118*Ops!K$175 -> 0 | L180: =Inputs!I118*Ops!L$175 -> 0 | M180: =Inputs!J118*Ops!M$175 -> 0 | N180: =Inputs!K118*Ops!N$175 -> 0 | O180: =Inputs!L118*Ops!O$175 -> 0 | P180: =Inputs!M118*Ops!P$175 -> 0 | Q180: =Inputs!N118*Ops!Q$175 -> 0 | R180: =Inputs!O118*Ops!R$175 -> 0 | S180: =Inputs!P118*Ops!S$175 -> 0 | T180: =Inputs!Q118*Ops!T$175 -> 0 | U180: =Inputs!R118*Ops!U$175 -> 0 | V180: =Inputs!S118*Ops!V$175 -> 0 | W180: =Inputs!T118*Ops!W$175 -> 0 | X180: =Inputs!U118*Ops!X$175 -> 0 | Y180: =Inputs!V118*Ops!Y$175 -> 0 | Z180: =Inputs!W118*Ops!Z$175 -> 0 | AA180: =Inputs!X118*Ops!AA$175 -> 0 | AB180: =Inputs!Y118*Ops!AB$175 -> 0 | AC180: =Inputs!Z118*Ops!AC$175 -> 0 | AD180: =Inputs!AA118*Ops!AD$175 -> 0 | AE180: =Inputs!AB118*Ops!AE$175 -> 0 | AF180: =Inputs!AC118*Ops!AF$175 -> 0 | AG180: =Inputs!AD118*Ops!AG$175 -> 0 | AH180: =Inputs!AE118*Ops!AH$175 -> 0 | AI180: =Inputs!AF118*Ops!AI$175 -> 0 | AJ180: =Inputs!AG118*Ops!AJ$175 -> 0
C181: =Inputs!C119 -> Custo e despesa 4 | E181: $ 000s | F181: 0 | G181: =Inputs!D119*Ops!G$175 -> 0 | H181: =Inputs!E119*Ops!H$175 -> 0 | I181: =Inputs!F119*Ops!I$175 -> 0 | J181: =Inputs!G119*Ops!J$175 -> 0 | K181: =Inputs!H119*Ops!K$175 -> 0 | L181: =Inputs!I119*Ops!L$175 -> 0 | M181: =Inputs!J119*Ops!M$175 -> 0 | N181: =Inputs!K119*Ops!N$175 -> 0 | O181: =Inputs!L119*Ops!O$175 -> 0 | P181: =Inputs!M119*Ops!P$175 -> 0 | Q181: =Inputs!N119*Ops!Q$175 -> 0 | R181: =Inputs!O119*Ops!R$175 -> 0 | S181: =Inputs!P119*Ops!S$175 -> 0 | T181: =Inputs!Q119*Ops!T$175 -> 0 | U181: =Inputs!R119*Ops!U$175 -> 0 | V181: =Inputs!S119*Ops!V$175 -> 0 | W181: =Inputs!T119*Ops!W$175 -> 0 | X181: =Inputs!U119*Ops!X$175 -> 0 | Y181: =Inputs!V119*Ops!Y$175 -> 0 | Z181: =Inputs!W119*Ops!Z$175 -> 0 | AA181: =Inputs!X119*Ops!AA$175 -> 0 | AB181: =Inputs!Y119*Ops!AB$175 -> 0 | AC181: =Inputs!Z119*Ops!AC$175 -> 0 | AD181: =Inputs!AA119*Ops!AD$175 -> 0 | AE181: =Inputs!AB119*Ops!AE$175 -> 0 | AF181: =Inputs!AC119*Ops!AF$175 -> 0 | AG181: =Inputs!AD119*Ops!AG$175 -> 0 | AH181: =Inputs!AE119*Ops!AH$175 -> 0 | AI181: =Inputs!AF119*Ops!AI$175 -> 0 | AJ181: =Inputs!AG119*Ops!AJ$175 -> 0
C182: =Inputs!C120 -> Custo e despesa 5 | E182: $ 000s | F182: 0 | G182: =Inputs!D120*Ops!G$175 -> 0 | H182: =Inputs!E120*Ops!H$175 -> 0 | I182: =Inputs!F120*Ops!I$175 -> 0 | J182: =Inputs!G120*Ops!J$175 -> 0 | K182: =Inputs!H120*Ops!K$175 -> 0 | L182: =Inputs!I120*Ops!L$175 -> 0 | M182: =Inputs!J120*Ops!M$175 -> 0 | N182: =Inputs!K120*Ops!N$175 -> 0 | O182: =Inputs!L120*Ops!O$175 -> 0 | P182: =Inputs!M120*Ops!P$175 -> 0 | Q182: =Inputs!N120*Ops!Q$175 -> 0 | R182: =Inputs!O120*Ops!R$175 -> 0 | S182: =Inputs!P120*Ops!S$175 -> 0 | T182: =Inputs!Q120*Ops!T$175 -> 0 | U182: =Inputs!R120*Ops!U$175 -> 0 | V182: =Inputs!S120*Ops!V$175 -> 0 | W182: =Inputs!T120*Ops!W$175 -> 0 | X182: =Inputs!U120*Ops!X$175 -> 0 | Y182: =Inputs!V120*Ops!Y$175 -> 0 | Z182: =Inputs!W120*Ops!Z$175 -> 0 | AA182: =Inputs!X120*Ops!AA$175 -> 0 | AB182: =Inputs!Y120*Ops!AB$175 -> 0 | AC182: =Inputs!Z120*Ops!AC$175 -> 0 | AD182: =Inputs!AA120*Ops!AD$175 -> 0 | AE182: =Inputs!AB120*Ops!AE$175 -> 0 | AF182: =Inputs!AC120*Ops!AF$175 -> 0 | AG182: =Inputs!AD120*Ops!AG$175 -> 0 | AH182: =Inputs!AE120*Ops!AH$175 -> 0 | AI182: =Inputs!AF120*Ops!AI$175 -> 0 | AJ182: =Inputs!AG120*Ops!AJ$175 -> 0
C183: =Inputs!C121 -> Custo e despesa 6 | E183: $ 000s | F183: 0 | G183: =Inputs!D121*Ops!G$175 -> 0 | H183: =Inputs!E121*Ops!H$175 -> 0 | I183: =Inputs!F121*Ops!I$175 -> 0 | J183: =Inputs!G121*Ops!J$175 -> 0 | K183: =Inputs!H121*Ops!K$175 -> 0 | L183: =Inputs!I121*Ops!L$175 -> 0 | M183: =Inputs!J121*Ops!M$175 -> 0 | N183: =Inputs!K121*Ops!N$175 -> 0 | O183: =Inputs!L121*Ops!O$175 -> 0 | P183: =Inputs!M121*Ops!P$175 -> 0 | Q183: =Inputs!N121*Ops!Q$175 -> 0 | R183: =Inputs!O121*Ops!R$175 -> 0 | S183: =Inputs!P121*Ops!S$175 -> 0 | T183: =Inputs!Q121*Ops!T$175 -> 0 | U183: =Inputs!R121*Ops!U$175 -> 0 | V183: =Inputs!S121*Ops!V$175 -> 0 | W183: =Inputs!T121*Ops!W$175 -> 0 | X183: =Inputs!U121*Ops!X$175 -> 0 | Y183: =Inputs!V121*Ops!Y$175 -> 0 | Z183: =Inputs!W121*Ops!Z$175 -> 0 | AA183: =Inputs!X121*Ops!AA$175 -> 0 | AB183: =Inputs!Y121*Ops!AB$175 -> 0 | AC183: =Inputs!Z121*Ops!AC$175 -> 0 | AD183: =Inputs!AA121*Ops!AD$175 -> 0 | AE183: =Inputs!AB121*Ops!AE$175 -> 0 | AF183: =Inputs!AC121*Ops!AF$175 -> 0 | AG183: =Inputs!AD121*Ops!AG$175 -> 0 | AH183: =Inputs!AE121*Ops!AH$175 -> 0 | AI183: =Inputs!AF121*Ops!AI$175 -> 0 | AJ183: =Inputs!AG121*Ops!AJ$175 -> 0
C184: =Inputs!C122 -> Custo e despesa 7 | E184: $ 000s | F184: 0 | G184: =Inputs!D122*Ops!G$175 -> 0 | H184: =Inputs!E122*Ops!H$175 -> 0 | I184: =Inputs!F122*Ops!I$175 -> 0 | J184: =Inputs!G122*Ops!J$175 -> 0 | K184: =Inputs!H122*Ops!K$175 -> 0 | L184: =Inputs!I122*Ops!L$175 -> 0 | M184: =Inputs!J122*Ops!M$175 -> 0 | N184: =Inputs!K122*Ops!N$175 -> 0 | O184: =Inputs!L122*Ops!O$175 -> 0 | P184: =Inputs!M122*Ops!P$175 -> 0 | Q184: =Inputs!N122*Ops!Q$175 -> 0 | R184: =Inputs!O122*Ops!R$175 -> 0 | S184: =Inputs!P122*Ops!S$175 -> 0 | T184: =Inputs!Q122*Ops!T$175 -> 0 | U184: =Inputs!R122*Ops!U$175 -> 0 | V184: =Inputs!S122*Ops!V$175 -> 0 | W184: =Inputs!T122*Ops!W$175 -> 0 | X184: =Inputs!U122*Ops!X$175 -> 0 | Y184: =Inputs!V122*Ops!Y$175 -> 0 | Z184: =Inputs!W122*Ops!Z$175 -> 0 | AA184: =Inputs!X122*Ops!AA$175 -> 0 | AB184: =Inputs!Y122*Ops!AB$175 -> 0 | AC184: =Inputs!Z122*Ops!AC$175 -> 0 | AD184: =Inputs!AA122*Ops!AD$175 -> 0 | AE184: =Inputs!AB122*Ops!AE$175 -> 0 | AF184: =Inputs!AC122*Ops!AF$175 -> 0 | AG184: =Inputs!AD122*Ops!AG$175 -> 0 | AH184: =Inputs!AE122*Ops!AH$175 -> 0 | AI184: =Inputs!AF122*Ops!AI$175 -> 0 | AJ184: =Inputs!AG122*Ops!AJ$175 -> 0
C185: =Inputs!C123 -> Custo e despesa 8 | E185: $ 000s | F185: 0 | G185: =Inputs!D123*Ops!G$175 -> 0 | H185: =Inputs!E123*Ops!H$175 -> 0 | I185: =Inputs!F123*Ops!I$175 -> 0 | J185: =Inputs!G123*Ops!J$175 -> 0 | K185: =Inputs!H123*Ops!K$175 -> 0 | L185: =Inputs!I123*Ops!L$175 -> 0 | M185: =Inputs!J123*Ops!M$175 -> 0 | N185: =Inputs!K123*Ops!N$175 -> 0 | O185: =Inputs!L123*Ops!O$175 -> 0 | P185: =Inputs!M123*Ops!P$175 -> 0 | Q185: =Inputs!N123*Ops!Q$175 -> 0 | R185: =Inputs!O123*Ops!R$175 -> 0 | S185: =Inputs!P123*Ops!S$175 -> 0 | T185: =Inputs!Q123*Ops!T$175 -> 0 | U185: =Inputs!R123*Ops!U$175 -> 0 | V185: =Inputs!S123*Ops!V$175 -> 0 | W185: =Inputs!T123*Ops!W$175 -> 0 | X185: =Inputs!U123*Ops!X$175 -> 0 | Y185: =Inputs!V123*Ops!Y$175 -> 0 | Z185: =Inputs!W123*Ops!Z$175 -> 0 | AA185: =Inputs!X123*Ops!AA$175 -> 0 | AB185: =Inputs!Y123*Ops!AB$175 -> 0 | AC185: =Inputs!Z123*Ops!AC$175 -> 0 | AD185: =Inputs!AA123*Ops!AD$175 -> 0 | AE185: =Inputs!AB123*Ops!AE$175 -> 0 | AF185: =Inputs!AC123*Ops!AF$175 -> 0 | AG185: =Inputs!AD123*Ops!AG$175 -> 0 | AH185: =Inputs!AE123*Ops!AH$175 -> 0 | AI185: =Inputs!AF123*Ops!AI$175 -> 0 | AJ185: =Inputs!AG123*Ops!AJ$175 -> 0
C186: =Inputs!C124 -> Custo e despesa 9 | E186: $ 000s | F186: 0 | G186: =Inputs!D124*Ops!G$175 -> 0 | H186: =Inputs!E124*Ops!H$175 -> 0 | I186: =Inputs!F124*Ops!I$175 -> 0 | J186: =Inputs!G124*Ops!J$175 -> 0 | K186: =Inputs!H124*Ops!K$175 -> 0 | L186: =Inputs!I124*Ops!L$175 -> 0 | M186: =Inputs!J124*Ops!M$175 -> 0 | N186: =Inputs!K124*Ops!N$175 -> 0 | O186: =Inputs!L124*Ops!O$175 -> 0 | P186: =Inputs!M124*Ops!P$175 -> 0 | Q186: =Inputs!N124*Ops!Q$175 -> 0 | R186: =Inputs!O124*Ops!R$175 -> 0 | S186: =Inputs!P124*Ops!S$175 -> 0 | T186: =Inputs!Q124*Ops!T$175 -> 0 | U186: =Inputs!R124*Ops!U$175 -> 0 | V186: =Inputs!S124*Ops!V$175 -> 0 | W186: =Inputs!T124*Ops!W$175 -> 0 | X186: =Inputs!U124*Ops!X$175 -> 0 | Y186: =Inputs!V124*Ops!Y$175 -> 0 | Z186: =Inputs!W124*Ops!Z$175 -> 0 | AA186: =Inputs!X124*Ops!AA$175 -> 0 | AB186: =Inputs!Y124*Ops!AB$175 -> 0 | AC186: =Inputs!Z124*Ops!AC$175 -> 0 | AD186: =Inputs!AA124*Ops!AD$175 -> 0 | AE186: =Inputs!AB124*Ops!AE$175 -> 0 | AF186: =Inputs!AC124*Ops!AF$175 -> 0 | AG186: =Inputs!AD124*Ops!AG$175 -> 0 | AH186: =Inputs!AE124*Ops!AH$175 -> 0 | AI186: =Inputs!AF124*Ops!AI$175 -> 0 | AJ186: =Inputs!AG124*Ops!AJ$175 -> 0
C187: =Inputs!C125 -> Custo e despesa 10 | E187: $ 000s | F187: 0 | G187: =Inputs!D125*Ops!G$175 -> 0 | H187: =Inputs!E125*Ops!H$175 -> 0 | I187: =Inputs!F125*Ops!I$175 -> 0 | J187: =Inputs!G125*Ops!J$175 -> 0 | K187: =Inputs!H125*Ops!K$175 -> 0 | L187: =Inputs!I125*Ops!L$175 -> 0 | M187: =Inputs!J125*Ops!M$175 -> 0 | N187: =Inputs!K125*Ops!N$175 -> 0 | O187: =Inputs!L125*Ops!O$175 -> 0 | P187: =Inputs!M125*Ops!P$175 -> 0 | Q187: =Inputs!N125*Ops!Q$175 -> 0 | R187: =Inputs!O125*Ops!R$175 -> 0 | S187: =Inputs!P125*Ops!S$175 -> 0 | T187: =Inputs!Q125*Ops!T$175 -> 0 | U187: =Inputs!R125*Ops!U$175 -> 0 | V187: =Inputs!S125*Ops!V$175 -> 0 | W187: =Inputs!T125*Ops!W$175 -> 0 | X187: =Inputs!U125*Ops!X$175 -> 0 | Y187: =Inputs!V125*Ops!Y$175 -> 0 | Z187: =Inputs!W125*Ops!Z$175 -> 0 | AA187: =Inputs!X125*Ops!AA$175 -> 0 | AB187: =Inputs!Y125*Ops!AB$175 -> 0 | AC187: =Inputs!Z125*Ops!AC$175 -> 0 | AD187: =Inputs!AA125*Ops!AD$175 -> 0 | AE187: =Inputs!AB125*Ops!AE$175 -> 0 | AF187: =Inputs!AC125*Ops!AF$175 -> 0 | AG187: =Inputs!AD125*Ops!AG$175 -> 0 | AH187: =Inputs!AE125*Ops!AH$175 -> 0 | AI187: =Inputs!AF125*Ops!AI$175 -> 0 | AJ187: =Inputs!AG125*Ops!AJ$175 -> 0
C188: =Inputs!C126 -> Custo e despesa 11 | E188: $ 000s | F188: 0 | G188: =Inputs!D126*Ops!G$175 -> 0 | H188: =Inputs!E126*Ops!H$175 -> 0 | I188: =Inputs!F126*Ops!I$175 -> 0 | J188: =Inputs!G126*Ops!J$175 -> 0 | K188: =Inputs!H126*Ops!K$175 -> 0 | L188: =Inputs!I126*Ops!L$175 -> 0 | M188: =Inputs!J126*Ops!M$175 -> 0 | N188: =Inputs!K126*Ops!N$175 -> 0 | O188: =Inputs!L126*Ops!O$175 -> 0 | P188: =Inputs!M126*Ops!P$175 -> 0 | Q188: =Inputs!N126*Ops!Q$175 -> 0 | R188: =Inputs!O126*Ops!R$175 -> 0 | S188: =Inputs!P126*Ops!S$175 -> 0 | T188: =Inputs!Q126*Ops!T$175 -> 0 | U188: =Inputs!R126*Ops!U$175 -> 0 | V188: =Inputs!S126*Ops!V$175 -> 0 | W188: =Inputs!T126*Ops!W$175 -> 0 | X188: =Inputs!U126*Ops!X$175 -> 0 | Y188: =Inputs!V126*Ops!Y$175 -> 0 | Z188: =Inputs!W126*Ops!Z$175 -> 0 | AA188: =Inputs!X126*Ops!AA$175 -> 0 | AB188: =Inputs!Y126*Ops!AB$175 -> 0 | AC188: =Inputs!Z126*Ops!AC$175 -> 0 | AD188: =Inputs!AA126*Ops!AD$175 -> 0 | AE188: =Inputs!AB126*Ops!AE$175 -> 0 | AF188: =Inputs!AC126*Ops!AF$175 -> 0 | AG188: =Inputs!AD126*Ops!AG$175 -> 0 | AH188: =Inputs!AE126*Ops!AH$175 -> 0 | AI188: =Inputs!AF126*Ops!AI$175 -> 0 | AJ188: =Inputs!AG126*Ops!AJ$175 -> 0
C189: =Inputs!C127 -> Custo e despesa 12 | E189: $ 000s | F189: 0 | G189: =Inputs!D127*Ops!G$175 -> 0 | H189: =Inputs!E127*Ops!H$175 -> 0 | I189: =Inputs!F127*Ops!I$175 -> 0 | J189: =Inputs!G127*Ops!J$175 -> 0 | K189: =Inputs!H127*Ops!K$175 -> 0 | L189: =Inputs!I127*Ops!L$175 -> 0 | M189: =Inputs!J127*Ops!M$175 -> 0 | N189: =Inputs!K127*Ops!N$175 -> 0 | O189: =Inputs!L127*Ops!O$175 -> 0 | P189: =Inputs!M127*Ops!P$175 -> 0 | Q189: =Inputs!N127*Ops!Q$175 -> 0 | R189: =Inputs!O127*Ops!R$175 -> 0 | S189: =Inputs!P127*Ops!S$175 -> 0 | T189: =Inputs!Q127*Ops!T$175 -> 0 | U189: =Inputs!R127*Ops!U$175 -> 0 | V189: =Inputs!S127*Ops!V$175 -> 0 | W189: =Inputs!T127*Ops!W$175 -> 0 | X189: =Inputs!U127*Ops!X$175 -> 0 | Y189: =Inputs!V127*Ops!Y$175 -> 0 | Z189: =Inputs!W127*Ops!Z$175 -> 0 | AA189: =Inputs!X127*Ops!AA$175 -> 0 | AB189: =Inputs!Y127*Ops!AB$175 -> 0 | AC189: =Inputs!Z127*Ops!AC$175 -> 0 | AD189: =Inputs!AA127*Ops!AD$175 -> 0 | AE189: =Inputs!AB127*Ops!AE$175 -> 0 | AF189: =Inputs!AC127*Ops!AF$175 -> 0 | AG189: =Inputs!AD127*Ops!AG$175 -> 0 | AH189: =Inputs!AE127*Ops!AH$175 -> 0 | AI189: =Inputs!AF127*Ops!AI$175 -> 0 | AJ189: =Inputs!AG127*Ops!AJ$175 -> 0
C190: =Inputs!C128 -> Custo e despesa 13 | E190: $ 000s | F190: 0 | G190: =Inputs!D128*Ops!G$175 -> 0 | H190: =Inputs!E128*Ops!H$175 -> 0 | I190: =Inputs!F128*Ops!I$175 -> 0 | J190: =Inputs!G128*Ops!J$175 -> 0 | K190: =Inputs!H128*Ops!K$175 -> 0 | L190: =Inputs!I128*Ops!L$175 -> 0 | M190: =Inputs!J128*Ops!M$175 -> 0 | N190: =Inputs!K128*Ops!N$175 -> 0 | O190: =Inputs!L128*Ops!O$175 -> 0 | P190: =Inputs!M128*Ops!P$175 -> 0 | Q190: =Inputs!N128*Ops!Q$175 -> 0 | R190: =Inputs!O128*Ops!R$175 -> 0 | S190: =Inputs!P128*Ops!S$175 -> 0 | T190: =Inputs!Q128*Ops!T$175 -> 0 | U190: =Inputs!R128*Ops!U$175 -> 0 | V190: =Inputs!S128*Ops!V$175 -> 0 | W190: =Inputs!T128*Ops!W$175 -> 0 | X190: =Inputs!U128*Ops!X$175 -> 0 | Y190: =Inputs!V128*Ops!Y$175 -> 0 | Z190: =Inputs!W128*Ops!Z$175 -> 0 | AA190: =Inputs!X128*Ops!AA$175 -> 0 | AB190: =Inputs!Y128*Ops!AB$175 -> 0 | AC190: =Inputs!Z128*Ops!AC$175 -> 0 | AD190: =Inputs!AA128*Ops!AD$175 -> 0 | AE190: =Inputs!AB128*Ops!AE$175 -> 0 | AF190: =Inputs!AC128*Ops!AF$175 -> 0 | AG190: =Inputs!AD128*Ops!AG$175 -> 0 | AH190: =Inputs!AE128*Ops!AH$175 -> 0 | AI190: =Inputs!AF128*Ops!AI$175 -> 0 | AJ190: =Inputs!AG128*Ops!AJ$175 -> 0
C191: =Inputs!C129 -> Custo e despesa 14 | E191: $ 000s | F191: 0 | G191: =Inputs!D129*Ops!G$175 -> 0 | H191: =Inputs!E129*Ops!H$175 -> 0 | I191: =Inputs!F129*Ops!I$175 -> 0 | J191: =Inputs!G129*Ops!J$175 -> 0 | K191: =Inputs!H129*Ops!K$175 -> 0 | L191: =Inputs!I129*Ops!L$175 -> 0 | M191: =Inputs!J129*Ops!M$175 -> 0 | N191: =Inputs!K129*Ops!N$175 -> 0 | O191: =Inputs!L129*Ops!O$175 -> 0 | P191: =Inputs!M129*Ops!P$175 -> 0 | Q191: =Inputs!N129*Ops!Q$175 -> 0 | R191: =Inputs!O129*Ops!R$175 -> 0 | S191: =Inputs!P129*Ops!S$175 -> 0 | T191: =Inputs!Q129*Ops!T$175 -> 0 | U191: =Inputs!R129*Ops!U$175 -> 0 | V191: =Inputs!S129*Ops!V$175 -> 0 | W191: =Inputs!T129*Ops!W$175 -> 0 | X191: =Inputs!U129*Ops!X$175 -> 0 | Y191: =Inputs!V129*Ops!Y$175 -> 0 | Z191: =Inputs!W129*Ops!Z$175 -> 0 | AA191: =Inputs!X129*Ops!AA$175 -> 0 | AB191: =Inputs!Y129*Ops!AB$175 -> 0 | AC191: =Inputs!Z129*Ops!AC$175 -> 0 | AD191: =Inputs!AA129*Ops!AD$175 -> 0 | AE191: =Inputs!AB129*Ops!AE$175 -> 0 | AF191: =Inputs!AC129*Ops!AF$175 -> 0 | AG191: =Inputs!AD129*Ops!AG$175 -> 0 | AH191: =Inputs!AE129*Ops!AH$175 -> 0 | AI191: =Inputs!AF129*Ops!AI$175 -> 0 | AJ191: =Inputs!AG129*Ops!AJ$175 -> 0
C193: Custos e Despesas (OPEX) PPP total | E193: R$ / ano | F193: =SUM(G193:AJ193) -> 0 | G193: =SUM(G178:G191) -> 0 | H193: 0 | I193: 0 | J193: 0 | K193: 0 | L193: 0 | M193: 0 | N193: 0 | O193: 0 | P193: 0 | Q193: 0 | R193: 0 | S193: 0 | T193: 0 | U193: 0 | V193: 0 | W193: 0 | X193: 0 | Y193: 0 | Z193: 0 | AA193: 0 | AB193: 0 | AC193: 0 | AD193: 0 | AE193: 0 | AF193: 0 | AG193: 0 | AH193: 0 | AI193: 0 | AJ193: 0
C197: Real
C198: =C178 -> Custo e despesa 1 | E198: =E178 -> $ 000s | F198: =SUM(G198:AJ198) -> 0 | G198: =G178 -> 0 | H198: 0 | I198: 0 | J198: 0 | K198: 0 | L198: 0 | M198: 0 | N198: 0 | O198: 0 | P198: 0 | Q198: 0 | R198: 0 | S198: 0 | T198: 0 | U198: 0 | V198: 0 | W198: 0 | X198: 0 | Y198: 0 | Z198: 0 | AA198: 0 | AB198: 0 | AC198: 0 | AD198: 0 | AE198: 0 | AF198: 0 | AG198: 0 | AH198: 0 | AI198: 0 | AJ198: 0
C199: Custo e despesa 2 | E199: $ 000s | F199: 0 | G199: =G179 -> 0 | H199: 0 | I199: 0 | J199: 0 | K199: 0 | L199: 0 | M199: 0 | N199: 0 | O199: 0 | P199: 0 | Q199: 0 | R199: 0 | S199: 0 | T199: 0 | U199: 0 | V199: 0 | W199: 0 | X199: 0 | Y199: 0 | Z199: 0 | AA199: 0 | AB199: 0 | AC199: 0 | AD199: 0 | AE199: 0 | AF199: 0 | AG199: 0 | AH199: 0 | AI199: 0 | AJ199: 0
C200: Custo e despesa 3 | E200: $ 000s | F200: 0 | G200: =G180 -> 0 | H200: 0 | I200: 0 | J200: 0 | K200: 0 | L200: 0 | M200: 0 | N200: 0 | O200: 0 | P200: 0 | Q200: 0 | R200: 0 | S200: 0 | T200: 0 | U200: 0 | V200: 0 | W200: 0 | X200: 0 | Y200: 0 | Z200: 0 | AA200: 0 | AB200: 0 | AC200: 0 | AD200: 0 | AE200: 0 | AF200: 0 | AG200: 0 | AH200: 0 | AI200: 0 | AJ200: 0
C201: Custo e despesa 4 | E201: $ 000s | F201: 0 | G201: =G181 -> 0 | H201: 0 | I201: 0 | J201: 0 | K201: 0 | L201: 0 | M201: 0 | N201: 0 | O201: 0 | P201: 0 | Q201: 0 | R201: 0 | S201: 0 | T201: 0 | U201: 0 | V201: 0 | W201: 0 | X201: 0 | Y201: 0 | Z201: 0 | AA201: 0 | AB201: 0 | AC201: 0 | AD201: 0 | AE201: 0 | AF201: 0 | AG201: 0 | AH201: 0 | AI201: 0 | AJ201: 0
C202: Custo e despesa 5 | E202: $ 000s | F202: 0 | G202: =G182 -> 0 | H202: 0 | I202: 0 | J202: 0 | K202: 0 | L202: 0 | M202: 0 | N202: 0 | O202: 0 | P202: 0 | Q202: 0 | R202: 0 | S202: 0 | T202: 0 | U202: 0 | V202: 0 | W202: 0 | X202: 0 | Y202: 0 | Z202: 0 | AA202: 0 | AB202: 0 | AC202: 0 | AD202: 0 | AE202: 0 | AF202: 0 | AG202: 0 | AH202: 0 | AI202: 0 | AJ202: 0
C203: Custo e despesa 6 | E203: $ 000s | F203: 0 | G203: =G183 -> 0 | H203: 0 | I203: 0 | J203: 0 | K203: 0 | L203: 0 | M203: 0 | N203: 0 | O203: 0 | P203: 0 | Q203: 0 | R203: 0 | S203: 0 | T203: 0 | U203: 0 | V203: 0 | W203: 0 | X203: 0 | Y203: 0 | Z203: 0 | AA203: 0 | AB203: 0 | AC203: 0 | AD203: 0 | AE203: 0 | AF203: 0 | AG203: 0 | AH203: 0 | AI203: 0 | AJ203: 0
C204: Custo e despesa 7 | E204: $ 000s | F204: 0 | G204: =G184 -> 0 | H204: 0 | I204: 0 | J204: 0 | K204: 0 | L204: 0 | M204: 0 | N204: 0 | O204: 0 | P204: 0 | Q204: 0 | R204: 0 | S204: 0 | T204: 0 | U204: 0 | V204: 0 | W204: 0 | X204: 0 | Y204: 0 | Z204: 0 | AA204: 0 | AB204: 0 | AC204: 0 | AD204: 0 | AE204: 0 | AF204: 0 | AG204: 0 | AH204: 0 | AI204: 0 | AJ204: 0
C205: Custo e despesa 8 | E205: $ 000s | F205: 0 | G205: =G185 -> 0 | H205: 0 | I205: 0 | J205: 0 | K205: 0 | L205: 0 | M205: 0 | N205: 0 | O205: 0 | P205: 0 | Q205: 0 | R205: 0 | S205: 0 | T205: 0 | U205: 0 | V205: 0 | W205: 0 | X205: 0 | Y205: 0 | Z205: 0 | AA205: 0 | AB205: 0 | AC205: 0 | AD205: 0 | AE205: 0 | AF205: 0 | AG205: 0 | AH205: 0 | AI205: 0 | AJ205: 0
C206: Custo e despesa 9 | E206: $ 000s | F206: 0 | G206: =G186 -> 0 | H206: 0 | I206: 0 | J206: 0 | K206: 0 | L206: 0 | M206: 0 | N206: 0 | O206: 0 | P206: 0 | Q206: 0 | R206: 0 | S206: 0 | T206: 0 | U206: 0 | V206: 0 | W206: 0 | X206: 0 | Y206: 0 | Z206: 0 | AA206: 0 | AB206: 0 | AC206: 0 | AD206: 0 | AE206: 0 | AF206: 0 | AG206: 0 | AH206: 0 | AI206: 0 | AJ206: 0
C207: Custo e despesa 10 | E207: $ 000s | F207: 0 | G207: =G187 -> 0 | H207: 0 | I207: 0 | J207: 0 | K207: 0 | L207: 0 | M207: 0 | N207: 0 | O207: 0 | P207: 0 | Q207: 0 | R207: 0 | S207: 0 | T207: 0 | U207: 0 | V207: 0 | W207: 0 | X207: 0 | Y207: 0 | Z207: 0 | AA207: 0 | AB207: 0 | AC207: 0 | AD207: 0 | AE207: 0 | AF207: 0 | AG207: 0 | AH207: 0 | AI207: 0 | AJ207: 0
C208: Custo e despesa 11 | E208: $ 000s | F208: 0 | G208: =G188 -> 0 | H208: 0 | I208: 0 | J208: 0 | K208: 0 | L208: 0 | M208: 0 | N208: 0 | O208: 0 | P208: 0 | Q208: 0 | R208: 0 | S208: 0 | T208: 0 | U208: 0 | V208: 0 | W208: 0 | X208: 0 | Y208: 0 | Z208: 0 | AA208: 0 | AB208: 0 | AC208: 0 | AD208: 0 | AE208: 0 | AF208: 0 | AG208: 0 | AH208: 0 | AI208: 0 | AJ208: 0
C209: Custo e despesa 12 | E209: $ 000s | F209: 0 | G209: =G189 -> 0 | H209: 0 | I209: 0 | J209: 0 | K209: 0 | L209: 0 | M209: 0 | N209: 0 | O209: 0 | P209: 0 | Q209: 0 | R209: 0 | S209: 0 | T209: 0 | U209: 0 | V209: 0 | W209: 0 | X209: 0 | Y209: 0 | Z209: 0 | AA209: 0 | AB209: 0 | AC209: 0 | AD209: 0 | AE209: 0 | AF209: 0 | AG209: 0 | AH209: 0 | AI209: 0 | AJ209: 0
C210: Custo e despesa 13 | E210: $ 000s | F210: 0 | G210: =G190 -> 0 | H210: 0 | I210: 0 | J210: 0 | K210: 0 | L210: 0 | M210: 0 | N210: 0 | O210: 0 | P210: 0 | Q210: 0 | R210: 0 | S210: 0 | T210: 0 | U210: 0 | V210: 0 | W210: 0 | X210: 0 | Y210: 0 | Z210: 0 | AA210: 0 | AB210: 0 | AC210: 0 | AD210: 0 | AE210: 0 | AF210: 0 | AG210: 0 | AH210: 0 | AI210: 0 | AJ210: 0
C211: Custo e despesa 14 | E211: $ 000s | F211: 0 | G211: =G191 -> 0 | H211: 0 | I211: 0 | J211: 0 | K211: 0 | L211: 0 | M211: 0 | N211: 0 | O211: 0 | P211: 0 | Q211: 0 | R211: 0 | S211: 0 | T211: 0 | U211: 0 | V211: 0 | W211: 0 | X211: 0 | Y211: 0 | Z211: 0 | AA211: 0 | AB211: 0 | AC211: 0 | AD211: 0 | AE211: 0 | AF211: 0 | AG211: 0 | AH211: 0 | AI211: 0 | AJ211: 0
C212: Custos totais | E212: $ 000s | F212: 0 | G212: =SUM(G198:G211) -> 0 | H212: 0 | I212: 0 | J212: 0 | K212: 0 | L212: 0 | M212: 0 | N212: 0 | O212: 0 | P212: 0 | Q212: 0 | R212: 0 | S212: 0 | T212: 0 | U212: 0 | V212: 0 | W212: 0 | X212: 0 | Y212: 0 | Z212: 0 | AA212: 0 | AB212: 0 | AC212: 0 | AD212: 0 | AE212: 0 | AF212: 0 | AG212: 0 | AH212: 0 | AI212: 0 | AJ212: 0
C216: Capital de Giro
C218: Contas a receber
C219: Dias contas a receber | D219: =Inputs!E155 -> 0 | E219: Dias
C220: Dias no ano | E220: Dias | G220: =G12 -> 366 | H220: 365 | I220: 365 | J220: 365 | K220: 366 | L220: 365 | M220: 365 | N220: 365 | O220: 366 | P220: 365 | Q220: 365 | R220: 365 | S220: 366 | T220: 365 | U220: 365 | V220: 365 | W220: 366 | X220: 365 | Y220: 365 | Z220: 365 | AA220: 366 | AB220: 365 | AC220: 365 | AD220: 365 | AE220: 366 | AF220: 365 | AG220: 365 | AH220: 365 | AI220: 366 | AJ220: 365
C221: Receitas | E221: $ 000s | F221: =SUM(G221:AJ221) -> 786673.7001 | G221: ='Fluxo de caixa do projeto'!G11 -> 16261.63 | H221: ='Fluxo de caixa do projeto'!H11 -> 22222.64771 | I221: ='Fluxo de caixa do projeto'!I11 -> 22553.9549 | J221: ='Fluxo de caixa do projeto'!J11 -> 22882.4867 | K221: ='Fluxo de caixa do projeto'!K11 -> 23208.32414 | L221: ='Fluxo de caixa do projeto'!L11 -> 23531.54476 | M221: ='Fluxo de caixa do projeto'!M11 -> 23852.22278 | N221: ='Fluxo de caixa do projeto'!N11 -> 24170.42933 | O221: ='Fluxo de caixa do projeto'!O11 -> 24486.23259 | P221: ='Fluxo de caixa do projeto'!P11 -> 24799.69795 | Q221: ='Fluxo de caixa do projeto'!Q11 -> 25110.88816 | R221: ='Fluxo de caixa do projeto'!R11 -> 25419.86351 | S221: ='Fluxo de caixa do projeto'!S11 -> 25726.68189 | T221: ='Fluxo de caixa do projeto'!T11 -> 26031.39896 | U221: ='Fluxo de caixa do projeto'!U11 -> 26334.06826 | V221: ='Fluxo de caixa do projeto'!V11 -> 26634.74131 | W221: ='Fluxo de caixa do projeto'!W11 -> 26933.4677 | X221: ='Fluxo de caixa do projeto'!X11 -> 27230.2952 | Y221: ='Fluxo de caixa do projeto'!Y11 -> 27525.26984 | Z221: ='Fluxo de caixa do projeto'!Z11 -> 27818.43601 | AA221: ='Fluxo de caixa do projeto'!AA11 -> 28109.8365 | AB221: ='Fluxo de caixa do projeto'!AB11 -> 28399.51262 | AC221: ='Fluxo de caixa do projeto'!AC11 -> 28687.50423 | AD221: ='Fluxo de caixa do projeto'!AD11 -> 28973.84985 | AE221: ='Fluxo de caixa do projeto'!AE11 -> 29258.58666 | AF221: ='Fluxo de caixa do projeto'!AF11 -> 29541.75062 | AG221: ='Fluxo de caixa do projeto'!AG11 -> 29823.37648 | AH221: ='Fluxo de caixa do projeto'!AH11 -> 30103.49786 | AI221: ='Fluxo de caixa do projeto'!AI11 -> 30382.1473 | AJ221: ='Fluxo de caixa do projeto'!AJ11 -> 30659.35627
C222: Fluxo de caixa das receitas | E222: $ 000s | G222: =(G221/G220)*$D219 -> 0 | H222: =(H221/H220)*$D$219 -> 0 | I222: 0 | J222: 0 | K222: 0 | L222: 0 | M222: 0 | N222: 0 | O222: 0 | P222: 0 | Q222: 0 | R222: 0 | S222: 0 | T222: 0 | U222: 0 | V222: 0 | W222: 0 | X222: 0 | Y222: 0 | Z222: 0 | AA222: 0 | AB222: 0 | AC222: 0 | AD222: 0 | AE222: 0 | AF222: 0 | AG222: 0 | AH222: 0 | AI222: 0 | AJ222: 0
C223: Contas a receber | E223: $ 000s | G223: =IF(G$235=1,0,G222) -> 0 | H223: 0 | I223: 0 | J223: 0 | K223: 0 | L223: 0 | M223: 0 | N223: 0 | O223: 0 | P223: 0 | Q223: 0 | R223: 0 | S223: 0 | T223: 0 | U223: 0 | V223: 0 | W223: 0 | X223: 0 | Y223: 0 | Z223: 0 | AA223: 0 | AB223: 0 | AC223: 0 | AD223: 0 | AE223: 0 | AF223: 0 | AG223: 0 | AH223: 0 | AI223: 0 | AJ223: 0
C224: Variação contas a receber | E224: $ 000s | G224: =F223-G223 -> 0 | H224: 0 | I224: 0 | J224: 0 | K224: 0 | L224: 0 | M224: 0 | N224: 0 | O224: 0 | P224: 0 | Q224: 0 | R224: 0 | S224: 0 | T224: 0 | U224: 0 | V224: 0 | W224: 0 | X224: 0 | Y224: 0 | Z224: 0 | AA224: 0 | AB224: 0 | AC224: 0 | AD224: 0 | AE224: 0 | AF224: 0 | AG224: 0 | AH224: 0 | AI224: 0 | AJ224: 0
C226: Contas a pagar
C227: Dias contas a pagar | D227: =Inputs!E157 -> 0 | E227: Dias
C228: =C220 -> Dias no ano | E228: Dias | G228: =G220 -> 366 | H228: 365 | I228: 365 | J228: 365 | K228: 366 | L228: 365 | M228: 365 | N228: 365 | O228: 366 | P228: 365 | Q228: 365 | R228: 365 | S228: 366 | T228: 365 | U228: 365 | V228: 365 | W228: 366 | X228: 365 | Y228: 365 | Z228: 365 | AA228: 366 | AB228: 365 | AC228: 365 | AD228: 365 | AE228: 366 | AF228: 365 | AG228: 365 | AH228: 365 | AI228: 366 | AJ228: 365
C229: Custos elegíveis ao contas a pagar | E229: $ 000s | F229: =SUM(G229:AJ229) -> 0 | G229: =G212 -> 0 | H229: 0 | I229: 0 | J229: 0 | K229: 0 | L229: 0 | M229: 0 | N229: 0 | O229: 0 | P229: 0 | Q229: 0 | R229: 0 | S229: 0 | T229: 0 | U229: 0 | V229: 0 | W229: 0 | X229: 0 | Y229: 0 | Z229: 0 | AA229: 0 | AB229: 0 | AC229: 0 | AD229: 0 | AE229: 0 | AF229: 0 | AG229: 0 | AH229: 0 | AI229: 0 | AJ229: 0
C230: Pagamento custos operacionais | E230: $ 000s | G230: =(G229/G228)*$D227 -> 0 | H230: =(H229/H228)*$D227 -> 0 | I230: 0 | J230: 0 | K230: 0 | L230: 0 | M230: 0 | N230: 0 | O230: 0 | P230: 0 | Q230: 0 | R230: 0 | S230: 0 | T230: 0 | U230: 0 | V230: 0 | W230: 0 | X230: 0 | Y230: 0 | Z230: 0 | AA230: 0 | AB230: 0 | AC230: 0 | AD230: 0 | AE230: 0 | AF230: 0 | AG230: 0 | AH230: 0 | AI230: 0 | AJ230: 0
C231: Contas a pagar | E231: R$ | G231: =IF(G$235=1,0,G230) -> 0 | H231: 0 | I231: 0 | J231: 0 | K231: 0 | L231: 0 | M231: 0 | N231: 0 | O231: 0 | P231: 0 | Q231: 0 | R231: 0 | S231: 0 | T231: 0 | U231: 0 | V231: 0 | W231: 0 | X231: 0 | Y231: 0 | Z231: 0 | AA231: 0 | AB231: 0 | AC231: 0 | AD231: 0 | AE231: 0 | AF231: 0 | AG231: 0 | AH231: 0 | AI231: 0 | AJ231: 0
C232: Variação contas a pagar | E232: R$ | G232: =G231-F231 -> 0 | H232: 0 | I232: 0 | J232: 0 | K232: 0 | L232: 0 | M232: 0 | N232: 0 | O232: 0 | P232: 0 | Q232: 0 | R232: 0 | S232: 0 | T232: 0 | U232: 0 | V232: 0 | W232: 0 | X232: 0 | Y232: 0 | Z232: 0 | AA232: 0 | AB232: 0 | AC232: 0 | AD232: 0 | AE232: 0 | AF232: 0 | AG232: 0 | AH232: 0 | AI232: 0 | AJ232: 0
C234: Variação capital de giro
C235: Flag último dia de operação | G235: =IF(G$3=Inputs!$E$8,1,0) -> 0 | H235: =IF(H$3=Inputs!$E$8,1,0) -> 0 | I235: =IF(I$3=Inputs!$E$8,1,0) -> 0 | J235: =IF(J$3=Inputs!$E$8,1,0) -> 0 | K235: =IF(K$3=Inputs!$E$8,1,0) -> 0 | L235: =IF(L$3=Inputs!$E$8,1,0) -> 0 | M235: =IF(M$3=Inputs!$E$8,1,0) -> 0 | N235: =IF(N$3=Inputs!$E$8,1,0) -> 0 | O235: =IF(O$3=Inputs!$E$8,1,0) -> 0 | P235: =IF(P$3=Inputs!$E$8,1,0) -> 0 | Q235: =IF(Q$3=Inputs!$E$8,1,0) -> 0 | R235: =IF(R$3=Inputs!$E$8,1,0) -> 0 | S235: =IF(S$3=Inputs!$E$8,1,0) -> 0 | T235: =IF(T$3=Inputs!$E$8,1,0) -> 0 | U235: =IF(U$3=Inputs!$E$8,1,0) -> 0 | V235: =IF(V$3=Inputs!$E$8,1,0) -> 0 | W235: =IF(W$3=Inputs!$E$8,1,0) -> 0 | X235: =IF(X$3=Inputs!$E$8,1,0) -> 0 | Y235: =IF(Y$3=Inputs!$E$8,1,0) -> 0 | Z235: =IF(Z$3=Inputs!$E$8,1,0) -> 0 | AA235: =IF(AA$3=Inputs!$E$8,1,0) -> 0 | AB235: =IF(AB$3=Inputs!$E$8,1,0) -> 0 | AC235: =IF(AC$3=Inputs!$E$8,1,0) -> 0 | AD235: =IF(AD$3=Inputs!$E$8,1,0) -> 0 | AE235: =IF(AE$3=Inputs!$E$8,1,0) -> 0 | AF235: =IF(AF$3=Inputs!$E$8,1,0) -> 0 | AG235: =IF(AG$3=Inputs!$E$8,1,0) -> 0 | AH235: =IF(AH$3=Inputs!$E$8,1,0) -> 0 | AI235: =IF(AI$3=Inputs!$E$8,1,0) -> 0 | AJ235: =IF(AJ$3=Inputs!$E$8,1,0) -> 1
C237: =C224 -> Variação contas a receber | E237: $ 000s | F237: =SUM(G237:AJ237) -> 0 | G237: =G224 -> 0 | H237: 0 | I237: 0 | J237: 0 | K237: 0 | L237: 0 | M237: 0 | N237: 0 | O237: 0 | P237: 0 | Q237: 0 | R237: 0 | S237: 0 | T237: 0 | U237: 0 | V237: 0 | W237: 0 | X237: 0 | Y237: 0 | Z237: 0 | AA237: 0 | AB237: 0 | AC237: 0 | AD237: 0 | AE237: 0 | AF237: 0 | AG237: 0 | AH237: 0 | AI237: 0 | AJ237: 0
C238: =C232 -> Variação contas a pagar | E238: $ 000s | F238: =SUM(G238:AJ238) -> 0 | G238: =G232 -> 0 | H238: 0 | I238: 0 | J238: 0 | K238: 0 | L238: 0 | M238: 0 | N238: 0 | O238: 0 | P238: 0 | Q238: 0 | R238: 0 | S238: 0 | T238: 0 | U238: 0 | V238: 0 | W238: 0 | X238: 0 | Y238: 0 | Z238: 0 | AA238: 0 | AB238: 0 | AC238: 0 | AD238: 0 | AE238: 0 | AF238: 0 | AG238: 0 | AH238: 0 | AI238: 0 | AJ238: 0
C239: Variação de capital de giro | E239: $ 000s | F239: =SUM(G239:AJ239) -> 0 | G239: =SUM(G237:G238) -> 0 | H239: 0 | I239: 0 | J239: 0 | K239: 0 | L239: 0 | M239: 0 | N239: 0 | O239: 0 | P239: 0 | Q239: 0 | R239: 0 | S239: 0 | T239: 0 | U239: 0 | V239: 0 | W239: 0 | X239: 0 | Y239: 0 | Z239: 0 | AA239: 0 | AB239: 0 | AC239: 0 | AD239: 0 | AE239: 0 | AF239: 0 | AG239: 0 | AH239: 0 | AI239: 0 | AJ239: 0
C244: Funding, Imobilizado e Depreciação & Write-offs
C246: Funding
C248: CAPEX Programado
C250: =Inputs!C14 -> Coleta Manual E Conteinerizada Resíduos Comuns | D250: =Inputs!D30 -> Divisivel | E250: $ 000s | F250: =SUM(G250:AJ250) -> 0 | G250: =Inputs!D14 -> 0 | H250: =Inputs!E14 -> 0 | I250: =Inputs!F14 -> 0 | J250: =Inputs!G14 -> 0 | K250: =Inputs!H14 -> 0 | L250: =Inputs!I14 -> 0 | M250: =Inputs!J14 -> 0 | N250: =Inputs!K14 -> 0 | O250: =Inputs!L14 -> 0 | P250: =Inputs!M14 -> 0 | Q250: =Inputs!N14 -> 0 | R250: =Inputs!O14 -> 0 | S250: =Inputs!P14 -> 0 | T250: =Inputs!Q14 -> 0 | U250: =Inputs!R14 -> 0 | V250: =Inputs!S14 -> 0 | W250: =Inputs!T14 -> 0 | X250: =Inputs!U14 -> 0 | Y250: =Inputs!V14 -> 0 | Z250: =Inputs!W14 -> 0 | AA250: =Inputs!X14 -> 0 | AB250: =Inputs!Y14 -> 0 | AC250: =Inputs!Z14 -> 0 | AD250: =Inputs!AA14 -> 0 | AE250: =Inputs!AB14 -> 0 | AF250: =Inputs!AC14 -> 0 | AG250: =Inputs!AD14 -> 0 | AH250: =Inputs!AE14 -> 0 | AI250: =Inputs!AF14 -> 0 | AJ250: =Inputs!AG14 -> 0
C251: =Inputs!C15 -> Coleta De Materiais Recicláveis | D251: =Inputs!D31 -> Divisivel | E251: $ 000s | F251: 0 | G251: =Inputs!D15 -> 0 | H251: =Inputs!E15 -> 0 | I251: =Inputs!F15 -> 0 | J251: =Inputs!G15 -> 0 | K251: =Inputs!H15 -> 0 | L251: =Inputs!I15 -> 0 | M251: =Inputs!J15 -> 0 | N251: =Inputs!K15 -> 0 | O251: =Inputs!L15 -> 0 | P251: =Inputs!M15 -> 0 | Q251: =Inputs!N15 -> 0 | R251: =Inputs!O15 -> 0 | S251: =Inputs!P15 -> 0 | T251: =Inputs!Q15 -> 0 | U251: =Inputs!R15 -> 0 | V251: =Inputs!S15 -> 0 | W251: =Inputs!T15 -> 0 | X251: =Inputs!U15 -> 0 | Y251: =Inputs!V15 -> 0 | Z251: =Inputs!W15 -> 0 | AA251: =Inputs!X15 -> 0 | AB251: =Inputs!Y15 -> 0 | AC251: =Inputs!Z15 -> 0 | AD251: =Inputs!AA15 -> 0 | AE251: =Inputs!AB15 -> 0 | AF251: =Inputs!AC15 -> 0 | AG251: =Inputs!AD15 -> 0 | AH251: =Inputs!AE15 -> 0 | AI251: =Inputs!AF15 -> 0 | AJ251: =Inputs!AG15 -> 0
C252: =Inputs!C16 -> Transporte E Destinação Final - Resíduos Pevs | D252: =Inputs!D32 -> Divisivel | E252: $ 000s | F252: 0 | G252: =Inputs!D16 -> 0 | H252: =Inputs!E16 -> 0 | I252: =Inputs!F16 -> 0 | J252: =Inputs!G16 -> 0 | K252: =Inputs!H16 -> 0 | L252: =Inputs!I16 -> 0 | M252: =Inputs!J16 -> 0 | N252: =Inputs!K16 -> 0 | O252: =Inputs!L16 -> 0 | P252: =Inputs!M16 -> 0 | Q252: =Inputs!N16 -> 0 | R252: =Inputs!O16 -> 0 | S252: =Inputs!P16 -> 0 | T252: =Inputs!Q16 -> 0 | U252: =Inputs!R16 -> 0 | V252: =Inputs!S16 -> 0 | W252: =Inputs!T16 -> 0 | X252: =Inputs!U16 -> 0 | Y252: =Inputs!V16 -> 0 | Z252: =Inputs!W16 -> 0 | AA252: =Inputs!X16 -> 0 | AB252: =Inputs!Y16 -> 0 | AC252: =Inputs!Z16 -> 0 | AD252: =Inputs!AA16 -> 0 | AE252: =Inputs!AB16 -> 0 | AF252: =Inputs!AC16 -> 0 | AG252: =Inputs!AD16 -> 0 | AH252: =Inputs!AE16 -> 0 | AI252: =Inputs!AF16 -> 0 | AJ252: =Inputs!AG16 -> 0
C253: =Inputs!C17 -> Coleta Programada De Volumosos | D253: =Inputs!D33 -> Divisivel | E253: $ 000s | F253: 0 | G253: =Inputs!D17 -> 0 | H253: =Inputs!E17 -> 0 | I253: =Inputs!F17 -> 0 | J253: =Inputs!G17 -> 0 | K253: =Inputs!H17 -> 0 | L253: =Inputs!I17 -> 0 | M253: =Inputs!J17 -> 0 | N253: =Inputs!K17 -> 0 | O253: =Inputs!L17 -> 0 | P253: =Inputs!M17 -> 0 | Q253: =Inputs!N17 -> 0 | R253: =Inputs!O17 -> 0 | S253: =Inputs!P17 -> 0 | T253: =Inputs!Q17 -> 0 | U253: =Inputs!R17 -> 0 | V253: =Inputs!S17 -> 0 | W253: =Inputs!T17 -> 0 | X253: =Inputs!U17 -> 0 | Y253: =Inputs!V17 -> 0 | Z253: =Inputs!W17 -> 0 | AA253: =Inputs!X17 -> 0 | AB253: =Inputs!Y17 -> 0 | AC253: =Inputs!Z17 -> 0 | AD253: =Inputs!AA17 -> 0 | AE253: =Inputs!AB17 -> 0 | AF253: =Inputs!AC17 -> 0 | AG253: =Inputs!AD17 -> 0 | AH253: =Inputs!AE17 -> 0 | AI253: =Inputs!AF17 -> 0 | AJ253: =Inputs!AG17 -> 0
C254: =Inputs!C18 -> Varrição Manual | D254: =Inputs!D34 -> Indivisível | E254: $ 000s | F254: 0 | G254: =Inputs!D18 -> 0 | H254: =Inputs!E18 -> 0 | I254: =Inputs!F18 -> 0 | J254: =Inputs!G18 -> 0 | K254: =Inputs!H18 -> 0 | L254: =Inputs!I18 -> 0 | M254: =Inputs!J18 -> 0 | N254: =Inputs!K18 -> 0 | O254: =Inputs!L18 -> 0 | P254: =Inputs!M18 -> 0 | Q254: =Inputs!N18 -> 0 | R254: =Inputs!O18 -> 0 | S254: =Inputs!P18 -> 0 | T254: =Inputs!Q18 -> 0 | U254: =Inputs!R18 -> 0 | V254: =Inputs!S18 -> 0 | W254: =Inputs!T18 -> 0 | X254: =Inputs!U18 -> 0 | Y254: =Inputs!V18 -> 0 | Z254: =Inputs!W18 -> 0 | AA254: =Inputs!X18 -> 0 | AB254: =Inputs!Y18 -> 0 | AC254: =Inputs!Z18 -> 0 | AD254: =Inputs!AA18 -> 0 | AE254: =Inputs!AB18 -> 0 | AF254: =Inputs!AC18 -> 0 | AG254: =Inputs!AD18 -> 0 | AH254: =Inputs!AE18 -> 0 | AI254: =Inputs!AF18 -> 0 | AJ254: =Inputs!AG18 -> 0
C255: =Inputs!C19 -> Serviços Gerais | D255: =Inputs!D35 -> Indivisível | E255: $ 000s | F255: 0 | G255: =Inputs!D19 -> 0 | H255: =Inputs!E19 -> 0 | I255: =Inputs!F19 -> 0 | J255: =Inputs!G19 -> 0 | K255: =Inputs!H19 -> 0 | L255: =Inputs!I19 -> 0 | M255: =Inputs!J19 -> 0 | N255: =Inputs!K19 -> 0 | O255: =Inputs!L19 -> 0 | P255: =Inputs!M19 -> 0 | Q255: =Inputs!N19 -> 0 | R255: =Inputs!O19 -> 0 | S255: =Inputs!P19 -> 0 | T255: =Inputs!Q19 -> 0 | U255: =Inputs!R19 -> 0 | V255: =Inputs!S19 -> 0 | W255: =Inputs!T19 -> 0 | X255: =Inputs!U19 -> 0 | Y255: =Inputs!V19 -> 0 | Z255: =Inputs!W19 -> 0 | AA255: =Inputs!X19 -> 0 | AB255: =Inputs!Y19 -> 0 | AC255: =Inputs!Z19 -> 0 | AD255: =Inputs!AA19 -> 0 | AE255: =Inputs!AB19 -> 0 | AF255: =Inputs!AC19 -> 0 | AG255: =Inputs!AD19 -> 0 | AH255: =Inputs!AE19 -> 0 | AI255: =Inputs!AF19 -> 0 | AJ255: =Inputs!AG19 -> 0
C256: =Inputs!C20 -> Destinação Final | D256: =Inputs!D36 -> Divisivel | E256: $ 000s | F256: 0 | G256: =Inputs!D20 -> 0 | H256: =Inputs!E20 -> 0 | I256: =Inputs!F20 -> 0 | J256: =Inputs!G20 -> 0 | K256: =Inputs!H20 -> 0 | L256: =Inputs!I20 -> 0 | M256: =Inputs!J20 -> 0 | N256: =Inputs!K20 -> 0 | O256: =Inputs!L20 -> 0 | P256: =Inputs!M20 -> 0 | Q256: =Inputs!N20 -> 0 | R256: =Inputs!O20 -> 0 | S256: =Inputs!P20 -> 0 | T256: =Inputs!Q20 -> 0 | U256: =Inputs!R20 -> 0 | V256: =Inputs!S20 -> 0 | W256: =Inputs!T20 -> 0 | X256: =Inputs!U20 -> 0 | Y256: =Inputs!V20 -> 0 | Z256: =Inputs!W20 -> 0 | AA256: =Inputs!X20 -> 0 | AB256: =Inputs!Y20 -> 0 | AC256: =Inputs!Z20 -> 0 | AD256: =Inputs!AA20 -> 0 | AE256: =Inputs!AB20 -> 0 | AF256: =Inputs!AC20 -> 0 | AG256: =Inputs!AD20 -> 0 | AH256: =Inputs!AE20 -> 0 | AI256: =Inputs!AF20 -> 0 | AJ256: =Inputs!AG20 -> 0
C257: =Inputs!C21 -> Investimentos Destinação Final | D257: =Inputs!D37 -> Divisivel | E257: $ 000s | F257: 0 | G257: =Inputs!D21 -> 0 | H257: =Inputs!E21 -> 0 | I257: =Inputs!F21 -> 0 | J257: =Inputs!G21 -> 0 | K257: =Inputs!H21 -> 0 | L257: =Inputs!I21 -> 0 | M257: =Inputs!J21 -> 0 | N257: =Inputs!K21 -> 0 | O257: =Inputs!L21 -> 0 | P257: =Inputs!M21 -> 0 | Q257: =Inputs!N21 -> 0 | R257: =Inputs!O21 -> 0 | S257: =Inputs!P21 -> 0 | T257: =Inputs!Q21 -> 0 | U257: =Inputs!R21 -> 0 | V257: =Inputs!S21 -> 0 | W257: =Inputs!T21 -> 0 | X257: =Inputs!U21 -> 0 | Y257: =Inputs!V21 -> 0 | Z257: =Inputs!W21 -> 0 | AA257: =Inputs!X21 -> 0 | AB257: =Inputs!Y21 -> 0 | AC257: =Inputs!Z21 -> 0 | AD257: =Inputs!AA21 -> 0 | AE257: =Inputs!AB21 -> 0 | AF257: =Inputs!AC21 -> 0 | AG257: =Inputs!AD21 -> 0 | AH257: =Inputs!AE21 -> 0 | AI257: =Inputs!AF21 -> 0 | AJ257: =Inputs!AG21 -> 0
C258: =Inputs!C22 -> Educação Ambiental | D258: =Inputs!D38 -> Indivisível | E258: $ 000s | F258: 0 | G258: =Inputs!D22 -> 0 | H258: =Inputs!E22 -> 0 | I258: =Inputs!F22 -> 0 | J258: =Inputs!G22 -> 0 | K258: =Inputs!H22 -> 0 | L258: =Inputs!I22 -> 0 | M258: =Inputs!J22 -> 0 | N258: =Inputs!K22 -> 0 | O258: =Inputs!L22 -> 0 | P258: =Inputs!M22 -> 0 | Q258: =Inputs!N22 -> 0 | R258: =Inputs!O22 -> 0 | S258: =Inputs!P22 -> 0 | T258: =Inputs!Q22 -> 0 | U258: =Inputs!R22 -> 0 | V258: =Inputs!S22 -> 0 | W258: =Inputs!T22 -> 0 | X258: =Inputs!U22 -> 0 | Y258: =Inputs!V22 -> 0 | Z258: =Inputs!W22 -> 0 | AA258: =Inputs!X22 -> 0 | AB258: =Inputs!Y22 -> 0 | AC258: =Inputs!Z22 -> 0 | AD258: =Inputs!AA22 -> 0 | AE258: =Inputs!AB22 -> 0 | AF258: =Inputs!AC22 -> 0 | AG258: =Inputs!AD22 -> 0 | AH258: =Inputs!AE22 -> 0 | AI258: =Inputs!AF22 -> 0 | AJ258: =Inputs!AG22 -> 0
C259: =Inputs!C23 -> Relação Com O Usuário | D259: =Inputs!D39 -> Indivisível | E259: $ 000s | F259: 0 | G259: =Inputs!D23 -> 0 | H259: =Inputs!E23 -> 0 | I259: =Inputs!F23 -> 0 | J259: =Inputs!G23 -> 0 | K259: =Inputs!H23 -> 0 | L259: =Inputs!I23 -> 0 | M259: =Inputs!J23 -> 0 | N259: =Inputs!K23 -> 0 | O259: =Inputs!L23 -> 0 | P259: =Inputs!M23 -> 0 | Q259: =Inputs!N23 -> 0 | R259: =Inputs!O23 -> 0 | S259: =Inputs!P23 -> 0 | T259: =Inputs!Q23 -> 0 | U259: =Inputs!R23 -> 0 | V259: =Inputs!S23 -> 0 | W259: =Inputs!T23 -> 0 | X259: =Inputs!U23 -> 0 | Y259: =Inputs!V23 -> 0 | Z259: =Inputs!W23 -> 0 | AA259: =Inputs!X23 -> 0 | AB259: =Inputs!Y23 -> 0 | AC259: =Inputs!Z23 -> 0 | AD259: =Inputs!AA23 -> 0 | AE259: =Inputs!AB23 -> 0 | AF259: =Inputs!AC23 -> 0 | AG259: =Inputs!AD23 -> 0 | AH259: =Inputs!AE23 -> 0 | AI259: =Inputs!AF23 -> 0 | AJ259: =Inputs!AG23 -> 0
C260: =Inputs!C24 -> Administração Local | D260: =Inputs!D40 -> Indivisível | E260: $ 000s | F260: 0 | G260: =Inputs!D24 -> 0 | H260: =Inputs!E24 -> 0 | I260: =Inputs!F24 -> 0 | J260: =Inputs!G24 -> 0 | K260: =Inputs!H24 -> 0 | L260: =Inputs!I24 -> 0 | M260: =Inputs!J24 -> 0 | N260: =Inputs!K24 -> 0 | O260: =Inputs!L24 -> 0 | P260: =Inputs!M24 -> 0 | Q260: =Inputs!N24 -> 0 | R260: =Inputs!O24 -> 0 | S260: =Inputs!P24 -> 0 | T260: =Inputs!Q24 -> 0 | U260: =Inputs!R24 -> 0 | V260: =Inputs!S24 -> 0 | W260: =Inputs!T24 -> 0 | X260: =Inputs!U24 -> 0 | Y260: =Inputs!V24 -> 0 | Z260: =Inputs!W24 -> 0 | AA260: =Inputs!X24 -> 0 | AB260: =Inputs!Y24 -> 0 | AC260: =Inputs!Z24 -> 0 | AD260: =Inputs!AA24 -> 0 | AE260: =Inputs!AB24 -> 0 | AF260: =Inputs!AC24 -> 0 | AG260: =Inputs!AD24 -> 0 | AH260: =Inputs!AE24 -> 0 | AI260: =Inputs!AF24 -> 0 | AJ260: =Inputs!AG24 -> 0
C261: =Inputs!C25 -> Reembolso Do PMI | D261: =Inputs!D41 -> Indivisível | E261: $ 000s | F261: 0 | G261: =Inputs!D25 -> 0 | H261: =Inputs!E25 -> 0 | I261: =Inputs!F25 -> 0 | J261: =Inputs!G25 -> 0 | K261: =Inputs!H25 -> 0 | L261: =Inputs!I25 -> 0 | M261: =Inputs!J25 -> 0 | N261: =Inputs!K25 -> 0 | O261: =Inputs!L25 -> 0 | P261: =Inputs!M25 -> 0 | Q261: =Inputs!N25 -> 0 | R261: =Inputs!O25 -> 0 | S261: =Inputs!P25 -> 0 | T261: =Inputs!Q25 -> 0 | U261: =Inputs!R25 -> 0 | V261: =Inputs!S25 -> 0 | W261: =Inputs!T25 -> 0 | X261: =Inputs!U25 -> 0 | Y261: =Inputs!V25 -> 0 | Z261: =Inputs!W25 -> 0 | AA261: =Inputs!X25 -> 0 | AB261: =Inputs!Y25 -> 0 | AC261: =Inputs!Z25 -> 0 | AD261: =Inputs!AA25 -> 0 | AE261: =Inputs!AB25 -> 0 | AF261: =Inputs!AC25 -> 0 | AG261: =Inputs!AD25 -> 0 | AH261: =Inputs!AE25 -> 0 | AI261: =Inputs!AF25 -> 0 | AJ261: =Inputs!AG25 -> 0
C263: CAPEX - Divisíveis | D263: Divisivel | E263: $ 000s | F263: =SUM(G263:AJ263) -> 0 | G263: =SUMIF($D$250:$D$261,$D263,G$250:G$261) -> 0 | H263: =SUMIF($D$250:$D$261,$D263,H$250:H$261) -> 0 | I263: =SUMIF($D$250:$D$261,$D263,I$250:I$261) -> 0 | J263: =SUMIF($D$250:$D$261,$D263,J$250:J$261) -> 0 | K263: =SUMIF($D$250:$D$261,$D263,K$250:K$261) -> 0 | L263: =SUMIF($D$250:$D$261,$D263,L$250:L$261) -> 0 | M263: =SUMIF($D$250:$D$261,$D263,M$250:M$261) -> 0 | N263: =SUMIF($D$250:$D$261,$D263,N$250:N$261) -> 0 | O263: =SUMIF($D$250:$D$261,$D263,O$250:O$261) -> 0 | P263: =SUMIF($D$250:$D$261,$D263,P$250:P$261) -> 0 | Q263: =SUMIF($D$250:$D$261,$D263,Q$250:Q$261) -> 0 | R263: =SUMIF($D$250:$D$261,$D263,R$250:R$261) -> 0 | S263: =SUMIF($D$250:$D$261,$D263,S$250:S$261) -> 0 | T263: =SUMIF($D$250:$D$261,$D263,T$250:T$261) -> 0 | U263: =SUMIF($D$250:$D$261,$D263,U$250:U$261) -> 0 | V263: =SUMIF($D$250:$D$261,$D263,V$250:V$261) -> 0 | W263: =SUMIF($D$250:$D$261,$D263,W$250:W$261) -> 0 | X263: =SUMIF($D$250:$D$261,$D263,X$250:X$261) -> 0 | Y263: =SUMIF($D$250:$D$261,$D263,Y$250:Y$261) -> 0 | Z263: =SUMIF($D$250:$D$261,$D263,Z$250:Z$261) -> 0 | AA263: =SUMIF($D$250:$D$261,$D263,AA$250:AA$261) -> 0 | AB263: =SUMIF($D$250:$D$261,$D263,AB$250:AB$261) -> 0 | AC263: =SUMIF($D$250:$D$261,$D263,AC$250:AC$261) -> 0 | AD263: =SUMIF($D$250:$D$261,$D263,AD$250:AD$261) -> 0 | AE263: =SUMIF($D$250:$D$261,$D263,AE$250:AE$261) -> 0 | AF263: =SUMIF($D$250:$D$261,$D263,AF$250:AF$261) -> 0 | AG263: =SUMIF($D$250:$D$261,$D263,AG$250:AG$261) -> 0 | AH263: =SUMIF($D$250:$D$261,$D263,AH$250:AH$261) -> 0 | AI263: =SUMIF($D$250:$D$261,$D263,AI$250:AI$261) -> 0 | AJ263: =SUMIF($D$250:$D$261,$D263,AJ$250:AJ$261) -> 0
C264: CAPEX - Indivisíveis | D264: Indivisível | E264: $ 000s | F264: =SUM(G264:AJ264) -> 0 | G264: =SUMIF($D$250:$D$261,$D264,G$250:G$261) -> 0 | H264: =SUMIF($D$250:$D$261,$D264,H$250:H$261) -> 0 | I264: =SUMIF($D$250:$D$261,$D264,I$250:I$261) -> 0 | J264: =SUMIF($D$250:$D$261,$D264,J$250:J$261) -> 0 | K264: =SUMIF($D$250:$D$261,$D264,K$250:K$261) -> 0 | L264: =SUMIF($D$250:$D$261,$D264,L$250:L$261) -> 0 | M264: =SUMIF($D$250:$D$261,$D264,M$250:M$261) -> 0 | N264: =SUMIF($D$250:$D$261,$D264,N$250:N$261) -> 0 | O264: =SUMIF($D$250:$D$261,$D264,O$250:O$261) -> 0 | P264: =SUMIF($D$250:$D$261,$D264,P$250:P$261) -> 0 | Q264: =SUMIF($D$250:$D$261,$D264,Q$250:Q$261) -> 0 | R264: =SUMIF($D$250:$D$261,$D264,R$250:R$261) -> 0 | S264: =SUMIF($D$250:$D$261,$D264,S$250:S$261) -> 0 | T264: =SUMIF($D$250:$D$261,$D264,T$250:T$261) -> 0 | U264: =SUMIF($D$250:$D$261,$D264,U$250:U$261) -> 0 | V264: =SUMIF($D$250:$D$261,$D264,V$250:V$261) -> 0 | W264: =SUMIF($D$250:$D$261,$D264,W$250:W$261) -> 0 | X264: =SUMIF($D$250:$D$261,$D264,X$250:X$261) -> 0 | Y264: =SUMIF($D$250:$D$261,$D264,Y$250:Y$261) -> 0 | Z264: =SUMIF($D$250:$D$261,$D264,Z$250:Z$261) -> 0 | AA264: =SUMIF($D$250:$D$261,$D264,AA$250:AA$261) -> 0 | AB264: =SUMIF($D$250:$D$261,$D264,AB$250:AB$261) -> 0 | AC264: =SUMIF($D$250:$D$261,$D264,AC$250:AC$261) -> 0 | AD264: =SUMIF($D$250:$D$261,$D264,AD$250:AD$261) -> 0 | AE264: =SUMIF($D$250:$D$261,$D264,AE$250:AE$261) -> 0 | AF264: =SUMIF($D$250:$D$261,$D264,AF$250:AF$261) -> 0 | AG264: =SUMIF($D$250:$D$261,$D264,AG$250:AG$261) -> 0 | AH264: =SUMIF($D$250:$D$261,$D264,AH$250:AH$261) -> 0 | AI264: =SUMIF($D$250:$D$261,$D264,AI$250:AI$261) -> 0 | AJ264: =SUMIF($D$250:$D$261,$D264,AJ$250:AJ$261) -> 0
C265: CAPEX Total | F265: =SUM(G265:AJ265) -> 0 | G265: =SUM(G263:G264) -> 0 | H265: 0 | I265: 0 | J265: 0 | K265: 0 | L265: 0 | M265: 0 | N265: 0 | O265: 0 | P265: 0 | Q265: 0 | R265: 0 | S265: 0 | T265: 0 | U265: 0 | V265: 0 | W265: 0 | X265: 0 | Y265: 0 | Z265: 0 | AA265: 0 | AB265: 0 | AC265: 0 | AD265: 0 | AE265: 0 | AF265: 0 | AG265: 0 | AH265: 0 | AI265: 0 | AJ265: 0
C268: CAPEX segregado para fins de imobilização fiscal
C270: Investimentos divisíveis
D272: =Inputs!C143 -> Indivisível
C274: =Inputs!C136 -> Estudos | D274: =Inputs!C136 -> Estudos | E274: $ 000s | F274: =SUM(G274:AJ274) -> 0 | G274: =SUMIFS(Inputs!E$46:E$53,Inputs!$C$46:$C$53,Ops!$D274,Inputs!$D$46:$D$53,Ops!$D$272) -> 0 | H274: =SUMIFS(Inputs!F$46:F$53,Inputs!$C$46:$C$53,Ops!$D274,Inputs!$D$46:$D$53,Ops!$D$272) -> 0 | I274: =SUMIFS(Inputs!G$46:G$53,Inputs!$C$46:$C$53,Ops!$D274,Inputs!$D$46:$D$53,Ops!$D$272) -> 0 | J274: =SUMIFS(Inputs!H$46:H$53,Inputs!$C$46:$C$53,Ops!$D274,Inputs!$D$46:$D$53,Ops!$D$272) -> 0 | K274: =SUMIFS(Inputs!I$46:I$53,Inputs!$C$46:$C$53,Ops!$D274,Inputs!$D$46:$D$53,Ops!$D$272) -> 0 | L274: =SUMIFS(Inputs!J$46:J$53,Inputs!$C$46:$C$53,Ops!$D274,Inputs!$D$46:$D$53,Ops!$D$272) -> 0 | M274: =SUMIFS(Inputs!K$46:K$53,Inputs!$C$46:$C$53,Ops!$D274,Inputs!$D$46:$D$53,Ops!$D$272) -> 0 | N274: =SUMIFS(Inputs!L$46:L$53,Inputs!$C$46:$C$53,Ops!$D274,Inputs!$D$46:$D$53,Ops!$D$272) -> 0 | O274: =SUMIFS(Inputs!M$46:M$53,Inputs!$C$46:$C$53,Ops!$D274,Inputs!$D$46:$D$53,Ops!$D$272) -> 0 | P274: =SUMIFS(Inputs!N$46:N$53,Inputs!$C$46:$C$53,Ops!$D274,Inputs!$D$46:$D$53,Ops!$D$272) -> 0 | Q274: =SUMIFS(Inputs!O$46:O$53,Inputs!$C$46:$C$53,Ops!$D274,Inputs!$D$46:$D$53,Ops!$D$272) -> 0 | R274: =SUMIFS(Inputs!P$46:P$53,Inputs!$C$46:$C$53,Ops!$D274,Inputs!$D$46:$D$53,Ops!$D$272) -> 0 | S274: =SUMIFS(Inputs!Q$46:Q$53,Inputs!$C$46:$C$53,Ops!$D274,Inputs!$D$46:$D$53,Ops!$D$272) -> 0 | T274: =SUMIFS(Inputs!R$46:R$53,Inputs!$C$46:$C$53,Ops!$D274,Inputs!$D$46:$D$53,Ops!$D$272) -> 0 | U274: =SUMIFS(Inputs!S$46:S$53,Inputs!$C$46:$C$53,Ops!$D274,Inputs!$D$46:$D$53,Ops!$D$272) -> 0 | V274: =SUMIFS(Inputs!T$46:T$53,Inputs!$C$46:$C$53,Ops!$D274,Inputs!$D$46:$D$53,Ops!$D$272) -> 0 | W274: =SUMIFS(Inputs!U$46:U$53,Inputs!$C$46:$C$53,Ops!$D274,Inputs!$D$46:$D$53,Ops!$D$272) -> 0 | X274: =SUMIFS(Inputs!V$46:V$53,Inputs!$C$46:$C$53,Ops!$D274,Inputs!$D$46:$D$53,Ops!$D$272) -> 0 | Y274: =SUMIFS(Inputs!W$46:W$53,Inputs!$C$46:$C$53,Ops!$D274,Inputs!$D$46:$D$53,Ops!$D$272) -> 0 | Z274: =SUMIFS(Inputs!X$46:X$53,Inputs!$C$46:$C$53,Ops!$D274,Inputs!$D$46:$D$53,Ops!$D$272) -> 0 | AA274: =SUMIFS(Inputs!Y$46:Y$53,Inputs!$C$46:$C$53,Ops!$D274,Inputs!$D$46:$D$53,Ops!$D$272) -> 0 | AB274: =SUMIFS(Inputs!Z$46:Z$53,Inputs!$C$46:$C$53,Ops!$D274,Inputs!$D$46:$D$53,Ops!$D$272) -> 0 | AC274: =SUMIFS(Inputs!AA$46:AA$53,Inputs!$C$46:$C$53,Ops!$D274,Inputs!$D$46:$D$53,Ops!$D$272) -> 0 | AD274: =SUMIFS(Inputs!AB$46:AB$53,Inputs!$C$46:$C$53,Ops!$D274,Inputs!$D$46:$D$53,Ops!$D$272) -> 0 | AE274: =SUMIFS(Inputs!AC$46:AC$53,Inputs!$C$46:$C$53,Ops!$D274,Inputs!$D$46:$D$53,Ops!$D$272) -> 0 | AF274: =SUMIFS(Inputs!AD$46:AD$53,Inputs!$C$46:$C$53,Ops!$D274,Inputs!$D$46:$D$53,Ops!$D$272) -> 0 | AG274: =SUMIFS(Inputs!AE$46:AE$53,Inputs!$C$46:$C$53,Ops!$D274,Inputs!$D$46:$D$53,Ops!$D$272) -> 0 | AH274: =SUMIFS(Inputs!AF$46:AF$53,Inputs!$C$46:$C$53,Ops!$D274,Inputs!$D$46:$D$53,Ops!$D$272) -> 0 | AI274: =SUMIFS(Inputs!AG$46:AG$53,Inputs!$C$46:$C$53,Ops!$D274,Inputs!$D$46:$D$53,Ops!$D$272) -> 0 | AJ274: =SUMIFS(Inputs!AH$46:AH$53,Inputs!$C$46:$C$53,Ops!$D274,Inputs!$D$46:$D$53,Ops!$D$272) -> 0
C275: =Inputs!C137 -> Veículos | D275: =Inputs!C137 -> Veículos | E275: $ 000s | F275: =SUM(G275:AJ275) -> 0 | G275: =SUMIFS(Inputs!E$46:E$53,Inputs!$C$46:$C$53,Ops!$D275,Inputs!$D$46:$D$53,Ops!$D$272) -> 0 | H275: =SUMIFS(Inputs!F$46:F$53,Inputs!$C$46:$C$53,Ops!$D275,Inputs!$D$46:$D$53,Ops!$D$272) -> 0 | I275: =SUMIFS(Inputs!G$46:G$53,Inputs!$C$46:$C$53,Ops!$D275,Inputs!$D$46:$D$53,Ops!$D$272) -> 0 | J275: =SUMIFS(Inputs!H$46:H$53,Inputs!$C$46:$C$53,Ops!$D275,Inputs!$D$46:$D$53,Ops!$D$272) -> 0 | K275: =SUMIFS(Inputs!I$46:I$53,Inputs!$C$46:$C$53,Ops!$D275,Inputs!$D$46:$D$53,Ops!$D$272) -> 0 | L275: =SUMIFS(Inputs!J$46:J$53,Inputs!$C$46:$C$53,Ops!$D275,Inputs!$D$46:$D$53,Ops!$D$272) -> 0 | M275: =SUMIFS(Inputs!K$46:K$53,Inputs!$C$46:$C$53,Ops!$D275,Inputs!$D$46:$D$53,Ops!$D$272) -> 0 | N275: =SUMIFS(Inputs!L$46:L$53,Inputs!$C$46:$C$53,Ops!$D275,Inputs!$D$46:$D$53,Ops!$D$272) -> 0 | O275: =SUMIFS(Inputs!M$46:M$53,Inputs!$C$46:$C$53,Ops!$D275,Inputs!$D$46:$D$53,Ops!$D$272) -> 0 | P275: =SUMIFS(Inputs!N$46:N$53,Inputs!$C$46:$C$53,Ops!$D275,Inputs!$D$46:$D$53,Ops!$D$272) -> 0 | Q275: =SUMIFS(Inputs!O$46:O$53,Inputs!$C$46:$C$53,Ops!$D275,Inputs!$D$46:$D$53,Ops!$D$272) -> 0 | R275: =SUMIFS(Inputs!P$46:P$53,Inputs!$C$46:$C$53,Ops!$D275,Inputs!$D$46:$D$53,Ops!$D$272) -> 0 | S275: =SUMIFS(Inputs!Q$46:Q$53,Inputs!$C$46:$C$53,Ops!$D275,Inputs!$D$46:$D$53,Ops!$D$272) -> 0 | T275: =SUMIFS(Inputs!R$46:R$53,Inputs!$C$46:$C$53,Ops!$D275,Inputs!$D$46:$D$53,Ops!$D$272) -> 0 | U275: =SUMIFS(Inputs!S$46:S$53,Inputs!$C$46:$C$53,Ops!$D275,Inputs!$D$46:$D$53,Ops!$D$272) -> 0 | V275: =SUMIFS(Inputs!T$46:T$53,Inputs!$C$46:$C$53,Ops!$D275,Inputs!$D$46:$D$53,Ops!$D$272) -> 0 | W275: =SUMIFS(Inputs!U$46:U$53,Inputs!$C$46:$C$53,Ops!$D275,Inputs!$D$46:$D$53,Ops!$D$272) -> 0 | X275: =SUMIFS(Inputs!V$46:V$53,Inputs!$C$46:$C$53,Ops!$D275,Inputs!$D$46:$D$53,Ops!$D$272) -> 0 | Y275: =SUMIFS(Inputs!W$46:W$53,Inputs!$C$46:$C$53,Ops!$D275,Inputs!$D$46:$D$53,Ops!$D$272) -> 0 | Z275: =SUMIFS(Inputs!X$46:X$53,Inputs!$C$46:$C$53,Ops!$D275,Inputs!$D$46:$D$53,Ops!$D$272) -> 0 | AA275: =SUMIFS(Inputs!Y$46:Y$53,Inputs!$C$46:$C$53,Ops!$D275,Inputs!$D$46:$D$53,Ops!$D$272) -> 0 | AB275: =SUMIFS(Inputs!Z$46:Z$53,Inputs!$C$46:$C$53,Ops!$D275,Inputs!$D$46:$D$53,Ops!$D$272) -> 0 | AC275: =SUMIFS(Inputs!AA$46:AA$53,Inputs!$C$46:$C$53,Ops!$D275,Inputs!$D$46:$D$53,Ops!$D$272) -> 0 | AD275: =SUMIFS(Inputs!AB$46:AB$53,Inputs!$C$46:$C$53,Ops!$D275,Inputs!$D$46:$D$53,Ops!$D$272) -> 0 | AE275: =SUMIFS(Inputs!AC$46:AC$53,Inputs!$C$46:$C$53,Ops!$D275,Inputs!$D$46:$D$53,Ops!$D$272) -> 0 | AF275: =SUMIFS(Inputs!AD$46:AD$53,Inputs!$C$46:$C$53,Ops!$D275,Inputs!$D$46:$D$53,Ops!$D$272) -> 0 | AG275: =SUMIFS(Inputs!AE$46:AE$53,Inputs!$C$46:$C$53,Ops!$D275,Inputs!$D$46:$D$53,Ops!$D$272) -> 0 | AH275: =SUMIFS(Inputs!AF$46:AF$53,Inputs!$C$46:$C$53,Ops!$D275,Inputs!$D$46:$D$53,Ops!$D$272) -> 0 | AI275: =SUMIFS(Inputs!AG$46:AG$53,Inputs!$C$46:$C$53,Ops!$D275,Inputs!$D$46:$D$53,Ops!$D$272) -> 0 | AJ275: =SUMIFS(Inputs!AH$46:AH$53,Inputs!$C$46:$C$53,Ops!$D275,Inputs!$D$46:$D$53,Ops!$D$272) -> 0
C276: =Inputs!C138 -> Equipamentos | D276: =Inputs!C138 -> Equipamentos | E276: $ 000s | F276: =SUM(G276:AJ276) -> 0 | G276: =SUMIFS(Inputs!E$46:E$53,Inputs!$C$46:$C$53,Ops!$D276,Inputs!$D$46:$D$53,Ops!$D$272) -> 0 | H276: =SUMIFS(Inputs!F$46:F$53,Inputs!$C$46:$C$53,Ops!$D276,Inputs!$D$46:$D$53,Ops!$D$272) -> 0 | I276: =SUMIFS(Inputs!G$46:G$53,Inputs!$C$46:$C$53,Ops!$D276,Inputs!$D$46:$D$53,Ops!$D$272) -> 0 | J276: =SUMIFS(Inputs!H$46:H$53,Inputs!$C$46:$C$53,Ops!$D276,Inputs!$D$46:$D$53,Ops!$D$272) -> 0 | K276: =SUMIFS(Inputs!I$46:I$53,Inputs!$C$46:$C$53,Ops!$D276,Inputs!$D$46:$D$53,Ops!$D$272) -> 0 | L276: =SUMIFS(Inputs!J$46:J$53,Inputs!$C$46:$C$53,Ops!$D276,Inputs!$D$46:$D$53,Ops!$D$272) -> 0 | M276: =SUMIFS(Inputs!K$46:K$53,Inputs!$C$46:$C$53,Ops!$D276,Inputs!$D$46:$D$53,Ops!$D$272) -> 0 | N276: =SUMIFS(Inputs!L$46:L$53,Inputs!$C$46:$C$53,Ops!$D276,Inputs!$D$46:$D$53,Ops!$D$272) -> 0 | O276: =SUMIFS(Inputs!M$46:M$53,Inputs!$C$46:$C$53,Ops!$D276,Inputs!$D$46:$D$53,Ops!$D$272) -> 0 | P276: =SUMIFS(Inputs!N$46:N$53,Inputs!$C$46:$C$53,Ops!$D276,Inputs!$D$46:$D$53,Ops!$D$272) -> 0 | Q276: =SUMIFS(Inputs!O$46:O$53,Inputs!$C$46:$C$53,Ops!$D276,Inputs!$D$46:$D$53,Ops!$D$272) -> 0 | R276: =SUMIFS(Inputs!P$46:P$53,Inputs!$C$46:$C$53,Ops!$D276,Inputs!$D$46:$D$53,Ops!$D$272) -> 0 | S276: =SUMIFS(Inputs!Q$46:Q$53,Inputs!$C$46:$C$53,Ops!$D276,Inputs!$D$46:$D$53,Ops!$D$272) -> 0 | T276: =SUMIFS(Inputs!R$46:R$53,Inputs!$C$46:$C$53,Ops!$D276,Inputs!$D$46:$D$53,Ops!$D$272) -> 0 | U276: =SUMIFS(Inputs!S$46:S$53,Inputs!$C$46:$C$53,Ops!$D276,Inputs!$D$46:$D$53,Ops!$D$272) -> 0 | V276: =SUMIFS(Inputs!T$46:T$53,Inputs!$C$46:$C$53,Ops!$D276,Inputs!$D$46:$D$53,Ops!$D$272) -> 0 | W276: =SUMIFS(Inputs!U$46:U$53,Inputs!$C$46:$C$53,Ops!$D276,Inputs!$D$46:$D$53,Ops!$D$272) -> 0 | X276: =SUMIFS(Inputs!V$46:V$53,Inputs!$C$46:$C$53,Ops!$D276,Inputs!$D$46:$D$53,Ops!$D$272) -> 0 | Y276: =SUMIFS(Inputs!W$46:W$53,Inputs!$C$46:$C$53,Ops!$D276,Inputs!$D$46:$D$53,Ops!$D$272) -> 0 | Z276: =SUMIFS(Inputs!X$46:X$53,Inputs!$C$46:$C$53,Ops!$D276,Inputs!$D$46:$D$53,Ops!$D$272) -> 0 | AA276: =SUMIFS(Inputs!Y$46:Y$53,Inputs!$C$46:$C$53,Ops!$D276,Inputs!$D$46:$D$53,Ops!$D$272) -> 0 | AB276: =SUMIFS(Inputs!Z$46:Z$53,Inputs!$C$46:$C$53,Ops!$D276,Inputs!$D$46:$D$53,Ops!$D$272) -> 0 | AC276: =SUMIFS(Inputs!AA$46:AA$53,Inputs!$C$46:$C$53,Ops!$D276,Inputs!$D$46:$D$53,Ops!$D$272) -> 0 | AD276: =SUMIFS(Inputs!AB$46:AB$53,Inputs!$C$46:$C$53,Ops!$D276,Inputs!$D$46:$D$53,Ops!$D$272) -> 0 | AE276: =SUMIFS(Inputs!AC$46:AC$53,Inputs!$C$46:$C$53,Ops!$D276,Inputs!$D$46:$D$53,Ops!$D$272) -> 0 | AF276: =SUMIFS(Inputs!AD$46:AD$53,Inputs!$C$46:$C$53,Ops!$D276,Inputs!$D$46:$D$53,Ops!$D$272) -> 0 | AG276: =SUMIFS(Inputs!AE$46:AE$53,Inputs!$C$46:$C$53,Ops!$D276,Inputs!$D$46:$D$53,Ops!$D$272) -> 0 | AH276: =SUMIFS(Inputs!AF$46:AF$53,Inputs!$C$46:$C$53,Ops!$D276,Inputs!$D$46:$D$53,Ops!$D$272) -> 0 | AI276: =SUMIFS(Inputs!AG$46:AG$53,Inputs!$C$46:$C$53,Ops!$D276,Inputs!$D$46:$D$53,Ops!$D$272) -> 0 | AJ276: =SUMIFS(Inputs!AH$46:AH$53,Inputs!$C$46:$C$53,Ops!$D276,Inputs!$D$46:$D$53,Ops!$D$272) -> 0
C277: =Inputs!C139 -> Adicionais | D277: =Inputs!C139 -> Adicionais | E277: $ 000s | F277: =SUM(G277:AJ277) -> 0 | G277: =SUMIFS(Inputs!E$46:E$53,Inputs!$C$46:$C$53,Ops!$D277,Inputs!$D$46:$D$53,Ops!$D$272) -> 0 | H277: =SUMIFS(Inputs!F$46:F$53,Inputs!$C$46:$C$53,Ops!$D277,Inputs!$D$46:$D$53,Ops!$D$272) -> 0 | I277: =SUMIFS(Inputs!G$46:G$53,Inputs!$C$46:$C$53,Ops!$D277,Inputs!$D$46:$D$53,Ops!$D$272) -> 0 | J277: =SUMIFS(Inputs!H$46:H$53,Inputs!$C$46:$C$53,Ops!$D277,Inputs!$D$46:$D$53,Ops!$D$272) -> 0 | K277: =SUMIFS(Inputs!I$46:I$53,Inputs!$C$46:$C$53,Ops!$D277,Inputs!$D$46:$D$53,Ops!$D$272) -> 0 | L277: =SUMIFS(Inputs!J$46:J$53,Inputs!$C$46:$C$53,Ops!$D277,Inputs!$D$46:$D$53,Ops!$D$272) -> 0 | M277: =SUMIFS(Inputs!K$46:K$53,Inputs!$C$46:$C$53,Ops!$D277,Inputs!$D$46:$D$53,Ops!$D$272) -> 0 | N277: =SUMIFS(Inputs!L$46:L$53,Inputs!$C$46:$C$53,Ops!$D277,Inputs!$D$46:$D$53,Ops!$D$272) -> 0 | O277: =SUMIFS(Inputs!M$46:M$53,Inputs!$C$46:$C$53,Ops!$D277,Inputs!$D$46:$D$53,Ops!$D$272) -> 0 | P277: =SUMIFS(Inputs!N$46:N$53,Inputs!$C$46:$C$53,Ops!$D277,Inputs!$D$46:$D$53,Ops!$D$272) -> 0 | Q277: =SUMIFS(Inputs!O$46:O$53,Inputs!$C$46:$C$53,Ops!$D277,Inputs!$D$46:$D$53,Ops!$D$272) -> 0 | R277: =SUMIFS(Inputs!P$46:P$53,Inputs!$C$46:$C$53,Ops!$D277,Inputs!$D$46:$D$53,Ops!$D$272) -> 0 | S277: =SUMIFS(Inputs!Q$46:Q$53,Inputs!$C$46:$C$53,Ops!$D277,Inputs!$D$46:$D$53,Ops!$D$272) -> 0 | T277: =SUMIFS(Inputs!R$46:R$53,Inputs!$C$46:$C$53,Ops!$D277,Inputs!$D$46:$D$53,Ops!$D$272) -> 0 | U277: =SUMIFS(Inputs!S$46:S$53,Inputs!$C$46:$C$53,Ops!$D277,Inputs!$D$46:$D$53,Ops!$D$272) -> 0 | V277: =SUMIFS(Inputs!T$46:T$53,Inputs!$C$46:$C$53,Ops!$D277,Inputs!$D$46:$D$53,Ops!$D$272) -> 0 | W277: =SUMIFS(Inputs!U$46:U$53,Inputs!$C$46:$C$53,Ops!$D277,Inputs!$D$46:$D$53,Ops!$D$272) -> 0 | X277: =SUMIFS(Inputs!V$46:V$53,Inputs!$C$46:$C$53,Ops!$D277,Inputs!$D$46:$D$53,Ops!$D$272) -> 0 | Y277: =SUMIFS(Inputs!W$46:W$53,Inputs!$C$46:$C$53,Ops!$D277,Inputs!$D$46:$D$53,Ops!$D$272) -> 0 | Z277: =SUMIFS(Inputs!X$46:X$53,Inputs!$C$46:$C$53,Ops!$D277,Inputs!$D$46:$D$53,Ops!$D$272) -> 0 | AA277: =SUMIFS(Inputs!Y$46:Y$53,Inputs!$C$46:$C$53,Ops!$D277,Inputs!$D$46:$D$53,Ops!$D$272) -> 0 | AB277: =SUMIFS(Inputs!Z$46:Z$53,Inputs!$C$46:$C$53,Ops!$D277,Inputs!$D$46:$D$53,Ops!$D$272) -> 0 | AC277: =SUMIFS(Inputs!AA$46:AA$53,Inputs!$C$46:$C$53,Ops!$D277,Inputs!$D$46:$D$53,Ops!$D$272) -> 0 | AD277: =SUMIFS(Inputs!AB$46:AB$53,Inputs!$C$46:$C$53,Ops!$D277,Inputs!$D$46:$D$53,Ops!$D$272) -> 0 | AE277: =SUMIFS(Inputs!AC$46:AC$53,Inputs!$C$46:$C$53,Ops!$D277,Inputs!$D$46:$D$53,Ops!$D$272) -> 0 | AF277: =SUMIFS(Inputs!AD$46:AD$53,Inputs!$C$46:$C$53,Ops!$D277,Inputs!$D$46:$D$53,Ops!$D$272) -> 0 | AG277: =SUMIFS(Inputs!AE$46:AE$53,Inputs!$C$46:$C$53,Ops!$D277,Inputs!$D$46:$D$53,Ops!$D$272) -> 0 | AH277: =SUMIFS(Inputs!AF$46:AF$53,Inputs!$C$46:$C$53,Ops!$D277,Inputs!$D$46:$D$53,Ops!$D$272) -> 0 | AI277: =SUMIFS(Inputs!AG$46:AG$53,Inputs!$C$46:$C$53,Ops!$D277,Inputs!$D$46:$D$53,Ops!$D$272) -> 0 | AJ277: =SUMIFS(Inputs!AH$46:AH$53,Inputs!$C$46:$C$53,Ops!$D277,Inputs!$D$46:$D$53,Ops!$D$272) -> 0
C278: Investimentos divisíveis totais | F278: =SUM(G278:AJ278) -> 0 | G278: =SUM(G274:G277) -> 0 | H278: 0 | I278: 0 | J278: 0 | K278: 0 | L278: 0 | M278: 0 | N278: 0 | O278: 0 | P278: 0 | Q278: 0 | R278: 0 | S278: 0 | T278: 0 | U278: 0 | V278: 0 | W278: 0 | X278: 0 | Y278: 0 | Z278: 0 | AA278: 0 | AB278: 0 | AC278: 0 | AD278: 0 | AE278: 0 | AF278: 0 | AG278: 0 | AH278: 0 | AI278: 0 | AJ278: 0
C280: Investimentos Indivisíveis
D282: =Inputs!C142 -> Divisivel
C284: =Inputs!C136 -> Estudos | D284: =D274 -> Estudos | E284: $ 000s | F284: =SUM(G284:AJ284) -> 0 | G284: =SUMIFS(Inputs!E$46:E$53,Inputs!$C$46:$C$53,Ops!$D284,Inputs!$D$46:$D$53,Ops!$D$282) -> 0 | H284: =SUMIFS(Inputs!F$46:F$53,Inputs!$C$46:$C$53,Ops!$D284,Inputs!$D$46:$D$53,Ops!$D$282) -> 0 | I284: =SUMIFS(Inputs!G$46:G$53,Inputs!$C$46:$C$53,Ops!$D284,Inputs!$D$46:$D$53,Ops!$D$282) -> 0 | J284: =SUMIFS(Inputs!H$46:H$53,Inputs!$C$46:$C$53,Ops!$D284,Inputs!$D$46:$D$53,Ops!$D$282) -> 0 | K284: =SUMIFS(Inputs!I$46:I$53,Inputs!$C$46:$C$53,Ops!$D284,Inputs!$D$46:$D$53,Ops!$D$282) -> 0 | L284: =SUMIFS(Inputs!J$46:J$53,Inputs!$C$46:$C$53,Ops!$D284,Inputs!$D$46:$D$53,Ops!$D$282) -> 0 | M284: =SUMIFS(Inputs!K$46:K$53,Inputs!$C$46:$C$53,Ops!$D284,Inputs!$D$46:$D$53,Ops!$D$282) -> 0 | N284: =SUMIFS(Inputs!L$46:L$53,Inputs!$C$46:$C$53,Ops!$D284,Inputs!$D$46:$D$53,Ops!$D$282) -> 0 | O284: =SUMIFS(Inputs!M$46:M$53,Inputs!$C$46:$C$53,Ops!$D284,Inputs!$D$46:$D$53,Ops!$D$282) -> 0 | P284: =SUMIFS(Inputs!N$46:N$53,Inputs!$C$46:$C$53,Ops!$D284,Inputs!$D$46:$D$53,Ops!$D$282) -> 0 | Q284: =SUMIFS(Inputs!O$46:O$53,Inputs!$C$46:$C$53,Ops!$D284,Inputs!$D$46:$D$53,Ops!$D$282) -> 0 | R284: =SUMIFS(Inputs!P$46:P$53,Inputs!$C$46:$C$53,Ops!$D284,Inputs!$D$46:$D$53,Ops!$D$282) -> 0 | S284: =SUMIFS(Inputs!Q$46:Q$53,Inputs!$C$46:$C$53,Ops!$D284,Inputs!$D$46:$D$53,Ops!$D$282) -> 0 | T284: =SUMIFS(Inputs!R$46:R$53,Inputs!$C$46:$C$53,Ops!$D284,Inputs!$D$46:$D$53,Ops!$D$282) -> 0 | U284: =SUMIFS(Inputs!S$46:S$53,Inputs!$C$46:$C$53,Ops!$D284,Inputs!$D$46:$D$53,Ops!$D$282) -> 0 | V284: =SUMIFS(Inputs!T$46:T$53,Inputs!$C$46:$C$53,Ops!$D284,Inputs!$D$46:$D$53,Ops!$D$282) -> 0 | W284: =SUMIFS(Inputs!U$46:U$53,Inputs!$C$46:$C$53,Ops!$D284,Inputs!$D$46:$D$53,Ops!$D$282) -> 0 | X284: =SUMIFS(Inputs!V$46:V$53,Inputs!$C$46:$C$53,Ops!$D284,Inputs!$D$46:$D$53,Ops!$D$282) -> 0 | Y284: =SUMIFS(Inputs!W$46:W$53,Inputs!$C$46:$C$53,Ops!$D284,Inputs!$D$46:$D$53,Ops!$D$282) -> 0 | Z284: =SUMIFS(Inputs!X$46:X$53,Inputs!$C$46:$C$53,Ops!$D284,Inputs!$D$46:$D$53,Ops!$D$282) -> 0 | AA284: =SUMIFS(Inputs!Y$46:Y$53,Inputs!$C$46:$C$53,Ops!$D284,Inputs!$D$46:$D$53,Ops!$D$282) -> 0 | AB284: =SUMIFS(Inputs!Z$46:Z$53,Inputs!$C$46:$C$53,Ops!$D284,Inputs!$D$46:$D$53,Ops!$D$282) -> 0 | AC284: =SUMIFS(Inputs!AA$46:AA$53,Inputs!$C$46:$C$53,Ops!$D284,Inputs!$D$46:$D$53,Ops!$D$282) -> 0 | AD284: =SUMIFS(Inputs!AB$46:AB$53,Inputs!$C$46:$C$53,Ops!$D284,Inputs!$D$46:$D$53,Ops!$D$282) -> 0 | AE284: =SUMIFS(Inputs!AC$46:AC$53,Inputs!$C$46:$C$53,Ops!$D284,Inputs!$D$46:$D$53,Ops!$D$282) -> 0 | AF284: =SUMIFS(Inputs!AD$46:AD$53,Inputs!$C$46:$C$53,Ops!$D284,Inputs!$D$46:$D$53,Ops!$D$282) -> 0 | AG284: =SUMIFS(Inputs!AE$46:AE$53,Inputs!$C$46:$C$53,Ops!$D284,Inputs!$D$46:$D$53,Ops!$D$282) -> 0 | AH284: =SUMIFS(Inputs!AF$46:AF$53,Inputs!$C$46:$C$53,Ops!$D284,Inputs!$D$46:$D$53,Ops!$D$282) -> 0 | AI284: =SUMIFS(Inputs!AG$46:AG$53,Inputs!$C$46:$C$53,Ops!$D284,Inputs!$D$46:$D$53,Ops!$D$282) -> 0 | AJ284: =SUMIFS(Inputs!AH$46:AH$53,Inputs!$C$46:$C$53,Ops!$D284,Inputs!$D$46:$D$53,Ops!$D$282) -> 0
C285: =Inputs!C137 -> Veículos | D285: Veículos | E285: $ 000s | F285: =SUM(G285:AJ285) -> 0 | G285: =SUMIFS(Inputs!E$46:E$53,Inputs!$C$46:$C$53,Ops!$D285,Inputs!$D$46:$D$53,Ops!$D$282) -> 0 | H285: =SUMIFS(Inputs!F$46:F$53,Inputs!$C$46:$C$53,Ops!$D285,Inputs!$D$46:$D$53,Ops!$D$282) -> 0 | I285: =SUMIFS(Inputs!G$46:G$53,Inputs!$C$46:$C$53,Ops!$D285,Inputs!$D$46:$D$53,Ops!$D$282) -> 0 | J285: =SUMIFS(Inputs!H$46:H$53,Inputs!$C$46:$C$53,Ops!$D285,Inputs!$D$46:$D$53,Ops!$D$282) -> 0 | K285: =SUMIFS(Inputs!I$46:I$53,Inputs!$C$46:$C$53,Ops!$D285,Inputs!$D$46:$D$53,Ops!$D$282) -> 0 | L285: =SUMIFS(Inputs!J$46:J$53,Inputs!$C$46:$C$53,Ops!$D285,Inputs!$D$46:$D$53,Ops!$D$282) -> 0 | M285: =SUMIFS(Inputs!K$46:K$53,Inputs!$C$46:$C$53,Ops!$D285,Inputs!$D$46:$D$53,Ops!$D$282) -> 0 | N285: =SUMIFS(Inputs!L$46:L$53,Inputs!$C$46:$C$53,Ops!$D285,Inputs!$D$46:$D$53,Ops!$D$282) -> 0 | O285: =SUMIFS(Inputs!M$46:M$53,Inputs!$C$46:$C$53,Ops!$D285,Inputs!$D$46:$D$53,Ops!$D$282) -> 0 | P285: =SUMIFS(Inputs!N$46:N$53,Inputs!$C$46:$C$53,Ops!$D285,Inputs!$D$46:$D$53,Ops!$D$282) -> 0 | Q285: =SUMIFS(Inputs!O$46:O$53,Inputs!$C$46:$C$53,Ops!$D285,Inputs!$D$46:$D$53,Ops!$D$282) -> 0 | R285: =SUMIFS(Inputs!P$46:P$53,Inputs!$C$46:$C$53,Ops!$D285,Inputs!$D$46:$D$53,Ops!$D$282) -> 0 | S285: =SUMIFS(Inputs!Q$46:Q$53,Inputs!$C$46:$C$53,Ops!$D285,Inputs!$D$46:$D$53,Ops!$D$282) -> 0 | T285: =SUMIFS(Inputs!R$46:R$53,Inputs!$C$46:$C$53,Ops!$D285,Inputs!$D$46:$D$53,Ops!$D$282) -> 0 | U285: =SUMIFS(Inputs!S$46:S$53,Inputs!$C$46:$C$53,Ops!$D285,Inputs!$D$46:$D$53,Ops!$D$282) -> 0 | V285: =SUMIFS(Inputs!T$46:T$53,Inputs!$C$46:$C$53,Ops!$D285,Inputs!$D$46:$D$53,Ops!$D$282) -> 0 | W285: =SUMIFS(Inputs!U$46:U$53,Inputs!$C$46:$C$53,Ops!$D285,Inputs!$D$46:$D$53,Ops!$D$282) -> 0 | X285: =SUMIFS(Inputs!V$46:V$53,Inputs!$C$46:$C$53,Ops!$D285,Inputs!$D$46:$D$53,Ops!$D$282) -> 0 | Y285: =SUMIFS(Inputs!W$46:W$53,Inputs!$C$46:$C$53,Ops!$D285,Inputs!$D$46:$D$53,Ops!$D$282) -> 0 | Z285: =SUMIFS(Inputs!X$46:X$53,Inputs!$C$46:$C$53,Ops!$D285,Inputs!$D$46:$D$53,Ops!$D$282) -> 0 | AA285: =SUMIFS(Inputs!Y$46:Y$53,Inputs!$C$46:$C$53,Ops!$D285,Inputs!$D$46:$D$53,Ops!$D$282) -> 0 | AB285: =SUMIFS(Inputs!Z$46:Z$53,Inputs!$C$46:$C$53,Ops!$D285,Inputs!$D$46:$D$53,Ops!$D$282) -> 0 | AC285: =SUMIFS(Inputs!AA$46:AA$53,Inputs!$C$46:$C$53,Ops!$D285,Inputs!$D$46:$D$53,Ops!$D$282) -> 0 | AD285: =SUMIFS(Inputs!AB$46:AB$53,Inputs!$C$46:$C$53,Ops!$D285,Inputs!$D$46:$D$53,Ops!$D$282) -> 0 | AE285: =SUMIFS(Inputs!AC$46:AC$53,Inputs!$C$46:$C$53,Ops!$D285,Inputs!$D$46:$D$53,Ops!$D$282) -> 0 | AF285: =SUMIFS(Inputs!AD$46:AD$53,Inputs!$C$46:$C$53,Ops!$D285,Inputs!$D$46:$D$53,Ops!$D$282) -> 0 | AG285: =SUMIFS(Inputs!AE$46:AE$53,Inputs!$C$46:$C$53,Ops!$D285,Inputs!$D$46:$D$53,Ops!$D$282) -> 0 | AH285: =SUMIFS(Inputs!AF$46:AF$53,Inputs!$C$46:$C$53,Ops!$D285,Inputs!$D$46:$D$53,Ops!$D$282) -> 0 | AI285: =SUMIFS(Inputs!AG$46:AG$53,Inputs!$C$46:$C$53,Ops!$D285,Inputs!$D$46:$D$53,Ops!$D$282) -> 0 | AJ285: =SUMIFS(Inputs!AH$46:AH$53,Inputs!$C$46:$C$53,Ops!$D285,Inputs!$D$46:$D$53,Ops!$D$282) -> 0
C286: =Inputs!C138 -> Equipamentos | D286: Equipamentos | E286: $ 000s | F286: =SUM(G286:AJ286) -> 0 | G286: =SUMIFS(Inputs!E$46:E$53,Inputs!$C$46:$C$53,Ops!$D286,Inputs!$D$46:$D$53,Ops!$D$282) -> 0 | H286: =SUMIFS(Inputs!F$46:F$53,Inputs!$C$46:$C$53,Ops!$D286,Inputs!$D$46:$D$53,Ops!$D$282) -> 0 | I286: =SUMIFS(Inputs!G$46:G$53,Inputs!$C$46:$C$53,Ops!$D286,Inputs!$D$46:$D$53,Ops!$D$282) -> 0 | J286: =SUMIFS(Inputs!H$46:H$53,Inputs!$C$46:$C$53,Ops!$D286,Inputs!$D$46:$D$53,Ops!$D$282) -> 0 | K286: =SUMIFS(Inputs!I$46:I$53,Inputs!$C$46:$C$53,Ops!$D286,Inputs!$D$46:$D$53,Ops!$D$282) -> 0 | L286: =SUMIFS(Inputs!J$46:J$53,Inputs!$C$46:$C$53,Ops!$D286,Inputs!$D$46:$D$53,Ops!$D$282) -> 0 | M286: =SUMIFS(Inputs!K$46:K$53,Inputs!$C$46:$C$53,Ops!$D286,Inputs!$D$46:$D$53,Ops!$D$282) -> 0 | N286: =SUMIFS(Inputs!L$46:L$53,Inputs!$C$46:$C$53,Ops!$D286,Inputs!$D$46:$D$53,Ops!$D$282) -> 0 | O286: =SUMIFS(Inputs!M$46:M$53,Inputs!$C$46:$C$53,Ops!$D286,Inputs!$D$46:$D$53,Ops!$D$282) -> 0 | P286: =SUMIFS(Inputs!N$46:N$53,Inputs!$C$46:$C$53,Ops!$D286,Inputs!$D$46:$D$53,Ops!$D$282) -> 0 | Q286: =SUMIFS(Inputs!O$46:O$53,Inputs!$C$46:$C$53,Ops!$D286,Inputs!$D$46:$D$53,Ops!$D$282) -> 0 | R286: =SUMIFS(Inputs!P$46:P$53,Inputs!$C$46:$C$53,Ops!$D286,Inputs!$D$46:$D$53,Ops!$D$282) -> 0 | S286: =SUMIFS(Inputs!Q$46:Q$53,Inputs!$C$46:$C$53,Ops!$D286,Inputs!$D$46:$D$53,Ops!$D$282) -> 0 | T286: =SUMIFS(Inputs!R$46:R$53,Inputs!$C$46:$C$53,Ops!$D286,Inputs!$D$46:$D$53,Ops!$D$282) -> 0 | U286: =SUMIFS(Inputs!S$46:S$53,Inputs!$C$46:$C$53,Ops!$D286,Inputs!$D$46:$D$53,Ops!$D$282) -> 0 | V286: =SUMIFS(Inputs!T$46:T$53,Inputs!$C$46:$C$53,Ops!$D286,Inputs!$D$46:$D$53,Ops!$D$282) -> 0 | W286: =SUMIFS(Inputs!U$46:U$53,Inputs!$C$46:$C$53,Ops!$D286,Inputs!$D$46:$D$53,Ops!$D$282) -> 0 | X286: =SUMIFS(Inputs!V$46:V$53,Inputs!$C$46:$C$53,Ops!$D286,Inputs!$D$46:$D$53,Ops!$D$282) -> 0 | Y286: =SUMIFS(Inputs!W$46:W$53,Inputs!$C$46:$C$53,Ops!$D286,Inputs!$D$46:$D$53,Ops!$D$282) -> 0 | Z286: =SUMIFS(Inputs!X$46:X$53,Inputs!$C$46:$C$53,Ops!$D286,Inputs!$D$46:$D$53,Ops!$D$282) -> 0 | AA286: =SUMIFS(Inputs!Y$46:Y$53,Inputs!$C$46:$C$53,Ops!$D286,Inputs!$D$46:$D$53,Ops!$D$282) -> 0 | AB286: =SUMIFS(Inputs!Z$46:Z$53,Inputs!$C$46:$C$53,Ops!$D286,Inputs!$D$46:$D$53,Ops!$D$282) -> 0 | AC286: =SUMIFS(Inputs!AA$46:AA$53,Inputs!$C$46:$C$53,Ops!$D286,Inputs!$D$46:$D$53,Ops!$D$282) -> 0 | AD286: =SUMIFS(Inputs!AB$46:AB$53,Inputs!$C$46:$C$53,Ops!$D286,Inputs!$D$46:$D$53,Ops!$D$282) -> 0 | AE286: =SUMIFS(Inputs!AC$46:AC$53,Inputs!$C$46:$C$53,Ops!$D286,Inputs!$D$46:$D$53,Ops!$D$282) -> 0 | AF286: =SUMIFS(Inputs!AD$46:AD$53,Inputs!$C$46:$C$53,Ops!$D286,Inputs!$D$46:$D$53,Ops!$D$282) -> 0 | AG286: =SUMIFS(Inputs!AE$46:AE$53,Inputs!$C$46:$C$53,Ops!$D286,Inputs!$D$46:$D$53,Ops!$D$282) -> 0 | AH286: =SUMIFS(Inputs!AF$46:AF$53,Inputs!$C$46:$C$53,Ops!$D286,Inputs!$D$46:$D$53,Ops!$D$282) -> 0 | AI286: =SUMIFS(Inputs!AG$46:AG$53,Inputs!$C$46:$C$53,Ops!$D286,Inputs!$D$46:$D$53,Ops!$D$282) -> 0 | AJ286: =SUMIFS(Inputs!AH$46:AH$53,Inputs!$C$46:$C$53,Ops!$D286,Inputs!$D$46:$D$53,Ops!$D$282) -> 0
C287: =Inputs!C139 -> Adicionais | D287: Adicionais | E287: $ 000s | F287: =SUM(G287:AJ287) -> 0 | G287: =SUMIFS(Inputs!E$46:E$53,Inputs!$C$46:$C$53,Ops!$D287,Inputs!$D$46:$D$53,Ops!$D$282) -> 0 | H287: =SUMIFS(Inputs!F$46:F$53,Inputs!$C$46:$C$53,Ops!$D287,Inputs!$D$46:$D$53,Ops!$D$282) -> 0 | I287: =SUMIFS(Inputs!G$46:G$53,Inputs!$C$46:$C$53,Ops!$D287,Inputs!$D$46:$D$53,Ops!$D$282) -> 0 | J287: =SUMIFS(Inputs!H$46:H$53,Inputs!$C$46:$C$53,Ops!$D287,Inputs!$D$46:$D$53,Ops!$D$282) -> 0 | K287: =SUMIFS(Inputs!I$46:I$53,Inputs!$C$46:$C$53,Ops!$D287,Inputs!$D$46:$D$53,Ops!$D$282) -> 0 | L287: =SUMIFS(Inputs!J$46:J$53,Inputs!$C$46:$C$53,Ops!$D287,Inputs!$D$46:$D$53,Ops!$D$282) -> 0 | M287: =SUMIFS(Inputs!K$46:K$53,Inputs!$C$46:$C$53,Ops!$D287,Inputs!$D$46:$D$53,Ops!$D$282) -> 0 | N287: =SUMIFS(Inputs!L$46:L$53,Inputs!$C$46:$C$53,Ops!$D287,Inputs!$D$46:$D$53,Ops!$D$282) -> 0 | O287: =SUMIFS(Inputs!M$46:M$53,Inputs!$C$46:$C$53,Ops!$D287,Inputs!$D$46:$D$53,Ops!$D$282) -> 0 | P287: =SUMIFS(Inputs!N$46:N$53,Inputs!$C$46:$C$53,Ops!$D287,Inputs!$D$46:$D$53,Ops!$D$282) -> 0 | Q287: =SUMIFS(Inputs!O$46:O$53,Inputs!$C$46:$C$53,Ops!$D287,Inputs!$D$46:$D$53,Ops!$D$282) -> 0 | R287: =SUMIFS(Inputs!P$46:P$53,Inputs!$C$46:$C$53,Ops!$D287,Inputs!$D$46:$D$53,Ops!$D$282) -> 0 | S287: =SUMIFS(Inputs!Q$46:Q$53,Inputs!$C$46:$C$53,Ops!$D287,Inputs!$D$46:$D$53,Ops!$D$282) -> 0 | T287: =SUMIFS(Inputs!R$46:R$53,Inputs!$C$46:$C$53,Ops!$D287,Inputs!$D$46:$D$53,Ops!$D$282) -> 0 | U287: =SUMIFS(Inputs!S$46:S$53,Inputs!$C$46:$C$53,Ops!$D287,Inputs!$D$46:$D$53,Ops!$D$282) -> 0 | V287: =SUMIFS(Inputs!T$46:T$53,Inputs!$C$46:$C$53,Ops!$D287,Inputs!$D$46:$D$53,Ops!$D$282) -> 0 | W287: =SUMIFS(Inputs!U$46:U$53,Inputs!$C$46:$C$53,Ops!$D287,Inputs!$D$46:$D$53,Ops!$D$282) -> 0 | X287: =SUMIFS(Inputs!V$46:V$53,Inputs!$C$46:$C$53,Ops!$D287,Inputs!$D$46:$D$53,Ops!$D$282) -> 0 | Y287: =SUMIFS(Inputs!W$46:W$53,Inputs!$C$46:$C$53,Ops!$D287,Inputs!$D$46:$D$53,Ops!$D$282) -> 0 | Z287: =SUMIFS(Inputs!X$46:X$53,Inputs!$C$46:$C$53,Ops!$D287,Inputs!$D$46:$D$53,Ops!$D$282) -> 0 | AA287: =SUMIFS(Inputs!Y$46:Y$53,Inputs!$C$46:$C$53,Ops!$D287,Inputs!$D$46:$D$53,Ops!$D$282) -> 0 | AB287: =SUMIFS(Inputs!Z$46:Z$53,Inputs!$C$46:$C$53,Ops!$D287,Inputs!$D$46:$D$53,Ops!$D$282) -> 0 | AC287: =SUMIFS(Inputs!AA$46:AA$53,Inputs!$C$46:$C$53,Ops!$D287,Inputs!$D$46:$D$53,Ops!$D$282) -> 0 | AD287: =SUMIFS(Inputs!AB$46:AB$53,Inputs!$C$46:$C$53,Ops!$D287,Inputs!$D$46:$D$53,Ops!$D$282) -> 0 | AE287: =SUMIFS(Inputs!AC$46:AC$53,Inputs!$C$46:$C$53,Ops!$D287,Inputs!$D$46:$D$53,Ops!$D$282) -> 0 | AF287: =SUMIFS(Inputs!AD$46:AD$53,Inputs!$C$46:$C$53,Ops!$D287,Inputs!$D$46:$D$53,Ops!$D$282) -> 0 | AG287: =SUMIFS(Inputs!AE$46:AE$53,Inputs!$C$46:$C$53,Ops!$D287,Inputs!$D$46:$D$53,Ops!$D$282) -> 0 | AH287: =SUMIFS(Inputs!AF$46:AF$53,Inputs!$C$46:$C$53,Ops!$D287,Inputs!$D$46:$D$53,Ops!$D$282) -> 0 | AI287: =SUMIFS(Inputs!AG$46:AG$53,Inputs!$C$46:$C$53,Ops!$D287,Inputs!$D$46:$D$53,Ops!$D$282) -> 0 | AJ287: =SUMIFS(Inputs!AH$46:AH$53,Inputs!$C$46:$C$53,Ops!$D287,Inputs!$D$46:$D$53,Ops!$D$282) -> 0
C288: Investimentos divisíveis totais | D288: Check | E288: =F265=F278+F288 -> TRUE | F288: =SUM(G288:AJ288) -> 0 | G288: =SUM(G284:G287) -> 0 | H288: =SUM(H284:H287) -> 0 | I288: =SUM(I284:I287) -> 0 | J288: =SUM(J284:J287) -> 0 | K288: =SUM(K284:K287) -> 0 | L288: =SUM(L284:L287) -> 0 | M288: =SUM(M284:M287) -> 0 | N288: =SUM(N284:N287) -> 0 | O288: =SUM(O284:O287) -> 0 | P288: =SUM(P284:P287) -> 0 | Q288: =SUM(Q284:Q287) -> 0 | R288: =SUM(R284:R287) -> 0 | S288: =SUM(S284:S287) -> 0 | T288: =SUM(T284:T287) -> 0 | U288: =SUM(U284:U287) -> 0 | V288: =SUM(V284:V287) -> 0 | W288: =SUM(W284:W287) -> 0 | X288: =SUM(X284:X287) -> 0 | Y288: =SUM(Y284:Y287) -> 0 | Z288: =SUM(Z284:Z287) -> 0 | AA288: =SUM(AA284:AA287) -> 0 | AB288: =SUM(AB284:AB287) -> 0 | AC288: =SUM(AC284:AC287) -> 0 | AD288: =SUM(AD284:AD287) -> 0 | AE288: =SUM(AE284:AE287) -> 0 | AF288: =SUM(AF284:AF287) -> 0 | AG288: =SUM(AG284:AG287) -> 0 | AH288: =SUM(AH284:AH287) -> 0 | AI288: =SUM(AI284:AI287) -> 0 | AJ288: =SUM(AJ284:AJ287) -> 0
C291: Imobilizado divisíveis
C293: Estudos
C295: Imobilizado
C297: Imobilizado estudos divisível (b/f) | E297: $ 000s | G297: =F300 -> 0 | H297: 0 | I297: 0 | J297: 0 | K297: 0 | L297: 0 | M297: 0 | N297: 0 | O297: 0 | P297: 0 | Q297: 0 | R297: 0 | S297: 0 | T297: 0 | U297: 0 | V297: 0 | W297: 0 | X297: 0 | Y297: 0 | Z297: 0 | AA297: 0 | AB297: 0 | AC297: 0 | AD297: 0 | AE297: 0 | AF297: 0 | AG297: 0 | AH297: 0 | AI297: 0 | AJ297: 0
C298: CAPEX de Estudos | E298: $ 000s | F298: =SUM(G298:AJ298) -> 0 | G298: =G274 -> 0 | H298: 0 | I298: 0 | J298: 0 | K298: 0 | L298: 0 | M298: 0 | N298: 0 | O298: 0 | P298: 0 | Q298: 0 | R298: 0 | S298: 0 | T298: 0 | U298: 0 | V298: 0 | W298: 0 | X298: 0 | Y298: 0 | Z298: 0 | AA298: 0 | AB298: 0 | AC298: 0 | AD298: 0 | AE298: 0 | AF298: 0 | AG298: 0 | AH298: 0 | AI298: 0 | AJ298: 0
... 363 more rows

Sheet Capex
B2: ANO | C2: 1 | D2: =C2+1 -> 2 | E2: 3 | F2: 4 | G2: 5 | H2: 6 | I2: 7 | J2: 8 | K2: 9 | L2: 10 | M2: 11 | N2: 12 | O2: 13 | P2: 14 | Q2: 15 | R2: 16 | S2: 17 | T2: 18 | U2: 19 | V2: 20 | W2: 21 | X2: 22 | Y2: 23 | Z2: 24 | AA2: 25 | AB2: 26 | AC2: 27 | AD2: 28 | AE2: 29 | AF2: 30 | AH2: TOTAL
B4: CAPEX TOTAL
B6: COLETA MANUAL E CONTEINERIZADA RSC
B8: Estudos
B9: xxxxxxxx
B10: Quantidade
B11: Valor
B12: Veículos
B13: xxxxxxxx
B14: Quantidade
B15: Custo de Aquisicao
B16: xxxxxxxx
B17: Quantidade
B18: Custo de Aquisicao
B19: Equipamentos
B20: xxxxxxxx
B21: Quantidade
B22: Custo de Aquisicao
B23: xxxxxxxx
B24: Quantidade
B25: Custo de Aquisicao
B26: Adicionais
B27: xxxxxxxx
B28: Quantidade
B29: Custo de Aquisicao
B31: COLETA DE MATERIAIS RECICLÁVEIS
B33: Estudos
B34: xxxxxxxx
B35: Quantidade
B36: Valor
B37: Veículos
B38: xxxxxxxx
B39: Quantidade
B40: Custo de Aquisicao
B41: xxxxxxxx
B42: Quantidade
B43: Custo de Aquisicao
B44: Equipamentos
B45: xxxxxxxx
B46: Quantidade
B47: Custo de Aquisicao
B48: xxxxxxxx
B49: Quantidade
B50: Custo de Aquisicao
B51: Adicionais
B52: xxxxxxxx
B53: Quantidade
B54: Custo de Aquisicao
B55: TRANSPORTE E DESTINAÇÃO FINAL - RESÍDUOS PEVS
B57: Estudos
B58: xxxxxxxx
B59: Quantidade
B60: Valor
B61: Veículos
B62: xxxxxxxx
B63: Quantidade
B64: Custo de Aquisicao
B65: xxxxxxxx
B66: Quantidade
B67: Custo de Aquisicao
B68: Equipamentos
B69: xxxxxxxx
B70: Quantidade
B71: Custo de Aquisicao
B72: xxxxxxxx
B73: Quantidade
B74: Custo de Aquisicao
B75: Adicionais
B76: xxxxxxxx
B77: Quantidade
B78: Custo de Aquisicao
B79: COLETA PROGRAMADA DE VOLUMOSOS
B81: Estudos
B82: xxxxxxxx
B83: Quantidade
B84: Valor
B85: Veículos
B86: xxxxxxxx
B87: Quantidade
B88: Custo de Aquisicao
B89: xxxxxxxx
B90: Quantidade
B91: Custo de Aquisicao
B92: Equipamentos
B93: xxxxxxxx
B94: Quantidade
B95: Custo de Aquisicao
B96: xxxxxxxx
B97: Quantidade
B98: Custo de Aquisicao
B99: Adicionais
B100: xxxxxxxx
B101: Quantidade
B102: Custo de Aquisicao
B104: VARRIÇÃO MANUAL
B106: Estudos
B107: xxxxxxxx
B108: Quantidade
B109: Valor
B110: Veículos
B111: xxxxxxxx
B112: Quantidade
B113: Custo de Aquisicao
B114: xxxxxxxx
B115: Quantidade
B116: Custo de Aquisicao
B117: Equipamentos
B118: xxxxxxxx
B119: Quantidade
B120: Custo de Aquisicao
B121: xxxxxxxx
B122: Quantidade
B123: Custo de Aquisicao
B124: Adicionais
B125: xxxxxxxx
B126: Quantidade
B127: Custo de Aquisicao
B129: SERVIÇOS GERAIS
B131: Estudos
B132: xxxxxxxx
B133: Quantidade
B134: Valor
B135: Veículos
B136: xxxxxxxx
B137: Quantidade
B138: Custo de Aquisicao
B139: xxxxxxxx
B140: Quantidade
B141: Custo de Aquisicao
B142: Equipamentos
B143: xxxxxxxx
B144: Quantidade
B145: Custo de Aquisicao
B146: xxxxxxxx
B147: Quantidade
B148: Custo de Aquisicao
B149: Adicionais
B150: xxxxxxxx
B151: Quantidade
B152: Custo de Aquisicao
B154: DESTINAÇÃO FINAL
B155: PEV
B156: Estudos
B157: xxxxxxxx
B158: Quantidade
B159: Valor
B160: Veículos
B161: xxxxxxxx
B162: Quantidade
B163: Custo de Aquisicao
B164: xxxxxxxx
B165: Quantidade
B166: Custo de Aquisicao
B167: Equipamentos
B168: xxxxxxxx
B169: Quantidade
B170: Custo de Aquisicao
B171: xxxxxxxx
B172: Quantidade
B173: Custo de Aquisicao
B174: Adicionais
B175: xxxxxxxx
B176: Quantidade
B177: Custo de Aquisicao
B178: Ecopontos
B179: Estudos
B180: xxxxxxxx
B181: Quantidade
B182: Valor
B183: Veículos
B184: xxxxxxxx
B185: Quantidade
B186: Custo de Aquisicao
B187: xxxxxxxx
B188: Quantidade
B189: Custo de Aquisicao
B190: Equipamentos
B191: xxxxxxxx
B192: Quantidade
B193: Custo de Aquisicao
B194: xxxxxxxx
B195: Quantidade
B196: Custo de Aquisicao
B197: Adicionais
B198: xxxxxxxx
B199: Quantidade
B200: Custo de Aquisicao
B201: SCS's
B202: Estudos
B203: xxxxxxxx
B204: Quantidade
B205: Valor
B206: Veículos
B207: xxxxxxxx
B208: Quantidade
B209: Custo de Aquisicao
B210: xxxxxxxx
B211: Quantidade
B212: Custo de Aquisicao
B213: Equipamentos
... 184 more rows

Sheet Opex
B2: Em R$ Mil
B4: ANO | C4: 1 | D4: =C4+1 -> 2 | E4: 3 | F4: 4 | G4: 5 | H4: 6 | I4: 7 | J4: 8 | K4: 9 | L4: 10 | M4: 11 | N4: 12 | O4: 13 | P4: 14 | Q4: 15 | R4: 16 | S4: 17 | T4: 18 | U4: 19 | V4: 20 | W4: 21 | X4: 22 | Y4: 23 | Z4: 24 | AA4: 25 | AB4: 26 | AC4: 27 | AD4: 28 | AE4: 29 | AF4: 30 | AH4: TOTAL
B6: OPEX TOTAL
B8: COLETA MANUAL E CONTEINERIZADA RESÍDUOS COMUNS
B10: Quantidade de Equipamentos Efetivos
B11: xxxx
B12: xxxx
B13: xxxx | AG13: =AF13 -> 0
B14: xxxx
B17: Locação de equipamentos
B18: xxxxx
B19: Quantidade
B20: Valor Unitário
B21: xxxxx
B22: Quantidade
B23: Valor Unitário
B25: Manutenção
B26: xxxxx
B27: Quantidade
B28: Valor Unitário
B29: xxxxx
B30: Quantidade
B31: Valor Unitário
B33: Combustiveis
B34: xxxxx
B35: Quantidade
B36: Km Mensal
B37: Consumo
B38: Valor Unitário
B39: xxxxx
B40: Quantidade
B41: Km Mensal
B42: Consumo
B43: Valor Unitário
B45: Óleos, Lubrificantes e Graxas
B46: xxxxx
B47: Quantidade
B48: Valor Unitário
B49: xxxxx
B50: Quantidade | AG50: =AG12 -> 0
B51: Valor Unitário
B53: Pneus
B54: xxxxx
B55: Quantidade
B56: Valor unitário pneu
B57: xxxxx
B58: Quantidade
B59: Valor unitário pneu
B61: Lavagem
B62: Lavagem total
B63: xxxxx
B64: Valor unitário
B65: Lavagem total
B66: xxxxx
B67: Valor unitário
B69: Licenciamento e Seguros
B70: xxxxx
B71: Quantidade
B72: Licenciamento
B73: IPVA
B74: Seguro
B75: xxxxx
B76: Quantidade
B77: Licenciamento
B78: IPVA
B79: Seguro
B81: Monitoramento de veículos
B82: Quantidade de Veículos
B83: Valor Unitário
B85: Material de Consumo
B86: xxxxxx
B87: Quantidade
B88: Valor unitário
B89: xxxxxx
B90: Quantidade
B91: Valor unitário
B92: xxxxxx
B93: Quantidade
B94: Valor unitário
B96: Mão de obra - Salários
B97: Motorista diurno e vespertino
B98: Quantidade
B99: Salário base
B100: Salário mínimo
B101: Adicional de insalubridade
B102: Adicional de periculosidade
B103: Adicional noturno
B104: Motorista noturno
B105: Quantidade
B106: Salário base
B107: Salário mínimo
B108: Adicional de insalubridade
B109: Adicional de periculosidade
B110: Adicional noturno
B111: Coletor diurno e vespertino
B112: Quantidade
B113: Salário base
B114: Salário mínimo
B115: Adicional de insalubridade
B116: Adicional de periculosidade
B117: Adicional noturno
B118: Coletor noturno
B119: Quantidade
B120: Salário base
B121: Salário mínimo
B122: Adicional de insalubridade
B123: Adicional de periculosidade
B124: Adicional noturno
B125: Servente diurno e vespertino
B126: Quantidade
B127: Salário base
B128: Salário mínimo
B129: Adicional de insalubridade
B130: Adicional de periculosidade
B131: Adicional noturno
B132: Servente noturno
B133: Quantidade
B134: Salário base
B135: Salário mínimo
B136: Adicional de insalubridade
B137: Adicional de periculosidade
B138: Adicional noturno
B139: {xxxxxxxx}
B140: Quantidade
B141: Salário base
B142: Salário mínimo
B143: Adicional de insalubridade
B144: Adicional de periculosidade
B145: Adicional noturno
B147: Mão de obra - Encargos
B148: Salários total
B149: % de encargos sociais
B151: Mão de obra - Benefícios
B152: Motorista diurno e vespertino
B153: xxxxx
B154: xxxxx
B155: xxxxx
B156: xxxxx
B157: xxxxx
B158: xxxxx
B159: xxxxx
B160: xxxxx
B161: {xxxxxxxx}
B162: xxxxx
B163: xxxxx
B164: xxxxx
B165: xxxxx
B166: xxxxx
B167: xxxxx
B168: xxxxx
B169: xxxxx
B171: Uniformes e EPI
B172: xxxxxx
B173: Quantidade
B174: Valor Unitário
B175: xxxxxx
B176: Quantidade
B177: Valor Unitário
B179: COLETA MATERIAS RECICLÁVEIS
B181: Quantidade de Equipamentos Efetivos
B182: xxxx
B183: xxxx
B184: xxxx | AG184: =AF184 -> 0
B185: xxxx
B187: Locação de equipamentos
B188: xxxxx
B189: Quantidade
B190: Valor Unitário
B191: xxxxx
B192: Quantidade
B193: Valor Unitário
B195: Manutenção
B196: xxxxx
B197: Quantidade
B198: Valor Unitário
B199: xxxxx
B200: Quantidade
B201: Valor Unitário
B203: Combustiveis
B204: xxxxx
B205: Quantidade
B206: Km Mensal
B207: Consumo
B208: Valor Unitário
B209: xxxxx
B210: Quantidade
B211: Km Mensal
B212: Consumo
B213: Valor Unitário
B215: Óleos, Lubrificantes e Graxas
B216: xxxxx
B217: Quantidade
B218: Valor Unitário
B219: xxxxx
B220: Quantidade | AG220: =AG183 -> 0
B221: Valor Unitário
B223: Pneus
B224: xxxxx
B225: Quantidade
B226: Valor unitário pneu
... 1367 more rows
